Workbook

Sheet Calculadora
K3: Calculadora de emisiones
G5: Tus emisiones mensuales son: | H5: =$I$62 -> 0 | I5: tCO2e/mes
C6: NOTA: El resultado de emisiones es indicativo. La calculadora entregará resultados más aproximados a las emisiones reales en la medida en que el usuario ingrese información completa y verdadera. Puede servir como herramienta orientadora para determinar si el sujeto sobrepasa o no el umbral de registro. En ningún caso sustituye la estimación de emisiones que deben realizar los Establecimientos Sujetos a Reporte y no se debe usar como resultado final de sus emisiones anuales, esta calculadora es un instrumento de apoyo. La suma de las emisiones puede no coincidir con el resultado parcial, por el redondeo de cifras.
B11: ID | C11: Sector | D11: Subsector | E11: Actividad | F11: Fuente de Emisión | G11: Instrucciones | H11: Dato de Actividad | I11: Unidad | J11: Emisiones GEI [tCO2e] | K11: Emisiones CO2 [tCO2] | L11: Emisiones CH4 [tCH4] | M11: Emisiones N2O [tN2O]
B12: =IFERROR(LOOKUP($F12,ID!$A$3:$A$610,ID!$E$3:$E$610),"") -> Ec07 | C12: Energía | D12: Energía_térmica | E12: Procesos_térmicos | F12: Biodiesel_PT | G12: =IFERROR(LOOKUP($B12,Emisiones!$A$3:$A$610,Emisiones!$F$3:$F$610),"") -> Ingrese la cantidad de combustible alternativo consumido al mes en litros | I12: =IFERROR(LOOKUP($B12,Emisiones!$A$3:$A$610,Emisiones!$G$3:$G$610),"") -> l | J12: =IFERROR(LOOKUP($B12,Emisiones!$A$3:$A$610,Emisiones!$H$3:$H$610),"") -> 0 | K12: =IFERROR(LOOKUP($B12,Emisiones!$A$3:$A$610,Emisiones!$I$3:$I$610),"") -> 0 | L12: =IFERROR(LOOKUP($B12,Emisiones!$A$3:$A$610,Emisiones!$J$3:$J$610),"") -> 0 | M12: =IFERROR(LOOKUP($B12,Emisiones!$A$3:$A$610,Emisiones!$K$3:$K$610),"") -> 0
B13: =IFERROR(LOOKUP($F13,ID!$A$3:$A$610,ID!$E$3:$E$610),"") ->  | C13: Energía | D13: Energía_térmica | E13: Procesos_térmicos | G13: =IFERROR(LOOKUP($B13,Emisiones!$A$3:$A$610,Emisiones!$F$3:$F$610),"") ->  | I13: =IFERROR(LOOKUP($B13,Emisiones!$A$3:$A$610,Emisiones!$G$3:$G$610),"") ->  | J13: =IFERROR(LOOKUP($B13,Emisiones!$A$3:$A$610,Emisiones!$H$3:$H$610),"") ->  | K13: =IFERROR(LOOKUP($B13,Emisiones!$A$3:$A$610,Emisiones!$I$3:$I$610),"") ->  | L13: =IFERROR(LOOKUP($B13,Emisiones!$A$3:$A$610,Emisiones!$J$3:$J$610),"") ->  | M13: =IFERROR(LOOKUP($B13,Emisiones!$A$3:$A$610,Emisiones!$K$3:$K$610),"") -> 
B14: =IFERROR(LOOKUP($F14,ID!$A$3:$A$610,ID!$E$3:$E$610),"") ->  | C14: Energía | D14: Energía_térmica | E14: Procesos_térmicos | G14: =IFERROR(LOOKUP($B14,Emisiones!$A$3:$A$610,Emisiones!$F$3:$F$610),"") ->  | I14: =IFERROR(LOOKUP($B14,Emisiones!$A$3:$A$610,Emisiones!$G$3:$G$610),"") ->  | J14: =IFERROR(LOOKUP($B14,Emisiones!$A$3:$A$610,Emisiones!$H$3:$H$610),"") ->  | K14: =IFERROR(LOOKUP($B14,Emisiones!$A$3:$A$610,Emisiones!$I$3:$I$610),"") ->  | L14: =IFERROR(LOOKUP($B14,Emisiones!$A$3:$A$610,Emisiones!$J$3:$J$610),"") ->  | M14: =IFERROR(LOOKUP($B14,Emisiones!$A$3:$A$610,Emisiones!$K$3:$K$610),"") -> 
B15: =IFERROR(LOOKUP($F15,ID!$A$3:$A$610,ID!$E$3:$E$610),"") ->  | C15: Energía | D15: Energía_térmica | E15: Procesos_térmicos | G15: =IFERROR(LOOKUP($B15,Emisiones!$A$3:$A$610,Emisiones!$F$3:$F$610),"") ->  | I15: =IFERROR(LOOKUP($B15,Emisiones!$A$3:$A$610,Emisiones!$G$3:$G$610),"") ->  | J15: =IFERROR(LOOKUP($B15,Emisiones!$A$3:$A$610,Emisiones!$H$3:$H$610),"") ->  | K15: =IFERROR(LOOKUP($B15,Emisiones!$A$3:$A$610,Emisiones!$I$3:$I$610),"") ->  | L15: =IFERROR(LOOKUP($B15,Emisiones!$A$3:$A$610,Emisiones!$J$3:$J$610),"") ->  | M15: =IFERROR(LOOKUP($B15,Emisiones!$A$3:$A$610,Emisiones!$K$3:$K$610),"") -> 
B16: =IFERROR(LOOKUP($F16,ID!$A$3:$A$610,ID!$E$3:$E$610),"") ->  | C16: Energía | D16: Energía_térmica | E16: Procesos_térmicos | G16: =IFERROR(LOOKUP($B16,Emisiones!$A$3:$A$610,Emisiones!$F$3:$F$610),"") ->  | I16: =IFERROR(LOOKUP($B16,Emisiones!$A$3:$A$610,Emisiones!$G$3:$G$610),"") ->  | J16: =IFERROR(LOOKUP($B16,Emisiones!$A$3:$A$610,Emisiones!$H$3:$H$610),"") ->  | K16: =IFERROR(LOOKUP($B16,Emisiones!$A$3:$A$610,Emisiones!$I$3:$I$610),"") ->  | L16: =IFERROR(LOOKUP($B16,Emisiones!$A$3:$A$610,Emisiones!$J$3:$J$610),"") ->  | M16: =IFERROR(LOOKUP($B16,Emisiones!$A$3:$A$610,Emisiones!$K$3:$K$610),"") -> 
B17: =IFERROR(LOOKUP($F17,ID!$A$3:$A$610,ID!$E$3:$E$610),"") ->  | C17: Energía | D17: Energía_térmica | E17: Procesos_térmicos | G17: =IFERROR(LOOKUP($B17,Emisiones!$A$3:$A$610,Emisiones!$F$3:$F$610),"") ->  | I17: =IFERROR(LOOKUP($B17,Emisiones!$A$3:$A$610,Emisiones!$G$3:$G$610),"") ->  | J17: =IFERROR(LOOKUP($B17,Emisiones!$A$3:$A$610,Emisiones!$H$3:$H$610),"") ->  | K17: =IFERROR(LOOKUP($B17,Emisiones!$A$3:$A$610,Emisiones!$I$3:$I$610),"") ->  | L17: =IFERROR(LOOKUP($B17,Emisiones!$A$3:$A$610,Emisiones!$J$3:$J$610),"") ->  | M17: =IFERROR(LOOKUP($B17,Emisiones!$A$3:$A$610,Emisiones!$K$3:$K$610),"") -> 
B18: =IFERROR(LOOKUP($F18,ID!$A$3:$A$610,ID!$E$3:$E$610),"") ->  | C18: Energía | D18: Energía_térmica | E18: Procesos_térmicos | G18: =IFERROR(LOOKUP($B18,Emisiones!$A$3:$A$610,Emisiones!$F$3:$F$610),"") ->  | I18: =IFERROR(LOOKUP($B18,Emisiones!$A$3:$A$610,Emisiones!$G$3:$G$610),"") ->  | J18: =IFERROR(LOOKUP($B18,Emisiones!$A$3:$A$610,Emisiones!$H$3:$H$610),"") ->  | K18: =IFERROR(LOOKUP($B18,Emisiones!$A$3:$A$610,Emisiones!$I$3:$I$610),"") ->  | L18: =IFERROR(LOOKUP($B18,Emisiones!$A$3:$A$610,Emisiones!$J$3:$J$610),"") ->  | M18: =IFERROR(LOOKUP($B18,Emisiones!$A$3:$A$610,Emisiones!$K$3:$K$610),"") -> 
B19: =IFERROR(LOOKUP($F19,ID!$A$3:$A$610,ID!$E$3:$E$610),"") ->  | C19: Energía | D19: Energía_térmica | E19: Procesos_térmicos | G19: =IFERROR(LOOKUP($B19,Emisiones!$A$3:$A$610,Emisiones!$F$3:$F$610),"") ->  | I19: =IFERROR(LOOKUP($B19,Emisiones!$A$3:$A$610,Emisiones!$G$3:$G$610),"") ->  | J19: =IFERROR(LOOKUP($B19,Emisiones!$A$3:$A$610,Emisiones!$H$3:$H$610),"") ->  | K19: =IFERROR(LOOKUP($B19,Emisiones!$A$3:$A$610,Emisiones!$I$3:$I$610),"") ->  | L19: =IFERROR(LOOKUP($B19,Emisiones!$A$3:$A$610,Emisiones!$J$3:$J$610),"") ->  | M19: =IFERROR(LOOKUP($B19,Emisiones!$A$3:$A$610,Emisiones!$K$3:$K$610),"") -> 
B20: =IFERROR(LOOKUP($F20,ID!$A$3:$A$610,ID!$E$3:$E$610),"") ->  | C20: Energía | D20: Energía_térmica | E20: Procesos_térmicos | G20: =IFERROR(LOOKUP($B20,Emisiones!$A$3:$A$610,Emisiones!$F$3:$F$610),"") ->  | I20: =IFERROR(LOOKUP($B20,Emisiones!$A$3:$A$610,Emisiones!$G$3:$G$610),"") ->  | J20: =IFERROR(LOOKUP($B20,Emisiones!$A$3:$A$610,Emisiones!$H$3:$H$610),"") ->  | K20: =IFERROR(LOOKUP($B20,Emisiones!$A$3:$A$610,Emisiones!$I$3:$I$610),"") ->  | L20: =IFERROR(LOOKUP($B20,Emisiones!$A$3:$A$610,Emisiones!$J$3:$J$610),"") ->  | M20: =IFERROR(LOOKUP($B20,Emisiones!$A$3:$A$610,Emisiones!$K$3:$K$610),"") -> 
B21: =IFERROR(LOOKUP($F21,ID!$A$3:$A$610,ID!$E$3:$E$610),"") ->  | C21: Energía | D21: Energía_térmica | E21: Procesos_térmicos | G21: =IFERROR(LOOKUP($B21,Emisiones!$A$3:$A$610,Emisiones!$F$3:$F$610),"") ->  | I21: =IFERROR(LOOKUP($B21,Emisiones!$A$3:$A$610,Emisiones!$G$3:$G$610),"") ->  | J21: =IFERROR(LOOKUP($B21,Emisiones!$A$3:$A$610,Emisiones!$H$3:$H$610),"") ->  | K21: =IFERROR(LOOKUP($B21,Emisiones!$A$3:$A$610,Emisiones!$I$3:$I$610),"") ->  | L21: =IFERROR(LOOKUP($B21,Emisiones!$A$3:$A$610,Emisiones!$J$3:$J$610),"") ->  | M21: =IFERROR(LOOKUP($B21,Emisiones!$A$3:$A$610,Emisiones!$K$3:$K$610),"") -> 
B22: =IFERROR(LOOKUP($F22,ID!$A$3:$A$610,ID!$E$3:$E$610),"") ->  | C22: Energía | D22: Energía_térmica | E22: Procesos_térmicos | G22: =IFERROR(LOOKUP($B22,Emisiones!$A$3:$A$610,Emisiones!$F$3:$F$610),"") ->  | I22: =IFERROR(LOOKUP($B22,Emisiones!$A$3:$A$610,Emisiones!$G$3:$G$610),"") ->  | J22: =IFERROR(LOOKUP($B22,Emisiones!$A$3:$A$610,Emisiones!$H$3:$H$610),"") ->  | K22: =IFERROR(LOOKUP($B22,Emisiones!$A$3:$A$610,Emisiones!$I$3:$I$610),"") ->  | L22: =IFERROR(LOOKUP($B22,Emisiones!$A$3:$A$610,Emisiones!$J$3:$J$610),"") ->  | M22: =IFERROR(LOOKUP($B22,Emisiones!$A$3:$A$610,Emisiones!$K$3:$K$610),"") -> 
B23: =IFERROR(LOOKUP($F23,ID!$A$3:$A$610,ID!$E$3:$E$610),"") ->  | C23: Energía | D23: Energía_térmica | E23: Procesos_térmicos | G23: =IFERROR(LOOKUP($B23,Emisiones!$A$3:$A$610,Emisiones!$F$3:$F$610),"") ->  | I23: =IFERROR(LOOKUP($B23,Emisiones!$A$3:$A$610,Emisiones!$G$3:$G$610),"") ->  | J23: =IFERROR(LOOKUP($B23,Emisiones!$A$3:$A$610,Emisiones!$H$3:$H$610),"") ->  | K23: =IFERROR(LOOKUP($B23,Emisiones!$A$3:$A$610,Emisiones!$I$3:$I$610),"") ->  | L23: =IFERROR(LOOKUP($B23,Emisiones!$A$3:$A$610,Emisiones!$J$3:$J$610),"") ->  | M23: =IFERROR(LOOKUP($B23,Emisiones!$A$3:$A$610,Emisiones!$K$3:$K$610),"") -> 
B24: =IFERROR(LOOKUP($F24,ID!$A$3:$A$610,ID!$E$3:$E$610),"") ->  | C24: Energía | D24: Energía_térmica | E24: Procesos_térmicos | G24: =IFERROR(LOOKUP($B24,Emisiones!$A$3:$A$610,Emisiones!$F$3:$F$610),"") ->  | I24: =IFERROR(LOOKUP($B24,Emisiones!$A$3:$A$610,Emisiones!$G$3:$G$610),"") ->  | J24: =IFERROR(LOOKUP($B24,Emisiones!$A$3:$A$610,Emisiones!$H$3:$H$610),"") ->  | K24: =IFERROR(LOOKUP($B24,Emisiones!$A$3:$A$610,Emisiones!$I$3:$I$610),"") ->  | L24: =IFERROR(LOOKUP($B24,Emisiones!$A$3:$A$610,Emisiones!$J$3:$J$610),"") ->  | M24: =IFERROR(LOOKUP($B24,Emisiones!$A$3:$A$610,Emisiones!$K$3:$K$610),"") -> 
B25: =IFERROR(LOOKUP($F25,ID!$A$3:$A$610,ID!$E$3:$E$610),"") ->  | C25: Energía | D25: Energía_térmica | E25: Procesos_térmicos | G25: =IFERROR(LOOKUP($B25,Emisiones!$A$3:$A$610,Emisiones!$F$3:$F$610),"") ->  | I25: =IFERROR(LOOKUP($B25,Emisiones!$A$3:$A$610,Emisiones!$G$3:$G$610),"") ->  | J25: =IFERROR(LOOKUP($B25,Emisiones!$A$3:$A$610,Emisiones!$H$3:$H$610),"") ->  | K25: =IFERROR(LOOKUP($B25,Emisiones!$A$3:$A$610,Emisiones!$I$3:$I$610),"") ->  | L25: =IFERROR(LOOKUP($B25,Emisiones!$A$3:$A$610,Emisiones!$J$3:$J$610),"") ->  | M25: =IFERROR(LOOKUP($B25,Emisiones!$A$3:$A$610,Emisiones!$K$3:$K$610),"") -> 
B26: =IFERROR(LOOKUP($F26,ID!$A$3:$A$610,ID!$E$3:$E$610),"") ->  | C26: Energía | D26: Energía_térmica | E26: Procesos_térmicos | G26: =IFERROR(LOOKUP($B26,Emisiones!$A$3:$A$610,Emisiones!$F$3:$F$610),"") ->  | I26: =IFERROR(LOOKUP($B26,Emisiones!$A$3:$A$610,Emisiones!$G$3:$G$610),"") ->  | J26: =IFERROR(LOOKUP($B26,Emisiones!$A$3:$A$610,Emisiones!$H$3:$H$610),"") ->  | K26: =IFERROR(LOOKUP($B26,Emisiones!$A$3:$A$610,Emisiones!$I$3:$I$610),"") ->  | L26: =IFERROR(LOOKUP($B26,Emisiones!$A$3:$A$610,Emisiones!$J$3:$J$610),"") ->  | M26: =IFERROR(LOOKUP($B26,Emisiones!$A$3:$A$610,Emisiones!$K$3:$K$610),"") -> 
B27: =IFERROR(LOOKUP($F27,ID!$A$3:$A$610,ID!$E$3:$E$610),"") ->  | C27: Energía | D27: Energía_térmica | E27: Procesos_térmicos | G27: =IFERROR(LOOKUP($B27,Emisiones!$A$3:$A$610,Emisiones!$F$3:$F$610),"") ->  | I27: =IFERROR(LOOKUP($B27,Emisiones!$A$3:$A$610,Emisiones!$G$3:$G$610),"") ->  | J27: =IFERROR(LOOKUP($B27,Emisiones!$A$3:$A$610,Emisiones!$H$3:$H$610),"") ->  | K27: =IFERROR(LOOKUP($B27,Emisiones!$A$3:$A$610,Emisiones!$I$3:$I$610),"") ->  | L27: =IFERROR(LOOKUP($B27,Emisiones!$A$3:$A$610,Emisiones!$J$3:$J$610),"") ->  | M27: =IFERROR(LOOKUP($B27,Emisiones!$A$3:$A$610,Emisiones!$K$3:$K$610),"") -> 
B28: =IFERROR(LOOKUP($F28,ID!$A$3:$A$610,ID!$E$3:$E$610),"") ->  | C28: Energía | D28: Energía_térmica | E28: Procesos_térmicos | G28: =IFERROR(LOOKUP($B28,Emisiones!$A$3:$A$610,Emisiones!$F$3:$F$610),"") ->  | I28: =IFERROR(LOOKUP($B28,Emisiones!$A$3:$A$610,Emisiones!$G$3:$G$610),"") ->  | J28: =IFERROR(LOOKUP($B28,Emisiones!$A$3:$A$610,Emisiones!$H$3:$H$610),"") ->  | K28: =IFERROR(LOOKUP($B28,Emisiones!$A$3:$A$610,Emisiones!$I$3:$I$610),"") ->  | L28: =IFERROR(LOOKUP($B28,Emisiones!$A$3:$A$610,Emisiones!$J$3:$J$610),"") ->  | M28: =IFERROR(LOOKUP($B28,Emisiones!$A$3:$A$610,Emisiones!$K$3:$K$610),"") -> 
B29: =IFERROR(LOOKUP($F29,ID!$A$3:$A$610,ID!$E$3:$E$610),"") ->  | C29: Energía | D29: Energía_térmica | E29: Procesos_térmicos | G29: =IFERROR(LOOKUP($B29,Emisiones!$A$3:$A$610,Emisiones!$F$3:$F$610),"") ->  | I29: =IFERROR(LOOKUP($B29,Emisiones!$A$3:$A$610,Emisiones!$G$3:$G$610),"") ->  | J29: =IFERROR(LOOKUP($B29,Emisiones!$A$3:$A$610,Emisiones!$H$3:$H$610),"") ->  | K29: =IFERROR(LOOKUP($B29,Emisiones!$A$3:$A$610,Emisiones!$I$3:$I$610),"") ->  | L29: =IFERROR(LOOKUP($B29,Emisiones!$A$3:$A$610,Emisiones!$J$3:$J$610),"") ->  | M29: =IFERROR(LOOKUP($B29,Emisiones!$A$3:$A$610,Emisiones!$K$3:$K$610),"") -> 
B30: =IFERROR(LOOKUP($F30,ID!$A$3:$A$610,ID!$E$3:$E$610),"") ->  | C30: Energía | D30: Energía_térmica | E30: Procesos_térmicos | G30: =IFERROR(LOOKUP($B30,Emisiones!$A$3:$A$610,Emisiones!$F$3:$F$610),"") ->  | I30: =IFERROR(LOOKUP($B30,Emisiones!$A$3:$A$610,Emisiones!$G$3:$G$610),"") ->  | J30: =IFERROR(LOOKUP($B30,Emisiones!$A$3:$A$610,Emisiones!$H$3:$H$610),"") ->  | K30: =IFERROR(LOOKUP($B30,Emisiones!$A$3:$A$610,Emisiones!$I$3:$I$610),"") ->  | L30: =IFERROR(LOOKUP($B30,Emisiones!$A$3:$A$610,Emisiones!$J$3:$J$610),"") ->  | M30: =IFERROR(LOOKUP($B30,Emisiones!$A$3:$A$610,Emisiones!$K$3:$K$610),"") -> 
B31: =IFERROR(LOOKUP($F31,ID!$A$3:$A$610,ID!$E$3:$E$610),"") ->  | C31: Energía | D31: Energía_térmica | E31: Procesos_térmicos | G31: =IFERROR(LOOKUP($B31,Emisiones!$A$3:$A$610,Emisiones!$F$3:$F$610),"") ->  | I31: =IFERROR(LOOKUP($B31,Emisiones!$A$3:$A$610,Emisiones!$G$3:$G$610),"") ->  | J31: =IFERROR(LOOKUP($B31,Emisiones!$A$3:$A$610,Emisiones!$H$3:$H$610),"") ->  | K31: =IFERROR(LOOKUP($B31,Emisiones!$A$3:$A$610,Emisiones!$I$3:$I$610),"") ->  | L31: =IFERROR(LOOKUP($B31,Emisiones!$A$3:$A$610,Emisiones!$J$3:$J$610),"") ->  | M31: =IFERROR(LOOKUP($B31,Emisiones!$A$3:$A$610,Emisiones!$K$3:$K$610),"") -> 
B32: =IFERROR(LOOKUP($F32,ID!$A$3:$A$610,ID!$E$3:$E$610),"") ->  | C32: Energía | D32: Energía_térmica | E32: Procesos_térmicos | G32: =IFERROR(LOOKUP($B32,Emisiones!$A$3:$A$610,Emisiones!$F$3:$F$610),"") ->  | I32: =IFERROR(LOOKUP($B32,Emisiones!$A$3:$A$610,Emisiones!$G$3:$G$610),"") ->  | J32: =IFERROR(LOOKUP($B32,Emisiones!$A$3:$A$610,Emisiones!$H$3:$H$610),"") ->  | K32: =IFERROR(LOOKUP($B32,Emisiones!$A$3:$A$610,Emisiones!$I$3:$I$610),"") ->  | L32: =IFERROR(LOOKUP($B32,Emisiones!$A$3:$A$610,Emisiones!$J$3:$J$610),"") ->  | M32: =IFERROR(LOOKUP($B32,Emisiones!$A$3:$A$610,Emisiones!$K$3:$K$610),"") -> 
B33: =IFERROR(LOOKUP($F33,ID!$A$3:$A$610,ID!$E$3:$E$610),"") ->  | C33: Energía | D33: Energía_térmica | E33: Procesos_térmicos | G33: =IFERROR(LOOKUP($B33,Emisiones!$A$3:$A$610,Emisiones!$F$3:$F$610),"") ->  | I33: =IFERROR(LOOKUP($B33,Emisiones!$A$3:$A$610,Emisiones!$G$3:$G$610),"") ->  | J33: =IFERROR(LOOKUP($B33,Emisiones!$A$3:$A$610,Emisiones!$H$3:$H$610),"") ->  | K33: =IFERROR(LOOKUP($B33,Emisiones!$A$3:$A$610,Emisiones!$I$3:$I$610),"") ->  | L33: =IFERROR(LOOKUP($B33,Emisiones!$A$3:$A$610,Emisiones!$J$3:$J$610),"") ->  | M33: =IFERROR(LOOKUP($B33,Emisiones!$A$3:$A$610,Emisiones!$K$3:$K$610),"") -> 
B34: =IFERROR(LOOKUP($F34,ID!$A$3:$A$610,ID!$E$3:$E$610),"") ->  | C34: Energía | D34: Energía_térmica | E34: Procesos_térmicos | G34: =IFERROR(LOOKUP($B34,Emisiones!$A$3:$A$610,Emisiones!$F$3:$F$610),"") ->  | I34: =IFERROR(LOOKUP($B34,Emisiones!$A$3:$A$610,Emisiones!$G$3:$G$610),"") ->  | J34: =IFERROR(LOOKUP($B34,Emisiones!$A$3:$A$610,Emisiones!$H$3:$H$610),"") ->  | K34: =IFERROR(LOOKUP($B34,Emisiones!$A$3:$A$610,Emisiones!$I$3:$I$610),"") ->  | L34: =IFERROR(LOOKUP($B34,Emisiones!$A$3:$A$610,Emisiones!$J$3:$J$610),"") ->  | M34: =IFERROR(LOOKUP($B34,Emisiones!$A$3:$A$610,Emisiones!$K$3:$K$610),"") -> 
B35: =IFERROR(LOOKUP($F35,ID!$A$3:$A$610,ID!$E$3:$E$610),"") ->  | C35: Energía | D35: Energía_térmica | E35: Procesos_térmicos | G35: =IFERROR(LOOKUP($B35,Emisiones!$A$3:$A$610,Emisiones!$F$3:$F$610),"") ->  | I35: =IFERROR(LOOKUP($B35,Emisiones!$A$3:$A$610,Emisiones!$G$3:$G$610),"") ->  | J35: =IFERROR(LOOKUP($B35,Emisiones!$A$3:$A$610,Emisiones!$H$3:$H$610),"") ->  | K35: =IFERROR(LOOKUP($B35,Emisiones!$A$3:$A$610,Emisiones!$I$3:$I$610),"") ->  | L35: =IFERROR(LOOKUP($B35,Emisiones!$A$3:$A$610,Emisiones!$J$3:$J$610),"") ->  | M35: =IFERROR(LOOKUP($B35,Emisiones!$A$3:$A$610,Emisiones!$K$3:$K$610),"") -> 
B36: =IFERROR(LOOKUP($F36,ID!$A$3:$A$610,ID!$E$3:$E$610),"") ->  | C36: Energía | D36: Energía_térmica | E36: Procesos_térmicos | G36: =IFERROR(LOOKUP($B36,Emisiones!$A$3:$A$610,Emisiones!$F$3:$F$610),"") ->  | I36: =IFERROR(LOOKUP($B36,Emisiones!$A$3:$A$610,Emisiones!$G$3:$G$610),"") ->  | J36: =IFERROR(LOOKUP($B36,Emisiones!$A$3:$A$610,Emisiones!$H$3:$H$610),"") ->  | K36: =IFERROR(LOOKUP($B36,Emisiones!$A$3:$A$610,Emisiones!$I$3:$I$610),"") ->  | L36: =IFERROR(LOOKUP($B36,Emisiones!$A$3:$A$610,Emisiones!$J$3:$J$610),"") ->  | M36: =IFERROR(LOOKUP($B36,Emisiones!$A$3:$A$610,Emisiones!$K$3:$K$610),"") -> 
B37: =IFERROR(LOOKUP($F37,ID!$A$3:$A$610,ID!$E$3:$E$610),"") ->  | C37: Energía | D37: Energía_térmica | E37: Procesos_térmicos | G37: =IFERROR(LOOKUP($B37,Emisiones!$A$3:$A$610,Emisiones!$F$3:$F$610),"") ->  | I37: =IFERROR(LOOKUP($B37,Emisiones!$A$3:$A$610,Emisiones!$G$3:$G$610),"") ->  | J37: =IFERROR(LOOKUP($B37,Emisiones!$A$3:$A$610,Emisiones!$H$3:$H$610),"") ->  | K37: =IFERROR(LOOKUP($B37,Emisiones!$A$3:$A$610,Emisiones!$I$3:$I$610),"") ->  | L37: =IFERROR(LOOKUP($B37,Emisiones!$A$3:$A$610,Emisiones!$J$3:$J$610),"") ->  | M37: =IFERROR(LOOKUP($B37,Emisiones!$A$3:$A$610,Emisiones!$K$3:$K$610),"") -> 
B38: =IFERROR(LOOKUP($F38,ID!$A$3:$A$610,ID!$E$3:$E$610),"") ->  | C38: Energía | D38: Energía_térmica | E38: Procesos_térmicos | G38: =IFERROR(LOOKUP($B38,Emisiones!$A$3:$A$610,Emisiones!$F$3:$F$610),"") ->  | I38: =IFERROR(LOOKUP($B38,Emisiones!$A$3:$A$610,Emisiones!$G$3:$G$610),"") ->  | J38: =IFERROR(LOOKUP($B38,Emisiones!$A$3:$A$610,Emisiones!$H$3:$H$610),"") ->  | K38: =IFERROR(LOOKUP($B38,Emisiones!$A$3:$A$610,Emisiones!$I$3:$I$610),"") ->  | L38: =IFERROR(LOOKUP($B38,Emisiones!$A$3:$A$610,Emisiones!$J$3:$J$610),"") ->  | M38: =IFERROR(LOOKUP($B38,Emisiones!$A$3:$A$610,Emisiones!$K$3:$K$610),"") -> 
B39: =IFERROR(LOOKUP($F39,ID!$A$3:$A$610,ID!$E$3:$E$610),"") ->  | C39: Energía | D39: Energía_térmica | E39: Procesos_térmicos | G39: =IFERROR(LOOKUP($B39,Emisiones!$A$3:$A$610,Emisiones!$F$3:$F$610),"") ->  | I39: =IFERROR(LOOKUP($B39,Emisiones!$A$3:$A$610,Emisiones!$G$3:$G$610),"") ->  | J39: =IFERROR(LOOKUP($B39,Emisiones!$A$3:$A$610,Emisiones!$H$3:$H$610),"") ->  | K39: =IFERROR(LOOKUP($B39,Emisiones!$A$3:$A$610,Emisiones!$I$3:$I$610),"") ->  | L39: =IFERROR(LOOKUP($B39,Emisiones!$A$3:$A$610,Emisiones!$J$3:$J$610),"") ->  | M39: =IFERROR(LOOKUP($B39,Emisiones!$A$3:$A$610,Emisiones!$K$3:$K$610),"") -> 
B40: =IFERROR(LOOKUP($F40,ID!$A$3:$A$610,ID!$E$3:$E$610),"") ->  | C40: Energía | D40: Energía_térmica | E40: Procesos_térmicos | G40: =IFERROR(LOOKUP($B40,Emisiones!$A$3:$A$610,Emisiones!$F$3:$F$610),"") ->  | I40: =IFERROR(LOOKUP($B40,Emisiones!$A$3:$A$610,Emisiones!$G$3:$G$610),"") ->  | J40: =IFERROR(LOOKUP($B40,Emisiones!$A$3:$A$610,Emisiones!$H$3:$H$610),"") ->  | K40: =IFERROR(LOOKUP($B40,Emisiones!$A$3:$A$610,Emisiones!$I$3:$I$610),"") ->  | L40: =IFERROR(LOOKUP($B40,Emisiones!$A$3:$A$610,Emisiones!$J$3:$J$610),"") ->  | M40: =IFERROR(LOOKUP($B40,Emisiones!$A$3:$A$610,Emisiones!$K$3:$K$610),"") -> 
B41: =IFERROR(LOOKUP($F41,ID!$A$3:$A$610,ID!$E$3:$E$610),"") ->  | C41: Energía | D41: Energía_térmica | E41: Procesos_térmicos | G41: =IFERROR(LOOKUP($B41,Emisiones!$A$3:$A$610,Emisiones!$F$3:$F$610),"") ->  | I41: =IFERROR(LOOKUP($B41,Emisiones!$A$3:$A$610,Emisiones!$G$3:$G$610),"") ->  | J41: =IFERROR(LOOKUP($B41,Emisiones!$A$3:$A$610,Emisiones!$H$3:$H$610),"") ->  | K41: =IFERROR(LOOKUP($B41,Emisiones!$A$3:$A$610,Emisiones!$I$3:$I$610),"") ->  | L41: =IFERROR(LOOKUP($B41,Emisiones!$A$3:$A$610,Emisiones!$J$3:$J$610),"") ->  | M41: =IFERROR(LOOKUP($B41,Emisiones!$A$3:$A$610,Emisiones!$K$3:$K$610),"") -> 
B42: =IFERROR(LOOKUP($F42,ID!$A$3:$A$610,ID!$E$3:$E$610),"") ->  | C42: Energía | D42: Energía_térmica | E42: Procesos_térmicos | G42: =IFERROR(LOOKUP($B42,Emisiones!$A$3:$A$610,Emisiones!$F$3:$F$610),"") ->  | I42: =IFERROR(LOOKUP($B42,Emisiones!$A$3:$A$610,Emisiones!$G$3:$G$610),"") ->  | J42: =IFERROR(LOOKUP($B42,Emisiones!$A$3:$A$610,Emisiones!$H$3:$H$610),"") ->  | K42: =IFERROR(LOOKUP($B42,Emisiones!$A$3:$A$610,Emisiones!$I$3:$I$610),"") ->  | L42: =IFERROR(LOOKUP($B42,Emisiones!$A$3:$A$610,Emisiones!$J$3:$J$610),"") ->  | M42: =IFERROR(LOOKUP($B42,Emisiones!$A$3:$A$610,Emisiones!$K$3:$K$610),"") -> 
B43: =IFERROR(LOOKUP($F43,ID!$A$3:$A$610,ID!$E$3:$E$610),"") ->  | C43: Energía | D43: Energía_térmica | E43: Procesos_térmicos | G43: =IFERROR(LOOKUP($B43,Emisiones!$A$3:$A$610,Emisiones!$F$3:$F$610),"") ->  | I43: =IFERROR(LOOKUP($B43,Emisiones!$A$3:$A$610,Emisiones!$G$3:$G$610),"") ->  | J43: =IFERROR(LOOKUP($B43,Emisiones!$A$3:$A$610,Emisiones!$H$3:$H$610),"") ->  | K43: =IFERROR(LOOKUP($B43,Emisiones!$A$3:$A$610,Emisiones!$I$3:$I$610),"") ->  | L43: =IFERROR(LOOKUP($B43,Emisiones!$A$3:$A$610,Emisiones!$J$3:$J$610),"") ->  | M43: =IFERROR(LOOKUP($B43,Emisiones!$A$3:$A$610,Emisiones!$K$3:$K$610),"") -> 
B44: =IFERROR(LOOKUP($F44,ID!$A$3:$A$610,ID!$E$3:$E$610),"") ->  | C44: Energía | D44: Energía_térmica | E44: Procesos_térmicos | G44: =IFERROR(LOOKUP($B44,Emisiones!$A$3:$A$610,Emisiones!$F$3:$F$610),"") ->  | I44: =IFERROR(LOOKUP($B44,Emisiones!$A$3:$A$610,Emisiones!$G$3:$G$610),"") ->  | J44: =IFERROR(LOOKUP($B44,Emisiones!$A$3:$A$610,Emisiones!$H$3:$H$610),"") ->  | K44: =IFERROR(LOOKUP($B44,Emisiones!$A$3:$A$610,Emisiones!$I$3:$I$610),"") ->  | L44: =IFERROR(LOOKUP($B44,Emisiones!$A$3:$A$610,Emisiones!$J$3:$J$610),"") ->  | M44: =IFERROR(LOOKUP($B44,Emisiones!$A$3:$A$610,Emisiones!$K$3:$K$610),"") -> 
B45: =IFERROR(LOOKUP($F45,ID!$A$3:$A$610,ID!$E$3:$E$610),"") ->  | C45: Energía | D45: Energía_térmica | E45: Procesos_térmicos | G45: =IFERROR(LOOKUP($B45,Emisiones!$A$3:$A$610,Emisiones!$F$3:$F$610),"") ->  | I45: =IFERROR(LOOKUP($B45,Emisiones!$A$3:$A$610,Emisiones!$G$3:$G$610),"") ->  | J45: =IFERROR(LOOKUP($B45,Emisiones!$A$3:$A$610,Emisiones!$H$3:$H$610),"") ->  | K45: =IFERROR(LOOKUP($B45,Emisiones!$A$3:$A$610,Emisiones!$I$3:$I$610),"") ->  | L45: =IFERROR(LOOKUP($B45,Emisiones!$A$3:$A$610,Emisiones!$J$3:$J$610),"") ->  | M45: =IFERROR(LOOKUP($B45,Emisiones!$A$3:$A$610,Emisiones!$K$3:$K$610),"") -> 
B46: =IFERROR(LOOKUP($F46,ID!$A$3:$A$610,ID!$E$3:$E$610),"") ->  | C46: Energía | D46: Energía_térmica | E46: Procesos_térmicos | G46: =IFERROR(LOOKUP($B46,Emisiones!$A$3:$A$610,Emisiones!$F$3:$F$610),"") ->  | I46: =IFERROR(LOOKUP($B46,Emisiones!$A$3:$A$610,Emisiones!$G$3:$G$610),"") ->  | J46: =IFERROR(LOOKUP($B46,Emisiones!$A$3:$A$610,Emisiones!$H$3:$H$610),"") ->  | K46: =IFERROR(LOOKUP($B46,Emisiones!$A$3:$A$610,Emisiones!$I$3:$I$610),"") ->  | L46: =IFERROR(LOOKUP($B46,Emisiones!$A$3:$A$610,Emisiones!$J$3:$J$610),"") ->  | M46: =IFERROR(LOOKUP($B46,Emisiones!$A$3:$A$610,Emisiones!$K$3:$K$610),"") -> 
B47: =IFERROR(LOOKUP($F47,ID!$A$3:$A$610,ID!$E$3:$E$610),"") ->  | C47: Energía | D47: Energía_térmica | E47: Procesos_térmicos | G47: =IFERROR(LOOKUP($B47,Emisiones!$A$3:$A$610,Emisiones!$F$3:$F$610),"") ->  | I47: =IFERROR(LOOKUP($B47,Emisiones!$A$3:$A$610,Emisiones!$G$3:$G$610),"") ->  | J47: =IFERROR(LOOKUP($B47,Emisiones!$A$3:$A$610,Emisiones!$H$3:$H$610),"") ->  | K47: =IFERROR(LOOKUP($B47,Emisiones!$A$3:$A$610,Emisiones!$I$3:$I$610),"") ->  | L47: =IFERROR(LOOKUP($B47,Emisiones!$A$3:$A$610,Emisiones!$J$3:$J$610),"") ->  | M47: =IFERROR(LOOKUP($B47,Emisiones!$A$3:$A$610,Emisiones!$K$3:$K$610),"") -> 
B48: =IFERROR(LOOKUP($F48,ID!$A$3:$A$610,ID!$E$3:$E$610),"") ->  | C48: Energía | D48: Energía_térmica | E48: Procesos_térmicos | G48: =IFERROR(LOOKUP($B48,Emisiones!$A$3:$A$610,Emisiones!$F$3:$F$610),"") ->  | I48: =IFERROR(LOOKUP($B48,Emisiones!$A$3:$A$610,Emisiones!$G$3:$G$610),"") ->  | J48: =IFERROR(LOOKUP($B48,Emisiones!$A$3:$A$610,Emisiones!$H$3:$H$610),"") ->  | K48: =IFERROR(LOOKUP($B48,Emisiones!$A$3:$A$610,Emisiones!$I$3:$I$610),"") ->  | L48: =IFERROR(LOOKUP($B48,Emisiones!$A$3:$A$610,Emisiones!$J$3:$J$610),"") ->  | M48: =IFERROR(LOOKUP($B48,Emisiones!$A$3:$A$610,Emisiones!$K$3:$K$610),"") -> 
B49: =IFERROR(LOOKUP($F49,ID!$A$3:$A$610,ID!$E$3:$E$610),"") ->  | C49: Energía | D49: Energía_térmica | E49: Procesos_térmicos | G49: =IFERROR(LOOKUP($B49,Emisiones!$A$3:$A$610,Emisiones!$F$3:$F$610),"") ->  | I49: =IFERROR(LOOKUP($B49,Emisiones!$A$3:$A$610,Emisiones!$G$3:$G$610),"") ->  | J49: =IFERROR(LOOKUP($B49,Emisiones!$A$3:$A$610,Emisiones!$H$3:$H$610),"") ->  | K49: =IFERROR(LOOKUP($B49,Emisiones!$A$3:$A$610,Emisiones!$I$3:$I$610),"") ->  | L49: =IFERROR(LOOKUP($B49,Emisiones!$A$3:$A$610,Emisiones!$J$3:$J$610),"") ->  | M49: =IFERROR(LOOKUP($B49,Emisiones!$A$3:$A$610,Emisiones!$K$3:$K$610),"") -> 
B50: =IFERROR(LOOKUP($F50,ID!$A$3:$A$610,ID!$E$3:$E$610),"") ->  | C50: Energía | D50: Energía_térmica | E50: Procesos_térmicos | G50: =IFERROR(LOOKUP($B50,Emisiones!$A$3:$A$610,Emisiones!$F$3:$F$610),"") ->  | I50: =IFERROR(LOOKUP($B50,Emisiones!$A$3:$A$610,Emisiones!$G$3:$G$610),"") ->  | J50: =IFERROR(LOOKUP($B50,Emisiones!$A$3:$A$610,Emisiones!$H$3:$H$610),"") ->  | K50: =IFERROR(LOOKUP($B50,Emisiones!$A$3:$A$610,Emisiones!$I$3:$I$610),"") ->  | L50: =IFERROR(LOOKUP($B50,Emisiones!$A$3:$A$610,Emisiones!$J$3:$J$610),"") ->  | M50: =IFERROR(LOOKUP($B50,Emisiones!$A$3:$A$610,Emisiones!$K$3:$K$610),"") -> 
B51: =IFERROR(LOOKUP($F51,ID!$A$3:$A$610,ID!$E$3:$E$610),"") ->  | C51: Energía | D51: Energía_térmica | E51: Procesos_térmicos | G51: =IFERROR(LOOKUP($B51,Emisiones!$A$3:$A$610,Emisiones!$F$3:$F$610),"") ->  | I51: =IFERROR(LOOKUP($B51,Emisiones!$A$3:$A$610,Emisiones!$G$3:$G$610),"") ->  | J51: =IFERROR(LOOKUP($B51,Emisiones!$A$3:$A$610,Emisiones!$H$3:$H$610),"") ->  | K51: =IFERROR(LOOKUP($B51,Emisiones!$A$3:$A$610,Emisiones!$I$3:$I$610),"") ->  | L51: =IFERROR(LOOKUP($B51,Emisiones!$A$3:$A$610,Emisiones!$J$3:$J$610),"") ->  | M51: =IFERROR(LOOKUP($B51,Emisiones!$A$3:$A$610,Emisiones!$K$3:$K$610),"") -> 
B52: =IFERROR(LOOKUP($F52,ID!$A$3:$A$610,ID!$E$3:$E$610),"") ->  | C52: Energía | D52: Energía_térmica | E52: Procesos_térmicos | G52: =IFERROR(LOOKUP($B52,Emisiones!$A$3:$A$610,Emisiones!$F$3:$F$610),"") ->  | I52: =IFERROR(LOOKUP($B52,Emisiones!$A$3:$A$610,Emisiones!$G$3:$G$610),"") ->  | J52: =IFERROR(LOOKUP($B52,Emisiones!$A$3:$A$610,Emisiones!$H$3:$H$610),"") ->  | K52: =IFERROR(LOOKUP($B52,Emisiones!$A$3:$A$610,Emisiones!$I$3:$I$610),"") ->  | L52: =IFERROR(LOOKUP($B52,Emisiones!$A$3:$A$610,Emisiones!$J$3:$J$610),"") ->  | M52: =IFERROR(LOOKUP($B52,Emisiones!$A$3:$A$610,Emisiones!$K$3:$K$610),"") -> 
B53: =IFERROR(LOOKUP($F53,ID!$A$3:$A$610,ID!$E$3:$E$610),"") ->  | C53: Energía | D53: Energía_térmica | E53: Procesos_térmicos | G53: =IFERROR(LOOKUP($B53,Emisiones!$A$3:$A$610,Emisiones!$F$3:$F$610),"") ->  | I53: =IFERROR(LOOKUP($B53,Emisiones!$A$3:$A$610,Emisiones!$G$3:$G$610),"") ->  | J53: =IFERROR(LOOKUP($B53,Emisiones!$A$3:$A$610,Emisiones!$H$3:$H$610),"") ->  | K53: =IFERROR(LOOKUP($B53,Emisiones!$A$3:$A$610,Emisiones!$I$3:$I$610),"") ->  | L53: =IFERROR(LOOKUP($B53,Emisiones!$A$3:$A$610,Emisiones!$J$3:$J$610),"") ->  | M53: =IFERROR(LOOKUP($B53,Emisiones!$A$3:$A$610,Emisiones!$K$3:$K$610),"") -> 
B54: =IFERROR(LOOKUP($F54,ID!$A$3:$A$610,ID!$E$3:$E$610),"") ->  | C54: Energía | D54: Energía_térmica | E54: Procesos_térmicos | G54: =IFERROR(LOOKUP($B54,Emisiones!$A$3:$A$610,Emisiones!$F$3:$F$610),"") ->  | I54: =IFERROR(LOOKUP($B54,Emisiones!$A$3:$A$610,Emisiones!$G$3:$G$610),"") ->  | J54: =IFERROR(LOOKUP($B54,Emisiones!$A$3:$A$610,Emisiones!$H$3:$H$610),"") ->  | K54: =IFERROR(LOOKUP($B54,Emisiones!$A$3:$A$610,Emisiones!$I$3:$I$610),"") ->  | L54: =IFERROR(LOOKUP($B54,Emisiones!$A$3:$A$610,Emisiones!$J$3:$J$610),"") ->  | M54: =IFERROR(LOOKUP($B54,Emisiones!$A$3:$A$610,Emisiones!$K$3:$K$610),"") -> 
B55: =IFERROR(LOOKUP($F55,ID!$A$3:$A$610,ID!$E$3:$E$610),"") ->  | C55: Energía | D55: Energía_térmica | E55: Procesos_térmicos | G55: =IFERROR(LOOKUP($B55,Emisiones!$A$3:$A$610,Emisiones!$F$3:$F$610),"") ->  | I55: =IFERROR(LOOKUP($B55,Emisiones!$A$3:$A$610,Emisiones!$G$3:$G$610),"") ->  | J55: =IFERROR(LOOKUP($B55,Emisiones!$A$3:$A$610,Emisiones!$H$3:$H$610),"") ->  | K55: =IFERROR(LOOKUP($B55,Emisiones!$A$3:$A$610,Emisiones!$I$3:$I$610),"") ->  | L55: =IFERROR(LOOKUP($B55,Emisiones!$A$3:$A$610,Emisiones!$J$3:$J$610),"") ->  | M55: =IFERROR(LOOKUP($B55,Emisiones!$A$3:$A$610,Emisiones!$K$3:$K$610),"") -> 
B56: =IFERROR(LOOKUP($F56,ID!$A$3:$A$610,ID!$E$3:$E$610),"") ->  | C56: Energía | D56: Energía_térmica | E56: Procesos_térmicos | G56: =IFERROR(LOOKUP($B56,Emisiones!$A$3:$A$610,Emisiones!$F$3:$F$610),"") ->  | I56: =IFERROR(LOOKUP($B56,Emisiones!$A$3:$A$610,Emisiones!$G$3:$G$610),"") ->  | J56: =IFERROR(LOOKUP($B56,Emisiones!$A$3:$A$610,Emisiones!$H$3:$H$610),"") ->  | K56: =IFERROR(LOOKUP($B56,Emisiones!$A$3:$A$610,Emisiones!$I$3:$I$610),"") ->  | L56: =IFERROR(LOOKUP($B56,Emisiones!$A$3:$A$610,Emisiones!$J$3:$J$610),"") ->  | M56: =IFERROR(LOOKUP($B56,Emisiones!$A$3:$A$610,Emisiones!$K$3:$K$610),"") -> 
B57: =IFERROR(LOOKUP($F57,ID!$A$3:$A$610,ID!$E$3:$E$610),"") ->  | C57: Energía | D57: Energía_térmica | E57: Procesos_térmicos | G57: =IFERROR(LOOKUP($B57,Emisiones!$A$3:$A$610,Emisiones!$F$3:$F$610),"") ->  | I57: =IFERROR(LOOKUP($B57,Emisiones!$A$3:$A$610,Emisiones!$G$3:$G$610),"") ->  | J57: =IFERROR(LOOKUP($B57,Emisiones!$A$3:$A$610,Emisiones!$H$3:$H$610),"") ->  | K57: =IFERROR(LOOKUP($B57,Emisiones!$A$3:$A$610,Emisiones!$I$3:$I$610),"") ->  | L57: =IFERROR(LOOKUP($B57,Emisiones!$A$3:$A$610,Emisiones!$J$3:$J$610),"") ->  | M57: =IFERROR(LOOKUP($B57,Emisiones!$A$3:$A$610,Emisiones!$K$3:$K$610),"") -> 
B58: =IFERROR(LOOKUP($F58,ID!$A$3:$A$610,ID!$E$3:$E$610),"") ->  | C58: Energía | D58: Energía_térmica | E58: Procesos_térmicos | G58: =IFERROR(LOOKUP($B58,Emisiones!$A$3:$A$610,Emisiones!$F$3:$F$610),"") ->  | I58: =IFERROR(LOOKUP($B58,Emisiones!$A$3:$A$610,Emisiones!$G$3:$G$610),"") ->  | J58: =IFERROR(LOOKUP($B58,Emisiones!$A$3:$A$610,Emisiones!$H$3:$H$610),"") ->  | K58: =IFERROR(LOOKUP($B58,Emisiones!$A$3:$A$610,Emisiones!$I$3:$I$610),"") ->  | L58: =IFERROR(LOOKUP($B58,Emisiones!$A$3:$A$610,Emisiones!$J$3:$J$610),"") ->  | M58: =IFERROR(LOOKUP($B58,Emisiones!$A$3:$A$610,Emisiones!$K$3:$K$610),"") -> 
B59: =IFERROR(LOOKUP($F59,ID!$A$3:$A$610,ID!$E$3:$E$610),"") ->  | C59: Energía | D59: Energía_térmica | E59: Procesos_térmicos | G59: =IFERROR(LOOKUP($B59,Emisiones!$A$3:$A$610,Emisiones!$F$3:$F$610),"") ->  | I59: =IFERROR(LOOKUP($B59,Emisiones!$A$3:$A$610,Emisiones!$G$3:$G$610),"") ->  | J59: =IFERROR(LOOKUP($B59,Emisiones!$A$3:$A$610,Emisiones!$H$3:$H$610),"") ->  | K59: =IFERROR(LOOKUP($B59,Emisiones!$A$3:$A$610,Emisiones!$I$3:$I$610),"") ->  | L59: =IFERROR(LOOKUP($B59,Emisiones!$A$3:$A$610,Emisiones!$J$3:$J$610),"") ->  | M59: =IFERROR(LOOKUP($B59,Emisiones!$A$3:$A$610,Emisiones!$K$3:$K$610),"") -> 
B60: =IFERROR(LOOKUP($F60,ID!$A$3:$A$610,ID!$E$3:$E$610),"") ->  | C60: Energía | D60: Energía_térmica | E60: Procesos_térmicos | G60: =IFERROR(LOOKUP($B60,Emisiones!$A$3:$A$610,Emisiones!$F$3:$F$610),"") ->  | I60: =IFERROR(LOOKUP($B60,Emisiones!$A$3:$A$610,Emisiones!$G$3:$G$610),"") ->  | J60: =IFERROR(LOOKUP($B60,Emisiones!$A$3:$A$610,Emisiones!$H$3:$H$610),"") ->  | K60: =IFERROR(LOOKUP($B60,Emisiones!$A$3:$A$610,Emisiones!$I$3:$I$610),"") ->  | L60: =IFERROR(LOOKUP($B60,Emisiones!$A$3:$A$610,Emisiones!$J$3:$J$610),"") ->  | M60: =IFERROR(LOOKUP($B60,Emisiones!$A$3:$A$610,Emisiones!$K$3:$K$610),"") -> 
C61: Energía | D61: Energía_térmica | E61: Procesos_térmicos | G61: =IFERROR(LOOKUP($B61,Emisiones!$A$3:$A$610,Emisiones!$F$3:$F$610),"") ->  | I61: =IFERROR(LOOKUP($B61,Emisiones!$A$3:$A$610,Emisiones!$G$3:$G$610),"") ->  | J61: =IFERROR(LOOKUP($B61,Emisiones!$A$3:$A$610,Emisiones!$H$3:$H$610),"") ->  | K61: =IFERROR(LOOKUP($B61,Emisiones!$A$3:$A$610,Emisiones!$I$3:$I$610),"") ->  | L61: =IFERROR(LOOKUP($B61,Emisiones!$A$3:$A$610,Emisiones!$J$3:$J$610),"") ->  | M61: =IFERROR(LOOKUP($B61,Emisiones!$A$3:$A$610,Emisiones!$K$3:$K$610),"") -> 
I62: =SUM($J$12:$J$61) -> 0 | J62: =$I$62*1.05 -> 0

Sheet Combustibles (hidden)
C2: Combustible | D2: Unidades | E2: PCN
B3: Gaseosos | C3: Gas natural (promedio asociado y no asociado) | D3: (kJ/m3) | E3: 39083
C4: Gas natural asociado 2 | D4: (kJ/m3) | E4: 40357
C5: Gas natural no asociado 3 | D5: (kJ/m3) | E5: 37808 | G5: 158.9873 | H5: l / bbl
C6: Gas seco 4 | D6: (kJ/m3) | E6: 33543
C7: Gas seco de exportación | D7: (kJ/m3) | E7: 33804
C8: Gas seco de importación | D8: (kJ/m3) | E8: 38240
B9: Liquidos | C9: Combustóleo | D9: (MJ/bl) | E9: 6656
C10: Condensados | D10: (MJ/bl) | E10: 6989
C11: Diesel | D11: (MJ/bl) | E11: 6065
C12: Etano | D12: (MJ/bl) | E12: 2868
C13: Gas licuado | D13: (MJ/bl) | E13: 4153
C14: Gasóleo | D14: (MJ/m3) | E14: 42524
C15: Gasolinas naturales | D15: (MJ/bl) | E15: 4781
C16: Gasolinas y naftas | D16: (MJ/bl) | E16: 5613
C17: Lubricantes | D17: (MJ/bl) | E17: 6307
C18: Materia prima para negro de humo | D18: (MJ/bl) | E18: 6409
C19: Metil-terbutil-éter (MTBE) | D19: (MJ/bl) | E19: 4839
C20: Petróleo crudo (promedio de la producción) 1 | D20: (MJ/bl) | E20: 6347
C21: Petróleo crudo istmo | D21: (MJ/bl) | E21: 5826 | F21: ligero
C22: Petróleo crudo maya | D22: (MJ/bl) | E22: 6040 | F22: Pesado
C23: Petróleo crudo olmeca | D23: (MJ/bl) | E23: 5727 | F23: superligero
C24: Querosenos | D24: (MJ/bl) | E24: 5888
B25: Solidos | C25: Azufre | D25: (MJ/t) | E25: 9296
C26: Carbón siderúrgico de importación | D26: (MJ/t) | E26: 28954
C27: Carbón siderúrgico nacional | D27: (MJ/t) | E27: 29335
C28: Carbón térmico de importación | D28: (MJ/t) | E28: 22543
C29: Carbón térmico nacional | D29: (MJ/t) | E29: 19432
C30: Coque de carbón | D30: (MJ/t) | E30: 26521
C31: Coque de petróleo | D31: (MJ/t) | E31: 34518
B32: Bioenergéticos | C32: Biodiesel | D32: (kJ/m3) | E32: 18837
C33: Biogas | D33: (MJ/m3) | E33: 20
C34: Etanol anhidro | D34: (MJ/bl) | E34: 3362
B35: Biomasa | C35: Bagazo de caña | D35: (MJ/t) | E35: 7055
C36: Bagazo de malta | D36: (MJ/t) | E36: 7056
C37: Caña de maíz | D37: (MJ/t) | E37: 14651
C38: Carbón vegetal 7 7 – 2 % de humedad | D38: (MJ/t) | E38: 29,000 - 30,000 | F38: =(29000+30000)/2 -> 29500
C39: Leña | D39: (MJ/t) | E39: 14486
C40: Madera 7 25 – 20 % de humedad | D40: (MJ/t) | E40: 13,000 - 15,000 | F40: =(13000+15000)/2 -> 14000
C41: Madera pellets 7 | D41: (MJ/t) | E41: 17584
C42: Paja de arroz | D42: (MJ/t) | E42: 12,139 - 16,744 | F42: =(12139+16744)/2 -> 14441.5
C43: Turba 7 50 – 35 % de humedad | D43: (MJ/t) | E43: 12,000 - 14,000 | F43: =(12000+14000)/2 -> 13000
B44: RSU | C44: Algodón | D44: (MJ/t) | E44: 16744
C45: Cartón ordinario, empaques, envases | D45: (MJ/t) | E45: 14,232 - 14,651 | F45: =(14651+14232)/2 -> 14441.5
C46: Fieltro y linóleo | D46: (MJ/t) | E46: 20,930 - 25,535
C47: Hule viejo | D47: (MJ/t) | E47: 13395
C48: Lana y seda | D48: (MJ/t) | E48: 19,256 - 20,511 | F48: =(19256+20511)/2 -> 19883.5
C49: Legumbres verdes | D49: (MJ/t) | E49: 3349
C50: Paneles, fibras, partículas y pedacería de madera | D50: (MJ/t) | E50: 18,837 - 19,256 | F50: =(18837+19256)/2 -> 19046.5
C51: Papel ordinario, o kraft | D51: (MJ/t) | E51: 16,325 - 17,163 | F51: =(16325+17163)/2 -> 16744
B52: Residuos Industriales | C52: ABS | D52: (MJ/t) | E52: 34744
C53: Acetona | D53: (MJ/t) | E53: 28883
C54: Asfaltos | D54: (MJ/bl) | E54: 6506
C55: Benceno | D55: (MJ/t) | E55: 37674
C56: Gas de alto horno | D56: (MJ/m3) | E56: 3
C57: Gas de coque | D57: (MJ/m3) | E57: 18
C58: Licor negro 8 | D58: (MJ/t) | E58: 15070
C59: Llantas 9 | D59: (MJ/t) | E59: 25116
C60: Lodos orgánicos | D60: (MJ/t) | E60: 8,791 - 15,070
C61: Lubricantes | D61: (MJ/bl) | E61: 6037
C62: Neopreno | D62: (MJ/t) | E62: 25116
C63: PVC | D63: (MJ/t) | E63: 18,837 - 22,186
C64: Pintura y barniz | D64: (MJ/t) | E64: 18837
C65: Poliestireno | D65: (MJ/t) | E65: 41860
B68: Poderes caloríficos | G68: Poderes caloríficos | L68: Factor de Emisión 2022
B69: Energia eléctrica y térmica | G69: Energia eléctrica y térmica | L69: Consumo de Energía Eléctrica
B70: Combustible | C70: PC | G70: Combustible | H70: PC | L70: Combustible | M70: FE
A71: 1 | B71: Algodón | C71: =E44 -> 16744 | D71: MJ/ton | G71: Diesel | H71: =C95 -> 38.14770111 | I71: (MJ/l) | L71: Electricidad | M71: 0.435 | N71: (tCO2/MWh)
A72: 2 | B72: Alquitrán | C72: 28000 | D72: MJ/ton | G72: Gas Natural | H72: =C104 -> 33.543 | I72: MJ/m3
A73: 3 | B73: Bagazo de caña | C73: =E35 -> 7055 | D73: MJ/ton | G73: Gas_licuado | H73: =C100 -> 26.1215833 | I73: (MJ/l)
A74: 4 | B74: Bagazo de Malta | C74: =E36 -> 7056 | D74: MJ/ton | G74: Gasolina | H74: =C109 -> 35.30470673 | I74: (MJ/l)
A75: 5 | B75: Basura (residuos sólidos urbanos) | C75: =11.6*1000 -> 11600 | D75: MJ/ton | G75: Turbosina | H75: =C127 -> 37.03440463 | I75: (MJ/l)
A76: 6 | B76: Biocombustible líquido | C76: 27000 | D76: MJ/ton | G76: Combustóleo | H76: =C90 -> 41.86497915 | I76: (MJ/l)
A77: 7 | B77: Biodiesel | C77: =E32/1000 -> 18.837 | D77: MJ/l
A78: 8 | B78: Biogás (metano) | C78: =E33 -> 20 | D78: MJ/m3
A79: 9 | B79: Biogasolina | C79: =0.78*C109 -> 27.53767125 | D79: MJ/l
A80: 10 | B80: Caña de maíz | C80: =E37 -> 14651 | D80: MJ/ton
A81: 11 | B81: Carbón antracita | C81: 26700 | D81: MJ/ton
A82: 12 | B82: Carbón bituminoso | C82: 25800 | D82: MJ/ton
A83: 13 | B83: Carbón mineral | C83: 18900 | D83: MJ/ton
A84: 14 | B84: Carbón siderúrgico de importación | C84: =E26 -> 28954 | D84: MJ/ton
A85: 15 | B85: Carbón siderúrgico nacional | C85: =E27 -> 29335 | D85: MJ/ton
A86: 16 | B86: Carbón térmico de importación | C86: 22543 | D86: MJ/ton
A87: 17 | B87: Carbón térmico nacional | C87: 19432 | D87: MJ/ton
A88: 18 | B88: Carbón vegetal | C88: =F38 -> 29500 | D88: MJ/ton
A89: 19 | B89: Cartón ordinario-empaques-envases | C89: =F45 -> 14441.5 | D89: MJ/ton
A90: 20 | B90: Combustóleo ligero | C90: =E9/$G$5 -> 41.86497915 | D90: MJ/l
A91: 21 | B91: Combustóleo pesado | C91: =E9/$G$5 -> 41.86497915 | D91: MJ/l
A92: 22 | B92: Coque de carbón | C92: =E30 -> 26521 | D92: MJ/ton
A93: 23 | B93: Coque de petróleo | C93: =E31 -> 34518 | D93: MJ/ton
A94: 24 | B94: Diáfano | C94: =0.825*43.22072 -> 35.657094 | D94: MJ/l
A95: 25 | B95: Diésel | C95: =E11/$G$5 -> 38.14770111 | D95: MJ/l
A96: 26 | B96: Esquisto bituminoso y alquitrán | C96: 5600 | D96: MJ/ton
A97: 27 | B97: Etano | C97: =E12/$G$5 -> 18.03917671 | D97: MJ/l
A98: 28 | B98: Gas de alto horno | C98: =3.454 -> 3.454 | D98: MJ/m3
A99: 29 | B99: Gas de coque | C99: =18.423 -> 18.423 | D99: MJ/m3
A100: 30 | B100: Gas licuado | C100: =E13/$G$5 -> 26.1215833 | D100: MJ/l
A101: 31 | B101: Gas natural (promedio asociado y no asociado) | C101: =E3/1000 -> 39.083 | D101: MJ/m3
A102: 32 | B102: Gas natural asociado | C102: =E4/1000 -> 40.357 | D102: MJ/m3
A103: 33 | B103: Gas natural no asociado | C103: 37.808 | D103: MJ/m3
A104: 34 | B104: Gas seco | C104: 33.543 | D104: MJ/m3
A105: 35 | B105: Gas seco de exportación | C105: 33.804 | D105: MJ/m3
A106: 36 | B106: Gas seco de importación | C106: 38.24 | D106: MJ/m3
A107: 37 | B107: Gasóleo | C107: 42.523 | D107: MJ/m3
A108: 38 | B108: Gasolinas naturales | C108: =E15/$G$5 -> 30.07158433 | D108: MJ/l
A109: 39 | B109: Gasolinas y naftas | C109: =E16/$G$5 -> 35.30470673 | D109: MJ/l
A110: 40 | B110: Hidrógeno | C110: 119956 | D110: MJ/ton
A111: 41 | B111: Lana y seda | C111: =F48 -> 19883.5 | D111: MJ/ton
A112: 42 | B112: Leña | C112: =E39 -> 14486 | D112: MJ/ton
A113: 43 | B113: Licor negro | C113: =E58 -> 15070 | D113: MJ/ton
A114: 44 | B114: Lubricantes | C114: =E61/$G$5 -> 37.97158641 | D114: MJ/l
A115: 45 | B115: Madera (20% de humedad) | C115: =F40 -> 14000 | D115: MJ/ton
A116: 46 | B116: Madera en astillas/pellets | C116: =E41 -> 17584 | D116: MJ/ton
A117: 47 | B117: Mezcla de parafinas | C117: 43513 | D117: MJ/ton
A118: 48 | B118: Paja de arroz | C118: =F42 -> 14441.5 | D118: MJ/ton
A119: 49 | B119: Paneles-fibras-partículas y pedacería de madera | C119: =F50 -> 19046.5 | D119: MJ/ton
A120: 50 | B120: Papel ordinario o kraft | C120: =F51 -> 16744 | D120: MJ/ton
A121: 51 | B121: Petróleo crudo (promedio de la producción) | C121: =E20/$G$5 -> 39.92142769 | D121: MJ/l
A122: 52 | B122: Petróleo crudo ligero | C122: =E21/$G$5 -> 36.64443638 | D122: MJ/l
A123: 53 | B123: Petróleo crudo pesado | C123: 37.99045584 | D123: MJ/l
A124: 54 | B124: Petróleo crudo superligero | C124: 36.02174513 | D124: MJ/l
A125: 55 | B125: Querosenos | C125: 37.03440463 | D125: MJ/l
A126: 56 | B126: Turba (35 % de humedad) | C126: =F43 -> 13000 | D126: MJ/ton
A127: 57 | B127: Turbosina | C127: =E24/$G$5 -> 37.03440463 | D127: MJ/l

Sheet Ecuaciones y FE (hidden)
H2: =MATCH(Calculadora!$H$11,Calculadora!$C$11:$H$11,0) -> 6 | AH2: PCG
A3: ID | B3: SECTOR | C3: SUBSECTOR | D3: ACTIVIDAD | F3: Datos de Actividad | AH3: CH4 | AI3: 28
AH4: N20 | AI4: 265
A5: To | B5: TODOS | E5: Energía eléctrica | F5: Consumo | G5: Unidades consumo | O5: FE (tCO2/MWh) | W5: Emisiones ton CO2 | AF5: Emisiones ton CO2e | AH5: CF4 | AI5: 6630
A6: Ed1 | B6: Todos | C6: Consumo_Electricidad | D6: Electricidad_Consumida | E6: Electricidad_Consumida | F6: =INDEX(Calculadora!$C$11:$H$60,MATCH('Ecuaciones y FE'!A6,Calculadora!$B$11:$B$60,0),MATCH(Calculadora!$H$11,Calculadora!$C$11:$H$11,0)) ->  | G6: MWh | O6: 0.494 | W6: =$F$6*$O$6 ->  | AF6: =$W$6 ->  | AH6: C2F6 | AI6: 11100
E7: Combustible | F7: Consumo | G7: Unidades consumo | I7: PC | J7: Unidades PC | O7: FE CO2 (ton CO2/MJ) | P7: FE CH4 (ton CH4/MJ) | Q7: FE N2O (ton CO2/MJ) | W7: Emisiones ton CO2 | X7: Emisiones CH4 | Y7: Emisiones N2O | AF7: Emisiones ton CO2e | AH7: SF6 | AI7: 23500
A8: To2 | B8: Todos | C8: Consumo_combustibles | D8: Combustibles_consumidos | E8: Diesel | F8: =INDEX(Calculadora!$C$11:$H$60,MATCH('Ecuaciones y FE'!A8,Calculadora!$B$11:$B$60,0),MATCH(Calculadora!$H$11,Calculadora!$C$11:$H$11,0)) ->  | G8: L | I8: =Combustibles!E11 -> 6065 | J8: MJ/bl | O8: 7.41e-05 | P8: 3e-09 | Q8: 6e-10 | W8: =F8*($I$8/159)*O8 ->  | X8: =F8*(I8/159)*P8 ->  | Y8: =F8*(I8/159)*Q8 ->  | AF8: =W8+(X8*$AI$3)+(Y8*$AI$4) ->  | AH8: CHF3 | AI8: 12400
A9: To3 | B9: Todos | C9: Consumo_combustibles | D9: Combustibles_consumidos | E9: Gasolinas y Naftas | F9: =INDEX(Calculadora!$C$11:$H$60,MATCH('Ecuaciones y FE'!A9,Calculadora!$B$11:$B$60,0),MATCH(Calculadora!$H$11,Calculadora!$C$11:$H$11,0)) ->  | G9: L | I9: =Combustibles!E16 -> 5613 | J9: MJ/bl | O9: 6.93e-05 | P9: 3e-09 | Q9: 6e-10 | W9: =F9*(I9/159)*O9 ->  | X9: =F9*(I9/159)*P9 ->  | Y9: =F9*(I9/159)*Q9 ->  | AF9: =W9+(X9*AI3)+(Y9*$AI$4) ->  | AH9: C3F8 | AI9: 8900
A10: To4 | B10: Todos | C10: Consumo_combustibles | D10: Combustibles_consumidos | E10: Gas Natural | F10: =INDEX(Calculadora!$C$11:$H$60,MATCH('Ecuaciones y FE'!A10,Calculadora!$B$11:$B$60,0),MATCH(Calculadora!$H$11,Calculadora!$C$11:$H$11,0)) ->  | G10: m3 | I10: =Combustibles!E6 -> 33543 | J10: kJ/m3 | O10: 5.61e-05 | P10: 1e-09 | Q10: 1e-10 | W10: =F10*I10*O10 ->  | X10: =F10*I10*P10 ->  | Y10: =F10*I10*Q10 ->  | AF10: =W10+(X10*AI3)+(Y10*$AI$4) ->  | AH10: NF3 | AI10: 16100
A11: To5 | B11: Todos | C11: Consumo_combustibles | D11: Combustibles_consumidos | E11: Gas Licuado | F11: =INDEX(Calculadora!$C$11:$H$60,MATCH('Ecuaciones y FE'!A11,Calculadora!$B$11:$B$60,0),MATCH(Calculadora!$H$11,Calculadora!$C$11:$H$11,0)) ->  | G11: L | I11: =Combustibles!E13/Combustibles!G5 -> 26.1215833 | J11: MJ/l | O11: 6.31e-05 | P11: 6.2e-08 | Q11: 2e-10 | W11: =F11*I11*O11 ->  | X11: =F11*I11*P11 ->  | Y11: =F11*I11*Q11 ->  | AF11: =W11+(X11*AI4)+(Y11*$AI$4) -> 
AH12: C6F14 | AI12: 7910
A13: Ea | B13: ENERGÍA ELÉCTRICA | C13: Subsector generación, transmisión y distribución de electricidad | D13: Generación, transmisión y distribución de energía eléctrica | E13: Combustible | F13: Volumen consumido | G13: Unidades consumo | I13: PC | J13: Unidades PC | O13: FE_CO2 (ton/MJ) | P13: FE_CH4 (ton/MJ) | Q13: FE_N20 (ton/MJ) | W13: Emisiones CO2 | X13: Emisiones CH4 | Y13: Emisiones N2O | AF13: Emisiones CO2e
A14: Ea01 | B14: Energía | C14: Subsector generación, transmisión y distribución de electricidad | D14: Generación, transmisión y distribución de energía eléctrica | E14: Algodón | F14: =INDEX(Calculadora!$C$11:$H$60,MATCH('Ecuaciones y FE'!A14,Calculadora!$B$11:$B$60,0),MATCH(Calculadora!$H$11,Calculadora!$C$11:$H$11,0)) ->  | G14: ton | I14: =Combustibles!C71 -> 16744 | J14: MJ/ton | O14: 0.0001 | P14: 3e-08 | Q14: 4e-09 | W14: =F14*I14*O14 ->  | X14: =F14*I14*P14 ->  | Y14: =F14*I14*Q14 ->  | AF14: =W14+(X14*$AI$3)+(Y14*$AI$4) -> 
A15: Ea02 | B15: Energía | C15: Subsector generación, transmisión y distribución de electricidad | D15: Generación, transmisión y distribución de energía eléctrica | E15: Alquitrán | F15: =INDEX(Calculadora!$C$11:$H$60,MATCH('Ecuaciones y FE'!A15,Calculadora!$B$11:$B$60,0),MATCH(Calculadora!$H$11,Calculadora!$C$11:$H$11,0)) ->  | G15: ton | I15: =Combustibles!C72 -> 28000 | J15: MJ/ton | O15: 8.07e-05 | P15: 1e-09 | Q15: 1.5e-09 | AF15: =W15+(X15*$AI$3)+(Y15*$AI$4) -> 
A16: Ea03 | B16: Energía | C16: Subsector generación, transmisión y distribución de electricidad | D16: Generación, transmisión y distribución de energía eléctrica | E16: Bagazo de caña | F16: =INDEX(Calculadora!$C$11:$H$60,MATCH('Ecuaciones y FE'!A16,Calculadora!$B$11:$B$60,0),MATCH(Calculadora!$H$11,Calculadora!$C$11:$H$11,0)) ->  | G16: ton | I16: =Combustibles!C73 -> 7055 | J16: MJ/ton | O16: 0.0001 | P16: 3e-08 | Q16: 4e-09
A17: Ea04 | B17: Energía | C17: Subsector generación, transmisión y distribución de electricidad | D17: Generación, transmisión y distribución de energía eléctrica | E17: Bagazo de Malta | F17: =INDEX(Calculadora!$C$11:$H$60,MATCH('Ecuaciones y FE'!A17,Calculadora!$B$11:$B$60,0),MATCH(Calculadora!$H$11,Calculadora!$C$11:$H$11,0)) ->  | G17: ton | I17: =Combustibles!C74 -> 7056 | J17: MJ/ton | O17: 0.0001 | P17: 3e-08 | Q17: 4e-09
A18: Ea05 | B18: Energía | C18: Subsector generación, transmisión y distribución de electricidad | D18: Generación, transmisión y distribución de energía eléctrica | E18: Basura (residuos sólidos urbanos) | F18: =INDEX(Calculadora!$C$11:$H$60,MATCH('Ecuaciones y FE'!A18,Calculadora!$B$11:$B$60,0),MATCH(Calculadora!$H$11,Calculadora!$C$11:$H$11,0)) ->  | G18: ton | I18: =Combustibles!C75 -> 11600 | J18: MJ/ton | O18: 9.17e-05 | P18: 3e-08 | Q18: 4e-09
A19: Ea06 | B19: Energía | C19: Subsector generación, transmisión y distribución de electricidad | D19: Generación, transmisión y distribución de energía eléctrica | E19: Biocombustible líquido | F19: =INDEX(Calculadora!$C$11:$H$60,MATCH('Ecuaciones y FE'!A19,Calculadora!$B$11:$B$60,0),MATCH(Calculadora!$H$11,Calculadora!$C$11:$H$11,0)) ->  | G19: ton | I19: =Combustibles!C76 -> 27000 | J19: MJ/ton | O19: 7.96e-05 | P19: 3e-09 | Q19: 6e-10
A20: Ea07 | B20: Energía | C20: Subsector generación, transmisión y distribución de electricidad | D20: Generación, transmisión y distribución de energía eléctrica | E20: Biodiesel | F20: =INDEX(Calculadora!$C$11:$H$60,MATCH('Ecuaciones y FE'!A20,Calculadora!$B$11:$B$60,0),MATCH(Calculadora!$H$11,Calculadora!$C$11:$H$11,0)) ->  | G20: l | I20: =Combustibles!C77 -> 18.837 | J20: MJ/l | O20: 7.08e-05 | P20: 3e-09 | Q20: 6e-10 | W20: =F20*I20*O20 ->  | X20: =F20*I20*P20 ->  | Y20: =F20*I20*Q20 -> 
A21: Ea08 | B21: Energía | C21: Subsector generación, transmisión y distribución de electricidad | D21: Generación, transmisión y distribución de energía eléctrica | E21: Biogás (metano) | F21: =INDEX(Calculadora!$C$11:$H$60,MATCH('Ecuaciones y FE'!A21,Calculadora!$B$11:$B$60,0),MATCH(Calculadora!$H$11,Calculadora!$C$11:$H$11,0)) ->  | G21: m3 | I21: =Combustibles!C78 -> 20 | J21: MJ/m3 | O21: 5.46e-05 | P21: 1e-09 | Q21: 1e-10 | W21: =F21*I21*O21 ->  | X21: =F21*I21*P21 ->  | Y21: =F21*I21*Q21 -> 
A22: Ea09 | B22: Energía | C22: Subsector generación, transmisión y distribución de electricidad | D22: Generación, transmisión y distribución de energía eléctrica | E22: Biogasolina | F22: =INDEX(Calculadora!$C$11:$H$60,MATCH('Ecuaciones y FE'!A22,Calculadora!$B$11:$B$60,0),MATCH(Calculadora!$H$11,Calculadora!$C$11:$H$11,0)) ->  | G22: l | I22: =Combustibles!C79 -> 27.53767125 | J22: MJ/l | O22: 7.08e-05 | P22: 3e-09 | Q22: 6e-10 | W22: =F22*I22*O22 ->  | X22: =F22*I22*P22 ->  | Y22: =F22*I22*Q22 -> 
A23: Ea10 | B23: Energía | C23: Subsector generación, transmisión y distribución de electricidad | D23: Generación, transmisión y distribución de energía eléctrica | E23: Caña de maíz | F23: =INDEX(Calculadora!$C$11:$H$60,MATCH('Ecuaciones y FE'!A23,Calculadora!$B$11:$B$60,0),MATCH(Calculadora!$H$11,Calculadora!$C$11:$H$11,0)) ->  | G23: ton | I23: =Combustibles!C80 -> 14651 | J23: MJ/ton | O23: 0.0001 | P23: 3e-08 | Q23: 4e-09
A24: Ea11 | B24: Energía | C24: Subsector generación, transmisión y distribución de electricidad | D24: Generación, transmisión y distribución de energía eléctrica | E24: Carbón antracita | F24: =INDEX(Calculadora!$C$11:$H$60,MATCH('Ecuaciones y FE'!A24,Calculadora!$B$11:$B$60,0),MATCH(Calculadora!$H$11,Calculadora!$C$11:$H$11,0)) ->  | G24: ton | I24: =Combustibles!C81 -> 26700 | J24: MJ/ton | O24: 9.83e-05 | P24: 1e-09 | Q24: 1.5e-09
A25: Ea12 | B25: Energía | C25: Subsector generación, transmisión y distribución de electricidad | D25: Generación, transmisión y distribución de energía eléctrica | E25: Carbón bituminoso | F25: =INDEX(Calculadora!$C$11:$H$60,MATCH('Ecuaciones y FE'!A25,Calculadora!$B$11:$B$60,0),MATCH(Calculadora!$H$11,Calculadora!$C$11:$H$11,0)) ->  | G25: ton | I25: =Combustibles!C82 -> 25800 | J25: MJ/ton | O25: 9.46e-05 | P25: 1e-09 | Q25: 1.5e-09
A26: Ea13 | B26: Energía | C26: Subsector generación, transmisión y distribución de electricidad | D26: Generación, transmisión y distribución de energía eléctrica | E26: Carbón mineral | F26: =INDEX(Calculadora!$C$11:$H$60,MATCH('Ecuaciones y FE'!A26,Calculadora!$B$11:$B$60,0),MATCH(Calculadora!$H$11,Calculadora!$C$11:$H$11,0)) ->  | G26: ton | I26: =Combustibles!C83 -> 18900 | J26: MJ/ton | O26: 9.61e-05 | P26: 1e-09 | Q26: 1.5e-09
A27: Ea14 | B27: Energía | C27: Subsector generación, transmisión y distribución de electricidad | D27: Generación, transmisión y distribución de energía eléctrica | E27: Carbón siderúrgico de importación | F27: =INDEX(Calculadora!$C$11:$H$60,MATCH('Ecuaciones y FE'!A27,Calculadora!$B$11:$B$60,0),MATCH(Calculadora!$H$11,Calculadora!$C$11:$H$11,0)) ->  | G27: ton | I27: =Combustibles!C84 -> 28954 | J27: MJ/ton | O27: 9.46e-05 | P27: 1e-09 | Q27: 1.5e-09
A28: Ea15 | B28: Energía | C28: Subsector generación, transmisión y distribución de electricidad | D28: Generación, transmisión y distribución de energía eléctrica | E28: Carbón siderúrgico nacional | F28: =INDEX(Calculadora!$C$11:$H$60,MATCH('Ecuaciones y FE'!A28,Calculadora!$B$11:$B$60,0),MATCH(Calculadora!$H$11,Calculadora!$C$11:$H$11,0)) ->  | G28: ton | I28: =Combustibles!C85 -> 29335 | J28: MJ/ton | O28: 9.46e-05 | P28: 1e-09 | Q28: 1.5e-09
A29: Ea16 | B29: Energía | C29: Subsector generación, transmisión y distribución de electricidad | D29: Generación, transmisión y distribución de energía eléctrica | E29: Carbón térmico de importación | F29: =INDEX(Calculadora!$C$11:$H$60,MATCH('Ecuaciones y FE'!A29,Calculadora!$B$11:$B$60,0),MATCH(Calculadora!$H$11,Calculadora!$C$11:$H$11,0)) ->  | G29: ton | I29: =Combustibles!C86 -> 22543 | J29: MJ/ton | O29: 9.46e-05 | P29: 1e-09 | Q29: 1.5e-09
A30: Ea17 | B30: Energía | C30: Subsector generación, transmisión y distribución de electricidad | D30: Generación, transmisión y distribución de energía eléctrica | E30: Carbón térmico nacional | F30: =INDEX(Calculadora!$C$11:$H$60,MATCH('Ecuaciones y FE'!A30,Calculadora!$B$11:$B$60,0),MATCH(Calculadora!$H$11,Calculadora!$C$11:$H$11,0)) ->  | G30: ton | I30: =Combustibles!C87 -> 19432 | J30: MJ/ton | O30: 9.46e-05 | P30: 1e-09 | Q30: 1.5e-09
A31: Ea18 | B31: Energía | C31: Subsector generación, transmisión y distribución de electricidad | D31: Generación, transmisión y distribución de energía eléctrica | E31: Carbón vegetal | F31: =INDEX(Calculadora!$C$11:$H$60,MATCH('Ecuaciones y FE'!A31,Calculadora!$B$11:$B$60,0),MATCH(Calculadora!$H$11,Calculadora!$C$11:$H$11,0)) ->  | G31: ton | I31: =Combustibles!C88 -> 29500 | J31: MJ/ton | O31: 0.000112 | P31: 2e-07 | Q31: 4e-09
A32: Ea19 | B32: Energía | C32: Subsector generación, transmisión y distribución de electricidad | D32: Generación, transmisión y distribución de energía eléctrica | E32: Cartón ordinario-empaques-envases | F32: =INDEX(Calculadora!$C$11:$H$60,MATCH('Ecuaciones y FE'!A32,Calculadora!$B$11:$B$60,0),MATCH(Calculadora!$H$11,Calculadora!$C$11:$H$11,0)) ->  | G32: ton | I32: =Combustibles!C89 -> 14441.5 | J32: MJ/ton | O32: 0.0001 | P32: 3e-08 | Q32: 4e-09
A33: Ea20 | B33: Energía | C33: Subsector generación, transmisión y distribución de electricidad | D33: Generación, transmisión y distribución de energía eléctrica | E33: Combustóleo ligero | F33: =INDEX(Calculadora!$C$11:$H$60,MATCH('Ecuaciones y FE'!A33,Calculadora!$B$11:$B$60,0),MATCH(Calculadora!$H$11,Calculadora!$C$11:$H$11,0)) ->  | G33: l | I33: =Combustibles!C90 -> 41.86497915 | J33: MJ/l | O33: 7.74e-05 | P33: 3e-09 | Q33: 6e-10
A34: Ea21 | B34: Energía | C34: Subsector generación, transmisión y distribución de electricidad | D34: Generación, transmisión y distribución de energía eléctrica | E34: Combustóleo pesado | F34: =INDEX(Calculadora!$C$11:$H$60,MATCH('Ecuaciones y FE'!A34,Calculadora!$B$11:$B$60,0),MATCH(Calculadora!$H$11,Calculadora!$C$11:$H$11,0)) ->  | G34: l | I34: =Combustibles!C91 -> 41.86497915 | J34: MJ/l | O34: 7.74e-05 | P34: 3e-09 | Q34: 6e-10
A35: Ea22 | B35: Energía | C35: Subsector generación, transmisión y distribución de electricidad | D35: Generación, transmisión y distribución de energía eléctrica | E35: Coque de carbón | F35: =INDEX(Calculadora!$C$11:$H$60,MATCH('Ecuaciones y FE'!A35,Calculadora!$B$11:$B$60,0),MATCH(Calculadora!$H$11,Calculadora!$C$11:$H$11,0)) ->  | G35: ton | I35: =Combustibles!C92 -> 26521 | J35: MJ/ton | O35: 9.46e-05 | P35: 1e-09 | Q35: 1.5e-09
A36: Ea23 | B36: Energía | C36: Subsector generación, transmisión y distribución de electricidad | D36: Generación, transmisión y distribución de energía eléctrica | E36: Coque de petróleo | F36: =INDEX(Calculadora!$C$11:$H$60,MATCH('Ecuaciones y FE'!A36,Calculadora!$B$11:$B$60,0),MATCH(Calculadora!$H$11,Calculadora!$C$11:$H$11,0)) ->  | G36: ton | I36: =Combustibles!C93 -> 34518 | J36: MJ/ton | O36: 9.75e-05 | P36: 3e-09 | Q36: 6e-10
A37: Ea24 | B37: Energía | C37: Subsector generación, transmisión y distribución de electricidad | D37: Generación, transmisión y distribución de energía eléctrica | E37: Diáfano | F37: =INDEX(Calculadora!$C$11:$H$60,MATCH('Ecuaciones y FE'!A37,Calculadora!$B$11:$B$60,0),MATCH(Calculadora!$H$11,Calculadora!$C$11:$H$11,0)) ->  | G37: l | I37: =Combustibles!C94 -> 35.657094 | J37: MJ/l | O37: 7.19e-05 | P37: 3e-09 | Q37: 6e-10
A38: Ea25 | B38: Energía | C38: Subsector generación, transmisión y distribución de electricidad | D38: Generación, transmisión y distribución de energía eléctrica | E38: Diésel | F38: =INDEX(Calculadora!$C$11:$H$60,MATCH('Ecuaciones y FE'!A38,Calculadora!$B$11:$B$60,0),MATCH(Calculadora!$H$11,Calculadora!$C$11:$H$11,0)) ->  | G38: l | I38: =Combustibles!C95 -> 38.14770111 | J38: MJ/l | O38: 7.41e-05 | P38: 3e-09 | Q38: 6e-10
A39: Ea26 | B39: Energía | C39: Subsector generación, transmisión y distribución de electricidad | D39: Generación, transmisión y distribución de energía eléctrica | E39: Esquisto bituminoso y alquitrán | F39: =INDEX(Calculadora!$C$11:$H$60,MATCH('Ecuaciones y FE'!A39,Calculadora!$B$11:$B$60,0),MATCH(Calculadora!$H$11,Calculadora!$C$11:$H$11,0)) ->  | G39: ton | I39: =Combustibles!C96 -> 5600 | J39: MJ/ton | O39: 0.000107 | P39: 3e-10 | Q39: 1.5e-09 | W39: =F39*I39*O39 ->  | X39: =F39*I39*P39 ->  | Y39: =F39*I39*Q39 -> 
A40: Ea27 | B40: Energía | C40: Subsector generación, transmisión y distribución de electricidad | D40: Generación, transmisión y distribución de energía eléctrica | E40: Etano | F40: =INDEX(Calculadora!$C$11:$H$60,MATCH('Ecuaciones y FE'!A40,Calculadora!$B$11:$B$60,0),MATCH(Calculadora!$H$11,Calculadora!$C$11:$H$11,0)) ->  | G40: l | I40: =Combustibles!C97 -> 18.03917671 | J40: MJ/l | O40: 6.16e-05 | P40: 1e-09 | Q40: 1e-10
A41: Ea28 | B41: Energía | C41: Subsector generación, transmisión y distribución de electricidad | D41: Generación, transmisión y distribución de energía eléctrica | E41: Gas de alto horno | F41: =INDEX(Calculadora!$C$11:$H$60,MATCH('Ecuaciones y FE'!A41,Calculadora!$B$11:$B$60,0),MATCH(Calculadora!$H$11,Calculadora!$C$11:$H$11,0)) ->  | G41: m3 | I41: =Combustibles!C98 -> 3.454 | J41: MJ/m3 | O41: 0.00026 | P41: 1e-09 | Q41: 1e-10
A42: Ea29 | B42: Energía | C42: Subsector generación, transmisión y distribución de electricidad | D42: Generación, transmisión y distribución de energía eléctrica | E42: Gas de coque | F42: =INDEX(Calculadora!$C$11:$H$60,MATCH('Ecuaciones y FE'!A42,Calculadora!$B$11:$B$60,0),MATCH(Calculadora!$H$11,Calculadora!$C$11:$H$11,0)) ->  | G42: m3 | I42: =Combustibles!C99 -> 18.423 | J42: MJ/m3 | O42: 4.44e-05 | P42: 1e-09 | Q42: 1e-10
A43: Ea30 | B43: Energía | C43: Subsector generación, transmisión y distribución de electricidad | D43: Generación, transmisión y distribución de energía eléctrica | E43: Gas licuado | F43: =INDEX(Calculadora!$C$11:$H$60,MATCH('Ecuaciones y FE'!A43,Calculadora!$B$11:$B$60,0),MATCH(Calculadora!$H$11,Calculadora!$C$11:$H$11,0)) ->  | G43: l | I43: =Combustibles!C100 -> 26.1215833 | J43: MJ/l | O43: 6.31e-05 | P43: 1e-09 | Q43: 1e-10
A44: Ea31 | B44: Energía | C44: Subsector generación, transmisión y distribución de electricidad | D44: Generación, transmisión y distribución de energía eléctrica | E44: Gas natural (promedio asociado y no asociado) | F44: =INDEX(Calculadora!$C$11:$H$60,MATCH('Ecuaciones y FE'!A44,Calculadora!$B$11:$B$60,0),MATCH(Calculadora!$H$11,Calculadora!$C$11:$H$11,0)) ->  | G44: m3 | I44: =Combustibles!C101 -> 39.083 | J44: MJ/m3 | O44: 5.61e-05 | P44: 1e-09 | Q44: 1e-10
A45: Ea32 | B45: Energía | C45: Subsector generación, transmisión y distribución de electricidad | D45: Generación, transmisión y distribución de energía eléctrica | E45: Gas natural asociado | F45: =INDEX(Calculadora!$C$11:$H$60,MATCH('Ecuaciones y FE'!A45,Calculadora!$B$11:$B$60,0),MATCH(Calculadora!$H$11,Calculadora!$C$11:$H$11,0)) ->  | G45: m3 | I45: =Combustibles!C102 -> 40.357 | J45: MJ/m3 | O45: 5.61e-05 | P45: 1e-09 | Q45: 1e-10
A46: Ea33 | B46: Energía | C46: Subsector generación, transmisión y distribución de electricidad | D46: Generación, transmisión y distribución de energía eléctrica | E46: Gas natural no asociado | F46: =INDEX(Calculadora!$C$11:$H$60,MATCH('Ecuaciones y FE'!A46,Calculadora!$B$11:$B$60,0),MATCH(Calculadora!$H$11,Calculadora!$C$11:$H$11,0)) ->  | G46: m3 | I46: =Combustibles!C103 -> 37.808 | J46: MJ/m3 | O46: 5.61e-05 | P46: 1e-09 | Q46: 1e-10
A47: Ea34 | B47: Energía | C47: Subsector generación, transmisión y distribución de electricidad | D47: Generación, transmisión y distribución de energía eléctrica | E47: Gas seco | F47: =INDEX(Calculadora!$C$11:$H$60,MATCH('Ecuaciones y FE'!A47,Calculadora!$B$11:$B$60,0),MATCH(Calculadora!$H$11,Calculadora!$C$11:$H$11,0)) ->  | G47: m3 | I47: =Combustibles!C104 -> 33.543 | J47: MJ/m3 | O47: 5.61e-05 | P47: 1e-09 | Q47: 1e-10
A48: Ea35 | B48: Energía | C48: Subsector generación, transmisión y distribución de electricidad | D48: Generación, transmisión y distribución de energía eléctrica | E48: Gas seco de exportación | F48: =INDEX(Calculadora!$C$11:$H$60,MATCH('Ecuaciones y FE'!A48,Calculadora!$B$11:$B$60,0),MATCH(Calculadora!$H$11,Calculadora!$C$11:$H$11,0)) ->  | G48: m3 | I48: =Combustibles!C105 -> 33.804 | J48: MJ/m3 | O48: 5.61e-05 | P48: 1e-09 | Q48: 1e-10
A49: Ea36 | B49: Energía | C49: Subsector generación, transmisión y distribución de electricidad | D49: Generación, transmisión y distribución de energía eléctrica | E49: Gas seco de importación | F49: =INDEX(Calculadora!$C$11:$H$60,MATCH('Ecuaciones y FE'!A49,Calculadora!$B$11:$B$60,0),MATCH(Calculadora!$H$11,Calculadora!$C$11:$H$11,0)) ->  | G49: m3 | I49: =Combustibles!C106 -> 38.24 | J49: MJ/m3 | O49: 5.61e-05 | P49: 1e-09 | Q49: 1e-10
A50: Ea37 | B50: Energía | C50: Subsector generación, transmisión y distribución de electricidad | D50: Generación, transmisión y distribución de energía eléctrica | E50: Gasóleo | F50: =INDEX(Calculadora!$C$11:$H$60,MATCH('Ecuaciones y FE'!A50,Calculadora!$B$11:$B$60,0),MATCH(Calculadora!$H$11,Calculadora!$C$11:$H$11,0)) ->  | G50: m3 | I50: =Combustibles!C107 -> 42.523 | J50: MJ/m3 | O50: 7.41e-05 | P50: 3e-09 | Q50: 6e-10
A51: Ea38 | B51: Energía | C51: Subsector generación, transmisión y distribución de electricidad | D51: Generación, transmisión y distribución de energía eléctrica | E51: Gasolinas naturales | F51: =INDEX(Calculadora!$C$11:$H$60,MATCH('Ecuaciones y FE'!A51,Calculadora!$B$11:$B$60,0),MATCH(Calculadora!$H$11,Calculadora!$C$11:$H$11,0)) ->  | G51: l | I51: =Combustibles!C108 -> 30.07158433 | J51: MJ/l | O51: 6.93e-05 | P51: 3e-09 | Q51: 6e-10
A52: Ea39 | B52: Energía | C52: Subsector generación, transmisión y distribución de electricidad | D52: Generación, transmisión y distribución de energía eléctrica | E52: Gasolinas y naftas | F52: =INDEX(Calculadora!$C$11:$H$60,MATCH('Ecuaciones y FE'!A52,Calculadora!$B$11:$B$60,0),MATCH(Calculadora!$H$11,Calculadora!$C$11:$H$11,0)) ->  | G52: l | I52: =Combustibles!C109 -> 35.30470673 | J52: MJ/l | O52: 6.93e-05 | P52: 3e-09 | Q52: 6e-10
A53: Ea40 | B53: Energía | C53: Subsector generación, transmisión y distribución de electricidad | D53: Generación, transmisión y distribución de energía eléctrica | E53: Hidrógeno | F53: =INDEX(Calculadora!$C$11:$H$60,MATCH('Ecuaciones y FE'!A53,Calculadora!$B$11:$B$60,0),MATCH(Calculadora!$H$11,Calculadora!$C$11:$H$11,0)) ->  | G53: ton | I53: =Combustibles!C110 -> 119956 | J53: MJ/ton | O53: 0 | P53: 0 | Q53: 0 | W53: =F53*I53*O53 ->  | X53: =F53*I53*P53 ->  | Y53: =F53*I53*Q53 -> 
A54: Ea41 | B54: Energía | C54: Subsector generación, transmisión y distribución de electricidad | D54: Generación, transmisión y distribución de energía eléctrica | E54: Lana y seda | F54: =INDEX(Calculadora!$C$11:$H$60,MATCH('Ecuaciones y FE'!A54,Calculadora!$B$11:$B$60,0),MATCH(Calculadora!$H$11,Calculadora!$C$11:$H$11,0)) ->  | G54: ton | I54: =Combustibles!C111 -> 19883.5 | J54: MJ/ton | O54: 0.0001 | P54: 3e-08 | Q54: 4e-09
A55: Ea42 | B55: Energía | C55: Subsector generación, transmisión y distribución de electricidad | D55: Generación, transmisión y distribución de energía eléctrica | E55: Leña | F55: =INDEX(Calculadora!$C$11:$H$60,MATCH('Ecuaciones y FE'!A55,Calculadora!$B$11:$B$60,0),MATCH(Calculadora!$H$11,Calculadora!$C$11:$H$11,0)) ->  | G55: ton | I55: =Combustibles!C112 -> 14486 | J55: MJ/ton | O55: 0.000112 | P55: 3e-08 | Q55: 4e-09
A56: Ea43 | B56: Energía | C56: Subsector generación, transmisión y distribución de electricidad | D56: Generación, transmisión y distribución de energía eléctrica | E56: Licor negro | F56: =INDEX(Calculadora!$C$11:$H$60,MATCH('Ecuaciones y FE'!A56,Calculadora!$B$11:$B$60,0),MATCH(Calculadora!$H$11,Calculadora!$C$11:$H$11,0)) ->  | G56: ton | I56: =Combustibles!C113 -> 15070 | J56: MJ/ton | O56: 9.53e-05 | P56: 3e-09 | Q56: 2e-09
A57: Ea44 | B57: Energía | C57: Subsector generación, transmisión y distribución de electricidad | D57: Generación, transmisión y distribución de energía eléctrica | E57: Lubricantes | F57: =INDEX(Calculadora!$C$11:$H$60,MATCH('Ecuaciones y FE'!A57,Calculadora!$B$11:$B$60,0),MATCH(Calculadora!$H$11,Calculadora!$C$11:$H$11,0)) ->  | G57: l | I57: =Combustibles!C114 -> 37.97158641 | J57: MJ/l | O57: 7.33e-05 | P57: 3e-09 | Q57: 6e-10
A58: Ea45 | B58: Energía | C58: Subsector generación, transmisión y distribución de electricidad | D58: Generación, transmisión y distribución de energía eléctrica | E58: Madera (20% de humedad) | F58: =INDEX(Calculadora!$C$11:$H$60,MATCH('Ecuaciones y FE'!A58,Calculadora!$B$11:$B$60,0),MATCH(Calculadora!$H$11,Calculadora!$C$11:$H$11,0)) ->  | G58: ton | I58: =Combustibles!C115 -> 14000 | J58: MJ/ton | O58: 0.000112 | P58: 3e-08 | Q58: 4e-09
A59: Ea46 | B59: Energía | C59: Subsector generación, transmisión y distribución de electricidad | D59: Generación, transmisión y distribución de energía eléctrica | E59: Madera en astillas/pellets | F59: =INDEX(Calculadora!$C$11:$H$60,MATCH('Ecuaciones y FE'!A59,Calculadora!$B$11:$B$60,0),MATCH(Calculadora!$H$11,Calculadora!$C$11:$H$11,0)) ->  | G59: ton | I59: =Combustibles!C116 -> 17584 | J59: MJ/ton | O59: 0.000112 | P59: 3e-08 | Q59: 4e-09
A60: Ea47 | B60: Energía | C60: Subsector generación, transmisión y distribución de electricidad | D60: Generación, transmisión y distribución de energía eléctrica | E60: Mezcla de parafinas | F60: =INDEX(Calculadora!$C$11:$H$60,MATCH('Ecuaciones y FE'!A60,Calculadora!$B$11:$B$60,0),MATCH(Calculadora!$H$11,Calculadora!$C$11:$H$11,0)) ->  | G60: ton | I60: =Combustibles!C117 -> 43513 | J60: MJ/ton | O60: 7.33e-05 | P60: 3e-09 | Q60: 6e-10
A61: Ea48 | B61: Energía | C61: Subsector generación, transmisión y distribución de electricidad | D61: Generación, transmisión y distribución de energía eléctrica | E61: Paja de arroz | F61: =INDEX(Calculadora!$C$11:$H$60,MATCH('Ecuaciones y FE'!A61,Calculadora!$B$11:$B$60,0),MATCH(Calculadora!$H$11,Calculadora!$C$11:$H$11,0)) ->  | G61: ton | I61: =Combustibles!C118 -> 14441.5 | J61: MJ/ton | O61: 0.0001 | P61: 3e-08 | Q61: 4e-09
A62: Ea49 | B62: Energía | C62: Subsector generación, transmisión y distribución de electricidad | D62: Generación, transmisión y distribución de energía eléctrica | E62: Paneles-fibras-partículas y pedacería de madera | F62: =INDEX(Calculadora!$C$11:$H$60,MATCH('Ecuaciones y FE'!A62,Calculadora!$B$11:$B$60,0),MATCH(Calculadora!$H$11,Calculadora!$C$11:$H$11,0)) ->  | G62: ton | I62: =Combustibles!C119 -> 19046.5 | J62: MJ/ton | O62: 0.0001 | P62: 3e-08 | Q62: 4e-09
A63: Ea50 | B63: Energía | C63: Subsector generación, transmisión y distribución de electricidad | D63: Generación, transmisión y distribución de energía eléctrica | E63: Papel ordinario o kraft | F63: =INDEX(Calculadora!$C$11:$H$60,MATCH('Ecuaciones y FE'!A63,Calculadora!$B$11:$B$60,0),MATCH(Calculadora!$H$11,Calculadora!$C$11:$H$11,0)) ->  | G63: ton | I63: =Combustibles!C120 -> 16744 | J63: MJ/ton | O63: 0.0001 | P63: 3e-08 | Q63: 4e-09
A64: Ea51 | B64: Energía | C64: Subsector generación, transmisión y distribución de electricidad | D64: Generación, transmisión y distribución de energía eléctrica | E64: Petróleo crudo (promedio de la producción) | F64: =INDEX(Calculadora!$C$11:$H$60,MATCH('Ecuaciones y FE'!A64,Calculadora!$B$11:$B$60,0),MATCH(Calculadora!$H$11,Calculadora!$C$11:$H$11,0)) ->  | G64: l | I64: =Combustibles!C121 -> 39.92142769 | J64: MJ/l | O64: 7.33e-05 | P64: 3e-09 | Q64: 6e-10
A65: Ea52 | B65: Energía | C65: Subsector generación, transmisión y distribución de electricidad | D65: Generación, transmisión y distribución de energía eléctrica | E65: Petróleo crudo ligero | F65: =INDEX(Calculadora!$C$11:$H$60,MATCH('Ecuaciones y FE'!A65,Calculadora!$B$11:$B$60,0),MATCH(Calculadora!$H$11,Calculadora!$C$11:$H$11,0)) ->  | G65: l | I65: =Combustibles!C122 -> 36.64443638 | J65: MJ/l | O65: 7.33e-05 | P65: 3e-09 | Q65: 6e-10
A66: Ea53 | B66: Energía | C66: Subsector generación, transmisión y distribución de electricidad | D66: Generación, transmisión y distribución de energía eléctrica | E66: Petróleo crudo pesado | F66: =INDEX(Calculadora!$C$11:$H$60,MATCH('Ecuaciones y FE'!A66,Calculadora!$B$11:$B$60,0),MATCH(Calculadora!$H$11,Calculadora!$C$11:$H$11,0)) ->  | G66: l | I66: =Combustibles!C123 -> 37.99045584 | J66: MJ/l | O66: 7.33e-05 | P66: 3e-09 | Q66: 6e-10
A67: Ea54 | B67: Energía | C67: Subsector generación, transmisión y distribución de electricidad | D67: Generación, transmisión y distribución de energía eléctrica | E67: Petróleo crudo superligero | F67: =INDEX(Calculadora!$C$11:$H$60,MATCH('Ecuaciones y FE'!A67,Calculadora!$B$11:$B$60,0),MATCH(Calculadora!$H$11,Calculadora!$C$11:$H$11,0)) ->  | G67: l | I67: =Combustibles!C124 -> 36.02174513 | J67: MJ/l | O67: 7.33e-05 | P67: 3e-09 | Q67: 6e-10
A68: Ea55 | B68: Energía | C68: Subsector generación, transmisión y distribución de electricidad | D68: Generación, transmisión y distribución de energía eléctrica | E68: Querosenos | F68: =INDEX(Calculadora!$C$11:$H$60,MATCH('Ecuaciones y FE'!A68,Calculadora!$B$11:$B$60,0),MATCH(Calculadora!$H$11,Calculadora!$C$11:$H$11,0)) ->  | G68: l | I68: =Combustibles!C125 -> 37.03440463 | J68: MJ/l | O68: 7.19e-05 | P68: 3e-09 | Q68: 6e-10
A69: Ea56 | B69: Energía | C69: Subsector generación, transmisión y distribución de electricidad | D69: Generación, transmisión y distribución de energía eléctrica | E69: Turba (35 % de humedad) | F69: =INDEX(Calculadora!$C$11:$H$60,MATCH('Ecuaciones y FE'!A69,Calculadora!$B$11:$B$60,0),MATCH(Calculadora!$H$11,Calculadora!$C$11:$H$11,0)) ->  | G69: ton | I69: =Combustibles!C126 -> 13000 | J69: MJ/ton | O69: 0.000106 | P69: 1e-09 | Q69: 1.5e-09 | W69: =F69*I69*O69 ->  | X69: =F69*I69*P69 ->  | Y69: =F69*I69*Q69 -> 
A70: Ea57 | B70: Energía | C70: Subsector generación, transmisión y distribución de electricidad | D70: Generación, transmisión y distribución de energía eléctrica | E70: Turbosina | F70: =INDEX(Calculadora!$C$11:$H$60,MATCH('Ecuaciones y FE'!A70,Calculadora!$B$11:$B$60,0),MATCH(Calculadora!$H$11,Calculadora!$C$11:$H$11,0)) ->  | G70: l | I70: =Combustibles!C127 -> 37.03440463 | J70: MJ/l | O70: 0.000106 | P70: 1e-09 | Q70: 1.5e-09
A72: Ec | B72: ENERGÍA TÉRMICA | C72: Subsector generación, transmisión y distribución de electricidad | D72: Generación, transmisión y distribución de energía eléctrica | E72: Combustible | F72: Volumen consumido | G72: Unidades consumo | I72: PC | J72: Unidades PC | O72: FE_CO2 (ton/MJ) | P72: FE_CH4 (ton/MJ) | Q72: FE_N20 (ton/MJ) | W72: Emisiones CO2 | X72: Emisiones CH4 | Y72: Emisiones N2O | AF72: Emisiones CO2e
A73: Ec01 | B73: Energía | C73: Energía térmica | D73: Procesos térmicos | E73: Algodón_PT | F73: =INDEX(Calculadora!$C$11:$H$60,MATCH('Ecuaciones y FE'!A73,Calculadora!$B$11:$B$60,0),MATCH(Calculadora!$H$11,Calculadora!$C$11:$H$11,0)) ->  | G73: ton | I73: =Combustibles!C71 -> 16744 | J73: MJ/ton | O73: 0.0001 | P73: 3e-08 | Q73: 4e-09 | W73: =F73*I73*O73 ->  | X73: =F73*I73*P73 ->  | Y73: =F73*I73*Q73 ->  | AF73: =W73+(X73*$AI$3)+(Y73*$AI$4) -> 
A74: Ec02 | B74: Energía | C74: Energía térmica | D74: Procesos térmicos | E74: Alquitrán_PT | F74: =INDEX(Calculadora!$C$11:$H$60,MATCH('Ecuaciones y FE'!A74,Calculadora!$B$11:$B$60,0),MATCH(Calculadora!$H$11,Calculadora!$C$11:$H$11,0)) ->  | G74: ton | I74: =Combustibles!C72 -> 28000 | J74: MJ/ton | O74: 8.07e-05 | P74: 1e-09 | Q74: 1.5e-09 | AF74: =W74+(X74*$AI$3)+(Y74*$AI$4) -> 
A75: Ec03 | B75: Energía | C75: Energía térmica | D75: Procesos térmicos | E75: Bagazo de caña_PT | F75: =INDEX(Calculadora!$C$11:$H$60,MATCH('Ecuaciones y FE'!A75,Calculadora!$B$11:$B$60,0),MATCH(Calculadora!$H$11,Calculadora!$C$11:$H$11,0)) ->  | G75: ton | I75: =Combustibles!C73 -> 7055 | J75: MJ/ton | O75: 0.0001 | P75: 3e-08 | Q75: 4e-09
A76: Ec04 | B76: Energía | C76: Energía térmica | D76: Procesos térmicos | E76: Bagazo de Malta_PT | F76: =INDEX(Calculadora!$C$11:$H$60,MATCH('Ecuaciones y FE'!A76,Calculadora!$B$11:$B$60,0),MATCH(Calculadora!$H$11,Calculadora!$C$11:$H$11,0)) ->  | G76: ton | I76: =Combustibles!C74 -> 7056 | J76: MJ/ton | O76: 0.0001 | P76: 3e-08 | Q76: 4e-09
A77: Ec05 | B77: Energía | C77: Energía térmica | D77: Procesos térmicos | E77: Basura (residuos sólidos urbanos)_PT | F77: =INDEX(Calculadora!$C$11:$H$60,MATCH('Ecuaciones y FE'!A77,Calculadora!$B$11:$B$60,0),MATCH(Calculadora!$H$11,Calculadora!$C$11:$H$11,0)) ->  | G77: ton | I77: =Combustibles!C75 -> 11600 | J77: MJ/ton | O77: 9.17e-05 | P77: 3e-08 | Q77: 4e-09
A78: Ec06 | B78: Energía | C78: Energía térmica | D78: Procesos térmicos | E78: Biocombustible líquido_PT | F78: =INDEX(Calculadora!$C$11:$H$60,MATCH('Ecuaciones y FE'!A78,Calculadora!$B$11:$B$60,0),MATCH(Calculadora!$H$11,Calculadora!$C$11:$H$11,0)) ->  | G78: ton | I78: =Combustibles!C76 -> 27000 | J78: MJ/ton | O78: 7.96e-05 | P78: 3e-09 | Q78: 6e-10
A79: Ec07 | B79: Energía | C79: Energía térmica | D79: Procesos térmicos | E79: Biodiesel_PT | F79: =INDEX(Calculadora!$C$11:$H$60,MATCH('Ecuaciones y FE'!A79,Calculadora!$B$11:$B$60,0),MATCH(Calculadora!$H$11,Calculadora!$C$11:$H$11,0)) -> 0 | G79: l | I79: =Combustibles!C77 -> 18.837 | J79: MJ/l | O79: 7.08e-05 | P79: 3e-09 | Q79: 6e-10 | W79: 0 | X79: 0 | Y79: 0 | AF79: 0
A80: Ec08 | B80: Energía | C80: Energía térmica | D80: Procesos térmicos | E80: Biogás (metano)_PT | F80: =INDEX(Calculadora!$C$11:$H$60,MATCH('Ecuaciones y FE'!A80,Calculadora!$B$11:$B$60,0),MATCH(Calculadora!$H$11,Calculadora!$C$11:$H$11,0)) ->  | G80: m3 | I80: =Combustibles!C78 -> 20 | J80: MJ/m3 | O80: 5.46e-05 | P80: 1e-09 | Q80: 1e-10
A81: Ec09 | B81: Energía | C81: Energía térmica | D81: Procesos térmicos | E81: Biogasolina_PT | F81: =INDEX(Calculadora!$C$11:$H$60,MATCH('Ecuaciones y FE'!A81,Calculadora!$B$11:$B$60,0),MATCH(Calculadora!$H$11,Calculadora!$C$11:$H$11,0)) ->  | G81: l | I81: =Combustibles!C79 -> 27.53767125 | J81: MJ/l | O81: 7.08e-05 | P81: 3e-09 | Q81: 6e-10
A82: Ec10 | B82: Energía | C82: Energía térmica | D82: Procesos térmicos | E82: Caña de maíz_PT | F82: =INDEX(Calculadora!$C$11:$H$60,MATCH('Ecuaciones y FE'!A82,Calculadora!$B$11:$B$60,0),MATCH(Calculadora!$H$11,Calculadora!$C$11:$H$11,0)) ->  | G82: ton | I82: =Combustibles!C80 -> 14651 | J82: MJ/ton | O82: 0.0001 | P82: 3e-08 | Q82: 4e-09
A83: Ec11 | B83: Energía | C83: Energía térmica | D83: Procesos térmicos | E83: Carbón antracita_PT | F83: =INDEX(Calculadora!$C$11:$H$60,MATCH('Ecuaciones y FE'!A83,Calculadora!$B$11:$B$60,0),MATCH(Calculadora!$H$11,Calculadora!$C$11:$H$11,0)) ->  | G83: ton | I83: =Combustibles!C81 -> 26700 | J83: MJ/ton | O83: 9.83e-05 | P83: 1e-09 | Q83: 1.5e-09
A84: Ec12 | B84: Energía | C84: Energía térmica | D84: Procesos térmicos | E84: Carbón bituminoso_PT | F84: =INDEX(Calculadora!$C$11:$H$60,MATCH('Ecuaciones y FE'!A84,Calculadora!$B$11:$B$60,0),MATCH(Calculadora!$H$11,Calculadora!$C$11:$H$11,0)) ->  | G84: ton | I84: =Combustibles!C82 -> 25800 | J84: MJ/ton | O84: 9.46e-05 | P84: 1e-09 | Q84: 1.5e-09
A85: Ec13 | B85: Energía | C85: Energía térmica | D85: Procesos térmicos | E85: Carbón mineral_PT | F85: =INDEX(Calculadora!$C$11:$H$60,MATCH('Ecuaciones y FE'!A85,Calculadora!$B$11:$B$60,0),MATCH(Calculadora!$H$11,Calculadora!$C$11:$H$11,0)) ->  | G85: ton | I85: =Combustibles!C83 -> 18900 | J85: MJ/ton | O85: 9.61e-05 | P85: 1e-09 | Q85: 1.5e-09
A86: Ec14 | B86: Energía | C86: Energía térmica | D86: Procesos térmicos | E86: Carbón siderúrgico de importación_PT | F86: =INDEX(Calculadora!$C$11:$H$60,MATCH('Ecuaciones y FE'!A86,Calculadora!$B$11:$B$60,0),MATCH(Calculadora!$H$11,Calculadora!$C$11:$H$11,0)) ->  | G86: ton | I86: =Combustibles!C84 -> 28954 | J86: MJ/ton | O86: 9.46e-05 | P86: 1e-09 | Q86: 1.5e-09
A87: Ec15 | B87: Energía | C87: Energía térmica | D87: Procesos térmicos | E87: Carbón siderúrgico nacional_PT | F87: =INDEX(Calculadora!$C$11:$H$60,MATCH('Ecuaciones y FE'!A87,Calculadora!$B$11:$B$60,0),MATCH(Calculadora!$H$11,Calculadora!$C$11:$H$11,0)) ->  | G87: ton | I87: =Combustibles!C85 -> 29335 | J87: MJ/ton | O87: 9.46e-05 | P87: 1e-09 | Q87: 1.5e-09
A88: Ec16 | B88: Energía | C88: Energía térmica | D88: Procesos térmicos | E88: Carbón térmico de importación_PT | F88: =INDEX(Calculadora!$C$11:$H$60,MATCH('Ecuaciones y FE'!A88,Calculadora!$B$11:$B$60,0),MATCH(Calculadora!$H$11,Calculadora!$C$11:$H$11,0)) ->  | G88: ton | I88: =Combustibles!C86 -> 22543 | J88: MJ/ton | O88: 9.46e-05 | P88: 1e-09 | Q88: 1.5e-09
A89: Ec17 | B89: Energía | C89: Energía térmica | D89: Procesos térmicos | E89: Carbón térmico nacional_PT | F89: =INDEX(Calculadora!$C$11:$H$60,MATCH('Ecuaciones y FE'!A89,Calculadora!$B$11:$B$60,0),MATCH(Calculadora!$H$11,Calculadora!$C$11:$H$11,0)) ->  | G89: ton | I89: =Combustibles!C87 -> 19432 | J89: MJ/ton | O89: 9.46e-05 | P89: 1e-09 | Q89: 1.5e-09
A90: Ec18 | B90: Energía | C90: Energía térmica | D90: Procesos térmicos | E90: Carbón vegetal_PT | F90: =INDEX(Calculadora!$C$11:$H$60,MATCH('Ecuaciones y FE'!A90,Calculadora!$B$11:$B$60,0),MATCH(Calculadora!$H$11,Calculadora!$C$11:$H$11,0)) ->  | G90: ton | I90: =Combustibles!C88 -> 29500 | J90: MJ/ton | O90: 0.000112 | P90: 2e-07 | Q90: 4e-09
A91: Ec19 | B91: Energía | C91: Energía térmica | D91: Procesos térmicos | E91: Cartón ordinario-empaques-envases_PT | F91: =INDEX(Calculadora!$C$11:$H$60,MATCH('Ecuaciones y FE'!A91,Calculadora!$B$11:$B$60,0),MATCH(Calculadora!$H$11,Calculadora!$C$11:$H$11,0)) ->  | G91: ton | I91: =Combustibles!C89 -> 14441.5 | J91: MJ/ton | O91: 0.0001 | P91: 3e-08 | Q91: 4e-09
A92: Ec20 | B92: Energía | C92: Energía térmica | D92: Procesos térmicos | E92: Combustóleo ligero_PT | F92: =INDEX(Calculadora!$C$11:$H$60,MATCH('Ecuaciones y FE'!A92,Calculadora!$B$11:$B$60,0),MATCH(Calculadora!$H$11,Calculadora!$C$11:$H$11,0)) ->  | G92: l | I92: =Combustibles!C90 -> 41.86497915 | J92: MJ/l | O92: 7.74e-05 | P92: 3e-09 | Q92: 6e-10
A93: Ec21 | B93: Energía | C93: Energía térmica | D93: Procesos térmicos | E93: Combustóleo pesado_PT | F93: =INDEX(Calculadora!$C$11:$H$60,MATCH('Ecuaciones y FE'!A93,Calculadora!$B$11:$B$60,0),MATCH(Calculadora!$H$11,Calculadora!$C$11:$H$11,0)) ->  | G93: l | I93: =Combustibles!C91 -> 41.86497915 | J93: MJ/l | O93: 7.74e-05 | P93: 3e-09 | Q93: 6e-10
A94: Ec22 | B94: Energía | C94: Energía térmica | D94: Procesos térmicos | E94: Coque de carbón_PT | F94: =INDEX(Calculadora!$C$11:$H$60,MATCH('Ecuaciones y FE'!A94,Calculadora!$B$11:$B$60,0),MATCH(Calculadora!$H$11,Calculadora!$C$11:$H$11,0)) ->  | G94: ton | I94: =Combustibles!C92 -> 26521 | J94: MJ/ton | O94: 9.46e-05 | P94: 1e-09 | Q94: 1.5e-09
A95: Ec23 | B95: Energía | C95: Energía térmica | D95: Procesos térmicos | E95: Coque de petróleo_PT | F95: =INDEX(Calculadora!$C$11:$H$60,MATCH('Ecuaciones y FE'!A95,Calculadora!$B$11:$B$60,0),MATCH(Calculadora!$H$11,Calculadora!$C$11:$H$11,0)) ->  | G95: ton | I95: =Combustibles!C93 -> 34518 | J95: MJ/ton | O95: 9.75e-05 | P95: 3e-09 | Q95: 6e-10
A96: Ec24 | B96: Energía | C96: Energía térmica | D96: Procesos térmicos | E96: Diáfano_PT | F96: =INDEX(Calculadora!$C$11:$H$60,MATCH('Ecuaciones y FE'!A96,Calculadora!$B$11:$B$60,0),MATCH(Calculadora!$H$11,Calculadora!$C$11:$H$11,0)) ->  | G96: l | I96: =Combustibles!C94 -> 35.657094 | J96: MJ/l | O96: 7.19e-05 | P96: 3e-09 | Q96: 6e-10
A97: Ec25 | B97: Energía | C97: Energía térmica | D97: Procesos térmicos | E97: Diésel_PT | F97: =INDEX(Calculadora!$C$11:$H$60,MATCH('Ecuaciones y FE'!A97,Calculadora!$B$11:$B$60,0),MATCH(Calculadora!$H$11,Calculadora!$C$11:$H$11,0)) ->  | G97: l | I97: =Combustibles!C95 -> 38.14770111 | J97: MJ/l | O97: 7.41e-05 | P97: 3e-09 | Q97: 6e-10
A98: Ec26 | B98: Energía | C98: Energía térmica | D98: Procesos térmicos | E98: Esquisto bituminoso y alquitrán_PT | F98: =INDEX(Calculadora!$C$11:$H$60,MATCH('Ecuaciones y FE'!A98,Calculadora!$B$11:$B$60,0),MATCH(Calculadora!$H$11,Calculadora!$C$11:$H$11,0)) ->  | G98: ton | I98: =Combustibles!C96 -> 5600 | J98: MJ/ton | O98: 0.000107 | P98: 3e-10 | Q98: 1.5e-09
A99: Ec27 | B99: Energía | C99: Energía térmica | D99: Procesos térmicos | E99: Etano_PT | F99: =INDEX(Calculadora!$C$11:$H$60,MATCH('Ecuaciones y FE'!A99,Calculadora!$B$11:$B$60,0),MATCH(Calculadora!$H$11,Calculadora!$C$11:$H$11,0)) ->  | G99: l | I99: =Combustibles!C97 -> 18.03917671 | J99: MJ/l | O99: 6.16e-05 | P99: 1e-09 | Q99: 1e-10
A100: Ec28 | B100: Energía | C100: Energía térmica | D100: Procesos térmicos | E100: Gas de alto horno _PT | F100: =INDEX(Calculadora!$C$11:$H$60,MATCH('Ecuaciones y FE'!A100,Calculadora!$B$11:$B$60,0),MATCH(Calculadora!$H$11,Calculadora!$C$11:$H$11,0)) ->  | G100: m3 | I100: =Combustibles!C98 -> 3.454 | J100: MJ/m3 | O100: 0.00026 | P100: 1e-09 | Q100: 1e-10
A101: Ec29 | B101: Energía | C101: Energía térmica | D101: Procesos térmicos | E101: Gas de coque _PT | F101: =INDEX(Calculadora!$C$11:$H$60,MATCH('Ecuaciones y FE'!A101,Calculadora!$B$11:$B$60,0),MATCH(Calculadora!$H$11,Calculadora!$C$11:$H$11,0)) ->  | G101: m3 | I101: =Combustibles!C99 -> 18.423 | J101: MJ/m3 | O101: 4.44e-05 | P101: 1e-09 | Q101: 1e-10
A102: Ec30 | B102: Energía | C102: Energía térmica | D102: Procesos térmicos | E102: Gas licuado_PT | F102: =INDEX(Calculadora!$C$11:$H$60,MATCH('Ecuaciones y FE'!A102,Calculadora!$B$11:$B$60,0),MATCH(Calculadora!$H$11,Calculadora!$C$11:$H$11,0)) ->  | G102: l | I102: =Combustibles!C100 -> 26.1215833 | J102: MJ/l | O102: 6.31e-05 | P102: 1e-09 | Q102: 1e-10
A103: Ec31 | B103: Energía | C103: Energía térmica | D103: Procesos térmicos | E103: Gas natural (promedio asociado y no asociado)_PT | F103: =INDEX(Calculadora!$C$11:$H$60,MATCH('Ecuaciones y FE'!A103,Calculadora!$B$11:$B$60,0),MATCH(Calculadora!$H$11,Calculadora!$C$11:$H$11,0)) ->  | G103: m3 | I103: =Combustibles!C101 -> 39.083 | J103: MJ/m3 | O103: 5.61e-05 | P103: 1e-09 | Q103: 1e-10
A104: Ec32 | B104: Energía | C104: Energía térmica | D104: Procesos térmicos | E104: Gas natural asociado_PT | F104: =INDEX(Calculadora!$C$11:$H$60,MATCH('Ecuaciones y FE'!A104,Calculadora!$B$11:$B$60,0),MATCH(Calculadora!$H$11,Calculadora!$C$11:$H$11,0)) ->  | G104: m3 | I104: =Combustibles!C102 -> 40.357 | J104: MJ/m2 | O104: 5.61e-05 | P104: 1e-09 | Q104: 1e-10
A105: Ec33 | B105: Energía | C105: Energía térmica | D105: Procesos térmicos | E105: Gas natural no asociado _PT | F105: =INDEX(Calculadora!$C$11:$H$60,MATCH('Ecuaciones y FE'!A105,Calculadora!$B$11:$B$60,0),MATCH(Calculadora!$H$11,Calculadora!$C$11:$H$11,0)) ->  | G105: m3 | I105: =Combustibles!C103 -> 37.808 | J105: MJ/m1 | O105: 5.61e-05 | P105: 1e-09 | Q105: 1e-10
A106: Ec34 | B106: Energía | C106: Energía térmica | D106: Procesos térmicos | E106: Gas seco_PT | F106: =INDEX(Calculadora!$C$11:$H$60,MATCH('Ecuaciones y FE'!A106,Calculadora!$B$11:$B$60,0),MATCH(Calculadora!$H$11,Calculadora!$C$11:$H$11,0)) ->  | G106: m3 | I106: =Combustibles!C104 -> 33.543 | J106: MJ/m0 | O106: 5.61e-05 | P106: 1e-09 | Q106: 1e-10
A107: Ec35 | B107: Energía | C107: Energía térmica | D107: Procesos térmicos | E107: Gas seco de exportación_PT | F107: =INDEX(Calculadora!$C$11:$H$60,MATCH('Ecuaciones y FE'!A107,Calculadora!$B$11:$B$60,0),MATCH(Calculadora!$H$11,Calculadora!$C$11:$H$11,0)) ->  | G107: m3 | I107: =Combustibles!C105 -> 33.804 | J107: MJ/m1 | O107: 5.61e-05 | P107: 1e-09 | Q107: 1e-10
A108: Ec36 | B108: Energía | C108: Energía térmica | D108: Procesos térmicos | E108: Gas seco de importación_PT | F108: =INDEX(Calculadora!$C$11:$H$60,MATCH('Ecuaciones y FE'!A108,Calculadora!$B$11:$B$60,0),MATCH(Calculadora!$H$11,Calculadora!$C$11:$H$11,0)) ->  | G108: m3 | I108: =Combustibles!C106 -> 38.24 | J108: MJ/m3 | O108: 5.61e-05 | P108: 1e-09 | Q108: 1e-10
A109: Ec37 | B109: Energía | C109: Energía térmica | D109: Procesos térmicos | E109: Gasóleo_PT | F109: =INDEX(Calculadora!$C$11:$H$60,MATCH('Ecuaciones y FE'!A109,Calculadora!$B$11:$B$60,0),MATCH(Calculadora!$H$11,Calculadora!$C$11:$H$11,0)) ->  | G109: m3 | I109: =Combustibles!C107 -> 42.523 | J109: MJ/m3 | O109: 7.41e-05 | P109: 3e-09 | Q109: 6e-10
A110: Ec38 | B110: Energía | C110: Energía térmica | D110: Procesos térmicos | E110: Gasolinas naturales_PT | F110: =INDEX(Calculadora!$C$11:$H$60,MATCH('Ecuaciones y FE'!A110,Calculadora!$B$11:$B$60,0),MATCH(Calculadora!$H$11,Calculadora!$C$11:$H$11,0)) ->  | G110: l | I110: =Combustibles!C108 -> 30.07158433 | J110: MJ/l | O110: 6.93e-05 | P110: 3e-09 | Q110: 6e-10
A111: Ec39 | B111: Energía | C111: Energía térmica | D111: Procesos térmicos | E111: Gasolinas y naftas_PT | F111: =INDEX(Calculadora!$C$11:$H$60,MATCH('Ecuaciones y FE'!A111,Calculadora!$B$11:$B$60,0),MATCH(Calculadora!$H$11,Calculadora!$C$11:$H$11,0)) ->  | G111: l | I111: =Combustibles!C109 -> 35.30470673 | J111: MJ/l | O111: 6.93e-05 | P111: 3e-09 | Q111: 6e-10
A112: Ec40 | B112: Energía | C112: Energía térmica | D112: Procesos térmicos | E112: Hidrógeno_PT | F112: =INDEX(Calculadora!$C$11:$H$60,MATCH('Ecuaciones y FE'!A112,Calculadora!$B$11:$B$60,0),MATCH(Calculadora!$H$11,Calculadora!$C$11:$H$11,0)) ->  | G112: ton | I112: =Combustibles!C110 -> 119956 | J112: MJ/ton | O112: 0 | P112: 0 | Q112: 0
A113: Ec41 | B113: Energía | C113: Energía térmica | D113: Procesos térmicos | E113: Lana y seda_PT | F113: =INDEX(Calculadora!$C$11:$H$60,MATCH('Ecuaciones y FE'!A113,Calculadora!$B$11:$B$60,0),MATCH(Calculadora!$H$11,Calculadora!$C$11:$H$11,0)) ->  | G113: ton | I113: =Combustibles!C111 -> 19883.5 | J113: MJ/ton | O113: 0.0001 | P113: 3e-08 | Q113: 4e-09
A114: Ec42 | B114: Energía | C114: Energía térmica | D114: Procesos térmicos | E114: Leña_PT | F114: =INDEX(Calculadora!$C$11:$H$60,MATCH('Ecuaciones y FE'!A114,Calculadora!$B$11:$B$60,0),MATCH(Calculadora!$H$11,Calculadora!$C$11:$H$11,0)) ->  | G114: ton | I114: =Combustibles!C112 -> 14486 | J114: MJ/ton | O114: 0.000112 | P114: 3e-08 | Q114: 4e-09
A115: Ec43 | B115: Energía | C115: Energía térmica | D115: Procesos térmicos | E115: Licor negro_PT | F115: =INDEX(Calculadora!$C$11:$H$60,MATCH('Ecuaciones y FE'!A115,Calculadora!$B$11:$B$60,0),MATCH(Calculadora!$H$11,Calculadora!$C$11:$H$11,0)) ->  | G115: ton | I115: =Combustibles!C113 -> 15070 | J115: MJ/ton | O115: 9.53e-05 | P115: 3e-09 | Q115: 2e-09
A116: Ec44 | B116: Energía | C116: Energía térmica | D116: Procesos térmicos | E116: Lubricantes_PT | F116: =INDEX(Calculadora!$C$11:$H$60,MATCH('Ecuaciones y FE'!A116,Calculadora!$B$11:$B$60,0),MATCH(Calculadora!$H$11,Calculadora!$C$11:$H$11,0)) ->  | G116: l | I116: =Combustibles!C114 -> 37.97158641 | J116: MJ/l | O116: 7.33e-05 | P116: 3e-09 | Q116: 6e-10
A117: Ec45 | B117: Energía | C117: Energía térmica | D117: Procesos térmicos | E117: Madera (20% de humedad)_PT | F117: =INDEX(Calculadora!$C$11:$H$60,MATCH('Ecuaciones y FE'!A117,Calculadora!$B$11:$B$60,0),MATCH(Calculadora!$H$11,Calculadora!$C$11:$H$11,0)) ->  | G117: ton | I117: =Combustibles!C115 -> 14000 | J117: MJ/ton | O117: 0.000112 | P117: 3e-08 | Q117: 4e-09
A118: Ec46 | B118: Energía | C118: Energía térmica | D118: Procesos térmicos | E118: Madera en astillas/pellets_PT | F118: =INDEX(Calculadora!$C$11:$H$60,MATCH('Ecuaciones y FE'!A118,Calculadora!$B$11:$B$60,0),MATCH(Calculadora!$H$11,Calculadora!$C$11:$H$11,0)) ->  | G118: ton | I118: =Combustibles!C116 -> 17584 | J118: MJ/ton | O118: 0.000112 | P118: 3e-08 | Q118: 4e-09
A119: Ec47 | B119: Energía | C119: Energía térmica | D119: Procesos térmicos | E119: Mezcla de parafinas_PT | F119: =INDEX(Calculadora!$C$11:$H$60,MATCH('Ecuaciones y FE'!A119,Calculadora!$B$11:$B$60,0),MATCH(Calculadora!$H$11,Calculadora!$C$11:$H$11,0)) ->  | G119: ton | I119: =Combustibles!C117 -> 43513 | J119: MJ/ton | O119: 7.33e-05 | P119: 3e-09 | Q119: 6e-10
A120: Ec48 | B120: Energía | C120: Energía térmica | D120: Procesos térmicos | E120: Paja de arroz_PT | F120: =INDEX(Calculadora!$C$11:$H$60,MATCH('Ecuaciones y FE'!A120,Calculadora!$B$11:$B$60,0),MATCH(Calculadora!$H$11,Calculadora!$C$11:$H$11,0)) ->  | G120: ton | I120: =Combustibles!C118 -> 14441.5 | J120: MJ/ton | O120: 0.0001 | P120: 3e-08 | Q120: 4e-09
A121: Ec49 | B121: Energía | C121: Energía térmica | D121: Procesos térmicos | E121: Paneles-fibras-partículas y pedacería de madera_PT | F121: =INDEX(Calculadora!$C$11:$H$60,MATCH('Ecuaciones y FE'!A121,Calculadora!$B$11:$B$60,0),MATCH(Calculadora!$H$11,Calculadora!$C$11:$H$11,0)) ->  | G121: ton | I121: =Combustibles!C119 -> 19046.5 | J121: MJ/ton | O121: 0.0001 | P121: 3e-08 | Q121: 4e-09
A122: Ec50 | B122: Energía | C122: Energía térmica | D122: Procesos térmicos | E122: Papel ordinario o kraft_PT | F122: =INDEX(Calculadora!$C$11:$H$60,MATCH('Ecuaciones y FE'!A122,Calculadora!$B$11:$B$60,0),MATCH(Calculadora!$H$11,Calculadora!$C$11:$H$11,0)) ->  | G122: ton | I122: =Combustibles!C120 -> 16744 | J122: MJ/ton | O122: 0.0001 | P122: 3e-08 | Q122: 4e-09
A123: Ec51 | B123: Energía | C123: Energía térmica | D123: Procesos térmicos | E123: Petróleo crudo (promedio de la producción)_PT | F123: =INDEX(Calculadora!$C$11:$H$60,MATCH('Ecuaciones y FE'!A123,Calculadora!$B$11:$B$60,0),MATCH(Calculadora!$H$11,Calculadora!$C$11:$H$11,0)) ->  | G123: l | I123: =Combustibles!C121 -> 39.92142769 | J123: MJ/l | O123: 7.33e-05 | P123: 3e-09 | Q123: 6e-10
A124: Ec52 | B124: Energía | C124: Energía térmica | D124: Procesos térmicos | E124: Petróleo crudo ligero_PT | F124: =INDEX(Calculadora!$C$11:$H$60,MATCH('Ecuaciones y FE'!A124,Calculadora!$B$11:$B$60,0),MATCH(Calculadora!$H$11,Calculadora!$C$11:$H$11,0)) ->  | G124: l | I124: =Combustibles!C122 -> 36.64443638 | J124: MJ/l | O124: 7.33e-05 | P124: 3e-09 | Q124: 6e-10
A125: Ec53 | B125: Energía | C125: Energía térmica | D125: Procesos térmicos | E125: Petróleo crudo pesado_PT | F125: =INDEX(Calculadora!$C$11:$H$60,MATCH('Ecuaciones y FE'!A125,Calculadora!$B$11:$B$60,0),MATCH(Calculadora!$H$11,Calculadora!$C$11:$H$11,0)) ->  | G125: l | I125: =Combustibles!C123 -> 37.99045584 | J125: MJ/l | O125: 7.33e-05 | P125: 3e-09 | Q125: 6e-10
A126: Ec54 | B126: Energía | C126: Energía térmica | D126: Procesos térmicos | E126: Petróleo crudo superligero_PT | F126: =INDEX(Calculadora!$C$11:$H$60,MATCH('Ecuaciones y FE'!A126,Calculadora!$B$11:$B$60,0),MATCH(Calculadora!$H$11,Calculadora!$C$11:$H$11,0)) ->  | G126: l | I126: =Combustibles!C124 -> 36.02174513 | J126: MJ/l | O126: 7.33e-05 | P126: 3e-09 | Q126: 6e-10
A127: Ec55 | B127: Energía | C127: Energía térmica | D127: Procesos térmicos | E127: Querosenos_PT | F127: =INDEX(Calculadora!$C$11:$H$60,MATCH('Ecuaciones y FE'!A127,Calculadora!$B$11:$B$60,0),MATCH(Calculadora!$H$11,Calculadora!$C$11:$H$11,0)) ->  | G127: l | I127: =Combustibles!C125 -> 37.03440463 | J127: MJ/l | O127: 7.19e-05 | P127: 3e-09 | Q127: 6e-10
A128: Ec56 | B128: Energía | C128: Energía térmica | D128: Procesos térmicos | E128: Turba (35 % de humedad)_PT | F128: =INDEX(Calculadora!$C$11:$H$60,MATCH('Ecuaciones y FE'!A128,Calculadora!$B$11:$B$60,0),MATCH(Calculadora!$H$11,Calculadora!$C$11:$H$11,0)) ->  | G128: ton | I128: =Combustibles!C126 -> 13000 | J128: MJ/ton | O128: 0.000106 | P128: 1e-09 | Q128: 1.5e-09
A129: Ec57 | B129: Energía | C129: Energía térmica | D129: Procesos térmicos | E129: Turbosina_PT | F129: =INDEX(Calculadora!$C$11:$H$60,MATCH('Ecuaciones y FE'!A129,Calculadora!$B$11:$B$60,0),MATCH(Calculadora!$H$11,Calculadora!$C$11:$H$11,0)) ->  | G129: l | I129: =Combustibles!C127 -> 37.03440463 | J129: MJ/l | O129: 0.000106 | P129: 1e-09 | Q129: 1.5e-09
A131: Eb | B131: ENERGÍA HIDROCARBUROS | C131: Subsector explotación, producción, transporte y distribución de hidrocarburos | D131: Actividad | E131: Categoría | F131: Dato de Actividad | G131: Unidades Fuente Emisión | H131: Unidades Factor de Emisión | O131: FE_CO2 (ton/un) | P131: FE_CH4 (ton/un) | Q131: FE_N20 (ton/un) | W131: Emisiones CO2 | X131: Emisiones CH4 | Y131: Emisiones N2O | AF131: Emisiones CO2e | AL131: Emisiones CH4 inferior | AM131: Emisiones CH4 superior | AN131: Emisiones CO2 inferior | AO131: Emisiones CO2 superior | AP131: Emisiones N2O inferior | AQ131: Emisiones N2O superior
A132: Eb01 | B132: Energía | C132: Subsector explotación, producción, transporte y distribución de hidrocarburos | D132: Extracción_Petróleo_Convencional_y_No_Convencional | E132: Emisiones Fugitivas Petróleo (costeras) | F132: =INDEX(Calculadora!$C$11:$H$60,MATCH('Ecuaciones y FE'!A132,Calculadora!$B$11:$B$60,0),MATCH(Calculadora!$H$11,Calculadora!$C$11:$H$11,0)) ->  | G132: miles de m3 de producción de petróleo | H132: t por miles de m3 de producción de petróleo | O132: 4.3 | P132: 60 | Q132: 0 | W132: =F132*O132 ->  | X132: =F132*P132 ->  | Y132: =F132*Q132 ->  | AF132: =W132+(X132*$AI$3)+(Y132*$AI$4) ->  | AL132: 0.0015 | AM132: 60 | AN132: 0.00011 | AO132: 4.3 | AP132: 0 | AQ132: 0
A133: Eb02 | B133: Energía | C133: Subsector explotación, producción, transporte y distribución de hidrocarburos | D133: Extracción_Petróleo_Convencional_y_No_Convencional | E133: Emisiones Fugitivas Petróleo (alta mar) | F133: =INDEX(Calculadora!$C$11:$H$60,MATCH('Ecuaciones y FE'!A133,Calculadora!$B$11:$B$60,0),MATCH(Calculadora!$H$11,Calculadora!$C$11:$H$11,0)) ->  | G133: miles de m3 de producción de petróleo | H133: t por miles de m3 de producción de petróleo | O133: 4.3e-05 | P133: 0.00059 | Q133: 0 | AF133: =W133+(X133*$AI$3)+(Y133*$AI$4) ->  | AL133: 0.00059 | AM133: 0 | AN133: 4.3e-05 | AO133: 0 | AP133: 0 | AQ133: 0
A134: Eb03 | B134: Energía | C134: Subsector explotación, producción, transporte y distribución de hidrocarburos | D134: Extracción_Petróleo_Convencional_y_No_Convencional | E134: Emisiones Fugitivas Petróleo por Venteo | F134: =INDEX(Calculadora!$C$11:$H$60,MATCH('Ecuaciones y FE'!A134,Calculadora!$B$11:$B$60,0),MATCH(Calculadora!$H$11,Calculadora!$C$11:$H$11,0)) ->  | G134: miles de m3 de producción de petróleo | H134: t por miles de m3 de producción de petróleo | O134: 0.13 | P134: 0.99 | Q134: 0 | AL134: 0.72 | AM134: 0.99 | AN134: 0.095 | AO134: 0.13 | AP134: 0 | AQ134: 0
A135: Eb04 | B135: Energía | C135: Subsector explotación, producción, transporte y distribución de hidrocarburos | D135: Extracción_Petróleo_Convencional_y_No_Convencional | E135: Emisiones Fugitivas Petróleo por Quema en Antorcha | F135: =INDEX(Calculadora!$C$11:$H$60,MATCH('Ecuaciones y FE'!A135,Calculadora!$B$11:$B$60,0),MATCH(Calculadora!$H$11,Calculadora!$C$11:$H$11,0)) ->  | G135: miles de m3 de producción de petróleo | H135: t por miles de m3 de producción de petróleo | O135: 56 | P135: 0.034 | Q135: 0.00088 | AL135: 0.025 | AM135: 0.034 | AN135: 41 | AO135: 56 | AP135: 0.00064 | AQ135: 0.00088
A136: Eb05 | B136: Energía | C136: Subsector explotación, producción, transporte y distribución de hidrocarburos | D136: Extracción_Gas_Asociado_y_No_Asociado | E136: Emisiones Fugitivas Gas por Venteo | F136: =INDEX(Calculadora!$C$11:$H$60,MATCH('Ecuaciones y FE'!A136,Calculadora!$B$11:$B$60,0),MATCH(Calculadora!$H$11,Calculadora!$C$11:$H$11,0)) ->  | G136: millones de m3 de producción de gas | H136: t por millon de m3 de producción de gas | O136: 0.18 | P136: 24 | Q136: 0 | AL136: 17 | AM136: 23 | AN136: 5.3 | AO136: 7.3 | AP136: 0 | AQ136: 0
A137: Eb06 | B137: Energía | C137: Subsector explotación, producción, transporte y distribución de hidrocarburos | D137: Extracción_Gas_Asociado_y_No_Asociado | E137: Emisiones Fugitivas Gas por Quema en Antorcha | F137: =INDEX(Calculadora!$C$11:$H$60,MATCH('Ecuaciones y FE'!A137,Calculadora!$B$11:$B$60,0),MATCH(Calculadora!$H$11,Calculadora!$C$11:$H$11,0)) ->  | G137: millones de m3 de producción de gas | H137: t por millon de m3 de producción de gas | O137: 1.6 | P137: 0.001 | Q137: 2.9e-05 | AL137: 0.14 | AM137: 0.19 | AN137: 22 | AO137: 30 | AP137: 0.00046 | AQ137: 0.00063
A138: Eb07 | B138: Energía | C138: Subsector explotación, producción, transporte y distribución de hidrocarburos | D138: Perforación_pozos_petróleo_y_gas | E138: Emisiones por Quema en Antorcha y Venteo_Perforación | F138: =INDEX(Calculadora!$C$11:$H$60,MATCH('Ecuaciones y FE'!A138,Calculadora!$B$11:$B$60,0),MATCH(Calculadora!$H$11,Calculadora!$C$11:$H$11,0)) ->  | G138: número de pozos perforados | H138: t por pozo perforado | O138: 1.7 | P138: 0.56 | Q138: 0 | AL138: 7.9 | AM138: 130 | AN138: 0.54 | AO138: 9 | AP138: 0 | AQ138: 0
A139: Eb08 | B139: Energía | C139: Subsector explotación, producción, transporte y distribución de hidrocarburos | D139: Pozos_en_producción_petróleo_y_gas | E139: Emisiones por Quema en Antorcha y Venteo_Producción | F139: =INDEX(Calculadora!$C$11:$H$60,MATCH('Ecuaciones y FE'!A139,Calculadora!$B$11:$B$60,0),MATCH(Calculadora!$H$11,Calculadora!$C$11:$H$11,0)) ->  | G139: número de pozos en producción | H139: t por pozo en producción | O139: 0.032 | P139: 1.8 | Q139: 0 | AL139: 3.5 | AM139: 4.8 | AN139: 0.22 | AO139: 0.3 | AP139: 0 | AQ139: 0
A140: Eb09 | B140: Energía | C140: Subsector explotación, producción, transporte y distribución de hidrocarburos | D140: Procesamiento_Gas | E140: Emisiones fugitivas_Procesamiento de Gas | F140: =INDEX(Calculadora!$C$11:$H$60,MATCH('Ecuaciones y FE'!A140,Calculadora!$B$11:$B$60,0),MATCH(Calculadora!$H$11,Calculadora!$C$11:$H$11,0)) ->  | G140: millones de m3 de carga de gas de crudo | H140: t por millon de m3 de carga de gas de crudo | O140: 0.018 | P140: 0.22 | Q140: 0 | AL140: 0.016 | AM140: 0.022 | AN140: 27 | AO140: 37 | AP140: 0.00024 | AQ140: 0.00038
A141: Eb10 | B141: Energía | C141: Subsector explotación, producción, transporte y distribución de hidrocarburos | D141: Procesamiento_Gas | E141: Emisiones por Quema en Antorcha_Procesamiento de Gas | F141: =INDEX(Calculadora!$C$11:$H$60,MATCH('Ecuaciones y FE'!A141,Calculadora!$B$11:$B$60,0),MATCH(Calculadora!$H$11,Calculadora!$C$11:$H$11,0)) ->  | G141: millones de m3 de carga de gas de crudo | H141: t por millon de m3 de carga de gas de crudo | O141: 4.9 | P141: 0.0033 | Q141: 7.4e-05 | AL141: 0.18 | AM141: 3 | AN141: 0.029 | AO141: 0.48 | AP141: 0 | AQ141: 0
A142: Eb11 | B142: Energía | C142: Subsector explotación, producción, transporte y distribución de hidrocarburos | D142: Procesamiento_Gas | E142: Emisiones por Venteo_Procesamiento de Gas | F142: =INDEX(Calculadora!$C$11:$H$60,MATCH('Ecuaciones y FE'!A142,Calculadora!$B$11:$B$60,0),MATCH(Calculadora!$H$11,Calculadora!$C$11:$H$11,0)) ->  | G142: millones de m3 de carga de gas de crudo | H142: t por millon de m3 de carga de gas de crudo | O142: 150 | P142: 0 | Q142: 0 | AL142: 2.2 | AM142: 37 | AN142: 0.28 | AO142: 4.7 | AP142: 0 | AQ142: 0
A143: Eb12 | B143: Energía | C143: Subsector explotación, producción, transporte y distribución de hidrocarburos | D143: Transporte_Petróleo | E143: Transporte en tuberías | F143: =INDEX(Calculadora!$C$11:$H$60,MATCH('Ecuaciones y FE'!A143,Calculadora!$B$11:$B$60,0),MATCH(Calculadora!$H$11,Calculadora!$C$11:$H$11,0)) ->  | G143: miles de m3 de petróleo transportado | H143: t por miles de m3 de petróleo transportado | O143: 0.00049 | P143: 0.0054 | Q143: 0 | AL143: 8.7 | AM143: 12 | AN143: 1.8 | AO143: 2.5 | AP143: 0 | AQ143: 0
A144: Eb13 | B144: Energía | C144: Subsector explotación, producción, transporte y distribución de hidrocarburos | D144: Transporte_Petróleo | E144: Transporte en camiones y vagones cisterna | F144: =INDEX(Calculadora!$C$11:$H$60,MATCH('Ecuaciones y FE'!A144,Calculadora!$B$11:$B$60,0),MATCH(Calculadora!$H$11,Calculadora!$C$11:$H$11,0)) ->  | G144: miles de m3 de petróleo transportado | H144: t por miles de m3 de petróleo transportado | O144: 0.0023 | P144: 0.025 | Q144: 0 | AL144: 0.021 | AM144: 0.029 | AN144: 34 | AO144: 47 | AP144: 0.00054 | AQ144: 0.00074
A145: Eb14 | B145: Energía | C145: Subsector explotación, producción, transporte y distribución de hidrocarburos | D145: Transporte_Gas_almacenamiento | E145: Almacenamiento de Gas Natural | F145: =INDEX(Calculadora!$C$11:$H$60,MATCH('Ecuaciones y FE'!A145,Calculadora!$B$11:$B$60,0),MATCH(Calculadora!$H$11,Calculadora!$C$11:$H$11,0)) ->  | G145: millones de m3 de gas comercializable | H145: t por millón de m3 de gas comercializable | O145: 0.00026 | P145: 0.058 | Q145: 0 | AL145: 0.38 | AM145: 24 | AN145: 0.014 | AO145: 0.18 | AP145: 0 | AQ145: 0
A146: Eb15 | B146: Energía | C146: Subsector explotación, producción, transporte y distribución de hidrocarburos | D146: Distribución_gas_natural_ductos | E146: Emisiones Fugitivas Distribución Gas Natural | F146: =INDEX(Calculadora!$C$11:$H$60,MATCH('Ecuaciones y FE'!A146,Calculadora!$B$11:$B$60,0),MATCH(Calculadora!$H$11,Calculadora!$C$11:$H$11,0)) ->  | G146: millones de m3 de gas comercializable | H146: t por millón de m3 de gas comercializable | O146: 0.002 | P146: 1.1 | Q146: 0 | AL146: 0.00076 | AM146: 0.001 | AN146: 1.2 | AO146: 1.6 | AP146: 2.1e-05 | AQ146: 2.9e-05
A147: Eb16 | B147: Energía | C147: Subsector explotación, producción, transporte y distribución de hidrocarburos | D147: Distribución_gas_natural_ductos | E147: Emisiones por Venteo Distribución Gas Natural | F147: =INDEX(Calculadora!$C$11:$H$60,MATCH('Ecuaciones y FE'!A147,Calculadora!$B$11:$B$60,0),MATCH(Calculadora!$H$11,Calculadora!$C$11:$H$11,0)) ->  | G147: millones de m3 de gas comercializable | H147: t por millón de m3 de gas comercializable | O147: 0.0073 | P147: 0.74 | Q147: 0 | AL147: 0.033 | AM147: 0.56 | AN147: 0.1 | AO147: 1.7 | AP147: 0 | AQ147: 0
A148: Eb17 | B148: Energía | C148: Subsector explotación, producción, transporte y distribución de hidrocarburos | D148: Suministro_gas_natural_al_consumidor_final | E148: Emisiones fugitivas por suministro al consumidor final | F148: =INDEX(Calculadora!$C$11:$H$60,MATCH('Ecuaciones y FE'!A148,Calculadora!$B$11:$B$60,0),MATCH(Calculadora!$H$11,Calculadora!$C$11:$H$11,0)) ->  | G148: millones de m3 de ventas de servicios | H148: t por millón de m3 de ventas de servicios | O148: 0.14 | P148: 2.5 | Q148: 0 | AL148: 0.051 | AM148: 0.85 | AN148: 9 | AO148: 150 | AP148: 6.8e-05 | AQ148: 0.0011
A150: Ta | B150: TRANSPORTE AÉREO | C150: Subsector | D150: Actividad | E150: Combustible | F150: Consumo | G150: Unidades consumo | I150: PC | O150: FE_CO2 (ton/MJ) | P150: FE_CH4 (ton/MJ) | Q150: FE_N20 (ton/MJ) | R150: FE_N0x (kg/TJ) | W150: Emisiones CO2 | X150: Emisiones CH4 | Y150: Emisiones N2O | AF150: Emisiones CO2e
A151: Ta1 | B151: Transporte | C151: Transporte_Aéreo | D151: Regular_de_carga_y_pasajeros | E151: Turbosina | F151: =INDEX(Calculadora!$C$11:$H$60,MATCH('Ecuaciones y FE'!A151,Calculadora!$B$11:$B$60,0),MATCH(Calculadora!$H$11,Calculadora!$C$11:$H$11,0)) ->  | G151: L | I151: =Combustibles!$H$75 -> 37.03440463 | J151: MJ/l | O151: 7.15e-05 | P151: 3e-09 | Q151: 6e-10 | R151: 250 | W151: =$F$151*$I$151*$O$151 ->  | X151: =$F$151*$I$151*$P$151 ->  | Y151: =$F$151*$I$151*$Q$151 ->  | AF151: =W151+(X151*AI3)+(Y151*$AI$4)+Z151 -> 
A152: Ta2 | B152: Transporte | C152: Transporte_Aéreo | D152: No_regular_de_carga_y_pasajeros | E152: Turbosina | F152: =INDEX(Calculadora!$C$11:$H$60,MATCH('Ecuaciones y FE'!A152,Calculadora!$B$11:$B$60,0),MATCH(Calculadora!$H$11,Calculadora!$C$11:$H$11,0)) ->  | G152: L | I152: =Combustibles!$H$75 -> 37.03440463 | J152: MJ/l | O152: 7.15e-05 | P152: 3e-09 | Q152: 6e-10 | R152: 250 | W152: =$F$152*$I$152*$O$152 ->  | X152: =$F$152*$I$152*$P$152 ->  | Y152: =$F$152*$I$152*$Q$152 ->  | AF152: =W152+(X152*AI3)+(Y152*$AI$4)+Z152 -> 
A153: Ta3 | B153: Transporte | C153: Transporte_Aéreo | D153: Servicios_de_transporte_aéreo | E153: Turbosina | F153: =INDEX(Calculadora!$C$11:$H$60,MATCH('Ecuaciones y FE'!A153,Calculadora!$B$11:$B$60,0),MATCH(Calculadora!$H$11,Calculadora!$C$11:$H$11,0)) ->  | G153: L | I153: =Combustibles!$H$75 -> 37.03440463 | J153: MJ/l | O153: 7.15e-05 | P153: 3e-09 | Q153: 6e-10 | R153: 250 | W153: =$F$153*$I$153*$O$153 ->  | X153: =$F$153*$I$153*$P$153 ->  | Y153: =$F$153*$I$153*$Q$153 ->  | AF153: =W153+(X153*AI3)+(Y153*$AI$4)+Z153 -> 
A154: Tb | B154: TRANSPORTE FERROVIARIO | C154: Transporte_Ferroviario | F154: Combustible | G154: Unidades consumo | I154: PC | J154: Unidades PC | O154: FE_CO2 (ton/MJ) | P154: FE_CH4 (ton/MJ) | Q154: FE_N20 (ton/MJ) | W154: Emisiones CO2 | X154: Emisiones CH4 | Y154: Emisiones N2O | AF154: Emisiones CO2e
A155: Tb1 | B155: Transporte | C155: Transporte_Ferroviario | D155: Ferrocarril_de_carga_y_pasajeros | E155: Diesel | F155: =INDEX(Calculadora!$C$11:$H$60,MATCH('Ecuaciones y FE'!A155,Calculadora!$B$11:$B$60,0),MATCH(Calculadora!$H$11,Calculadora!$C$11:$H$11,0)) ->  | G155: L | I155: =5650/$B$678 -> 35.53742972 | J155: (MJ/l) | O155: 7.41e-05 | P155: 4.15e-09 | Q155: 2.86e-08 | W155: =$F$155*($I$155)*$O$155 ->  | X155: =$F$155*($I$155)*$P$155 ->  | Y155: =$F$155*($I$155)*$Q$155 ->  | AF155: =W155+(X155*AI3)+(Y155*$AI$4) -> 
A156: Tc | B156: TRANSPORTE MARÍTIMO | C156: Transporte_Marítimo | O156: FE_CO2 (ton/MJ) | P156: FE_CH4 (ton/MJ) | Q156: FE_N20 (ton/MJ) | W156: Emisiones CO2 | X156: Emisiones CH4 | Y156: Emisiones N2O | AF156: Emisiones CO2e
A157: Tc1 | B157: Transporte | C157: Transporte_Marítimo | D157: Marítimo_de_carga_y_pasajeros | E157: Diesel | F157: =INDEX(Calculadora!$C$11:$H$60,MATCH('Ecuaciones y FE'!A157,Calculadora!$B$11:$B$60,0),MATCH(Calculadora!$H$11,Calculadora!$C$11:$H$11,0)) ->  | G157: L | I157: =Combustibles!H71 -> 38.14770111 | J157: (MJ/l) | O157: 7.41e-05 | P157: 0 | Q157: 0 | W157: =$F$157*($I$157)*$O$157 ->  | AF157: =W157 -> 
A158: Tc2 | B158: Transporte | C158: Transporte_Marítimo | D158: Marítimo_de_carga_y_pasajeros | E158: Gasolinas y Naftas | F158: =INDEX(Calculadora!$C$11:$H$60,MATCH('Ecuaciones y FE'!A158,Calculadora!$B$11:$B$60,0),MATCH(Calculadora!$H$11,Calculadora!$C$11:$H$11,0)) ->  | G158: L | I158: =Combustibles!H74 -> 35.30470673 | J158: (MJ/l) | O158: 6.93e-05 | P158: 0 | Q158: 0 | W158: =$F$158*($I$158)*$O$158 ->  | X158: =$F$158*($I$158)*$P$158 ->  | Y158: =$F$158*($I$158)*$Q$158 ->  | AF158: =W158+(X158*AI3)+(Y158*$AI$4) -> 
A159: Tc3 | B159: Transporte | C159: Transporte_Marítimo | D159: Marítimo_de_carga_y_pasajeros | E159: Combustoleo | F159: =INDEX(Calculadora!$C$11:$H$60,MATCH('Ecuaciones y FE'!A159,Calculadora!$B$11:$B$60,0),MATCH(Calculadora!$H$11,Calculadora!$C$11:$H$11,0)) ->  | G159: L | I159: =Combustibles!H76 -> 41.86497915 | J159: MJ/l | O159: 7.74e-05 | P159: 7e-09 | Q159: 2e-09 | W159: =$F$159*($I$159)*$O$159 ->  | X159: =$F$159*($I$159)*$P$159 ->  | Y159: =$F$159*($I$159)*$Q$159 ->  | AF159: =W159+(X159*AI3)+(Y159*$AI$4) -> 
A160: Td | B160: TRANSPORTE TERRESTRE | O160: FE_CO2 (ton/MJ) | P160: FE_CH4 (ton/MJ) | Q160: FE_N20 (ton/MJ) | W160: Emisiones CO2 | X160: Emisiones CH4 | Y160: Emisiones N2O | AF160: Emisiones CO2e
A161: Td01 | B161: Transporte | C161: Transporte_Terrestre | D161: Automoviles_Motocicletas_Montacargas | E161: Diesel_A | F161: =INDEX(Calculadora!$C$11:$H$60,MATCH('Ecuaciones y FE'!A161,Calculadora!$B$11:$B$60,0),MATCH(Calculadora!$H$11,Calculadora!$C$11:$H$11,0)) ->  | G161: L | I161: =Combustibles!H71 -> 38.14770111 | J161: (MJ/l) | O161: 7.41e-05 | P161: 3.9e-09 | Q161: 3.9e-09 | W161: =$F161*($I161)*O161 ->  | X161: =$F161*($I161)*P161 ->  | Y161: =$F161*($I161)*Q161 ->  | AF161: =W161+(X161*$AI$3)+(Y161*$AI$4) -> 
A162: Td02 | B162: Transporte | C162: Transporte_Terrestre | D162: Automoviles_Motocicletas_Montacargas | E162: Gas Natural_A | F162: =INDEX(Calculadora!$C$11:$H$60,MATCH('Ecuaciones y FE'!A162,Calculadora!$B$11:$B$60,0),MATCH(Calculadora!$H$11,Calculadora!$C$11:$H$11,0)) ->  | G162: m3 | I162: =Combustibles!H72 -> 33.543 | J162: MJ/m3 | O162: 5.61e-05 | P162: 9.2e-08 | Q162: 3e-09 | W162: =$F162*($I162)*O162 ->  | X162: =$F162*($I162)*P162 ->  | Y162: =$F162*($I162)*Q162 ->  | AF162: =W162+(X162*$AI$3)+(Y162*$AI$4) -> 
A163: Td03 | B163: Transporte | C163: Transporte_Terrestre | D163: Automoviles_Motocicletas_Montacargas | E163: Gas_licuado_A | F163: =INDEX(Calculadora!$C$11:$H$60,MATCH('Ecuaciones y FE'!A163,Calculadora!$B$11:$B$60,0),MATCH(Calculadora!$H$11,Calculadora!$C$11:$H$11,0)) ->  | G163: L | I163: =Combustibles!H73 -> 26.1215833 | J163: (MJ/l) | O163: 6.31e-05 | P163: 6.2e-08 | Q163: 2e-10
A164: Td04 | B164: Transporte | C164: Transporte_Terrestre | D164: Automoviles_Motocicletas_Montacargas | E164: Gasolina_A | F164: =INDEX(Calculadora!$C$11:$H$60,MATCH('Ecuaciones y FE'!A164,Calculadora!$B$11:$B$60,0),MATCH(Calculadora!$H$11,Calculadora!$C$11:$H$11,0)) ->  | G164: L | I164: =Combustibles!H74 -> 35.30470673 | J164: (MJ/l) | O164: 6.93e-05 | P164: 2.5e-08 | Q164: 8e-09
A165: Td05 | B165: Transporte | C165: Transporte_Terrestre | D165: Camionetas_CamionesLigeros | E165: Diesel_B | F165: =INDEX(Calculadora!$C$11:$H$60,MATCH('Ecuaciones y FE'!A165,Calculadora!$B$11:$B$60,0),MATCH(Calculadora!$H$11,Calculadora!$C$11:$H$11,0)) ->  | G165: L | I165: =Combustibles!H71 -> 38.14770111 | J165: (MJ/l) | O165: 7.41e-05 | P165: 3.9e-09 | Q165: 3.9e-09
A166: Td06 | B166: Transporte | C166: Transporte_Terrestre | D166: Camionetas_CamionesLigeros | E166: Gas Natural_B | F166: =INDEX(Calculadora!$C$11:$H$60,MATCH('Ecuaciones y FE'!A166,Calculadora!$B$11:$B$60,0),MATCH(Calculadora!$H$11,Calculadora!$C$11:$H$11,0)) ->  | G166: m3 | I166: =Combustibles!H72 -> 33.543 | J166: MJ/m3 | O166: 5.61e-05 | P166: 9.2e-08 | Q166: 3e-09
A167: Td07 | B167: Transporte | C167: Transporte_Terrestre | D167: Camionetas_CamionesLigeros | E167: Gas_licuado_B | F167: =INDEX(Calculadora!$C$11:$H$60,MATCH('Ecuaciones y FE'!A167,Calculadora!$B$11:$B$60,0),MATCH(Calculadora!$H$11,Calculadora!$C$11:$H$11,0)) ->  | G167: L | I167: =Combustibles!H73 -> 26.1215833 | J167: (MJ/l) | O167: 6.31e-05 | P167: 6.2e-08 | Q167: 2e-10
A168: Td08 | B168: Transporte | C168: Transporte_Terrestre | D168: Camionetas_CamionesLigeros | E168: Gasolina_B | F168: =INDEX(Calculadora!$C$11:$H$60,MATCH('Ecuaciones y FE'!A168,Calculadora!$B$11:$B$60,0),MATCH(Calculadora!$H$11,Calculadora!$C$11:$H$11,0)) ->  | G168: L | I168: =Combustibles!H74 -> 35.30470673 | J168: (MJ/l) | O168: 6.93e-05 | P168: 2.5e-08 | Q168: 8e-09
A169: Td09 | B169: Transporte | C169: Transporte_Terrestre | D169: Autobuses | E169: Diesel_C | F169: =INDEX(Calculadora!$C$11:$H$60,MATCH('Ecuaciones y FE'!A169,Calculadora!$B$11:$B$60,0),MATCH(Calculadora!$H$11,Calculadora!$C$11:$H$11,0)) ->  | G169: L | I169: =Combustibles!H71 -> 38.14770111 | J169: (MJ/l) | O169: 7.41e-05 | P169: 3.9e-09 | Q169: 3.9e-09
A170: Td10 | B170: Transporte | C170: Transporte_Terrestre | D170: Autobuses | E170: Gas Natural_C | F170: =INDEX(Calculadora!$C$11:$H$60,MATCH('Ecuaciones y FE'!A170,Calculadora!$B$11:$B$60,0),MATCH(Calculadora!$H$11,Calculadora!$C$11:$H$11,0)) ->  | G170: m3 | I170: =Combustibles!H72 -> 33.543 | J170: MJ/m3 | O170: 5.61e-05 | P170: 9.2e-08 | Q170: 3e-09
A171: Td11 | B171: Transporte | C171: Transporte_Terrestre | D171: Autobuses | E171: Gas_licuado_C | F171: =INDEX(Calculadora!$C$11:$H$60,MATCH('Ecuaciones y FE'!A171,Calculadora!$B$11:$B$60,0),MATCH(Calculadora!$H$11,Calculadora!$C$11:$H$11,0)) ->  | G171: L | I171: =Combustibles!H73 -> 26.1215833 | J171: (MJ/l) | O171: 6.31e-05 | P171: 6.2e-08 | Q171: 2e-10
A172: Td12 | B172: Transporte | C172: Transporte_Terrestre | D172: Autobuses | E172: Gasolina_C | F172: =INDEX(Calculadora!$C$11:$H$60,MATCH('Ecuaciones y FE'!A172,Calculadora!$B$11:$B$60,0),MATCH(Calculadora!$H$11,Calculadora!$C$11:$H$11,0)) ->  | G172: L | I172: =Combustibles!H74 -> 35.30470673 | J172: (MJ/l) | O172: 6.93e-05 | P172: 2.5e-08 | Q172: 8e-09
A173: Td13 | B173: Transporte | C173: Transporte_Terrestre | D173: Camiones_Tractocamiones | E173: Diesel_D | F173: =INDEX(Calculadora!$C$11:$H$60,MATCH('Ecuaciones y FE'!A173,Calculadora!$B$11:$B$60,0),MATCH(Calculadora!$H$11,Calculadora!$C$11:$H$11,0)) ->  | G173: L | I173: =Combustibles!H71 -> 38.14770111 | J173: (MJ/l) | O173: 7.41e-05 | P173: 3.9e-09 | Q173: 3.9e-09
A174: Td14 | B174: Transporte | C174: Transporte_Terrestre | D174: Camiones_Tractocamiones | E174: Gas Natural_D | F174: =INDEX(Calculadora!$C$11:$H$60,MATCH('Ecuaciones y FE'!A174,Calculadora!$B$11:$B$60,0),MATCH(Calculadora!$H$11,Calculadora!$C$11:$H$11,0)) ->  | G174: m3 | I174: =Combustibles!H72 -> 33.543 | J174: MJ/m3 | O174: 5.61e-05 | P174: 9.2e-08 | Q174: 3e-09
A175: Td15 | B175: Transporte | C175: Transporte_Terrestre | D175: Camiones_Tractocamiones | E175: Gas_licuado_D | F175: =INDEX(Calculadora!$C$11:$H$60,MATCH('Ecuaciones y FE'!A175,Calculadora!$B$11:$B$60,0),MATCH(Calculadora!$H$11,Calculadora!$C$11:$H$11,0)) ->  | G175: L | I175: =Combustibles!H73 -> 26.1215833 | J175: (MJ/l) | O175: 6.31e-05 | P175: 6.2e-08 | Q175: 2e-10
A176: Td16 | B176: Transporte | C176: Transporte_Terrestre | D176: Camiones_Tractocamiones | E176: Gasolina_D | F176: =INDEX(Calculadora!$C$11:$H$60,MATCH('Ecuaciones y FE'!A176,Calculadora!$B$11:$B$60,0),MATCH(Calculadora!$H$11,Calculadora!$C$11:$H$11,0)) ->  | G176: L | I176: =Combustibles!H74 -> 35.30470673 | J176: (MJ/l) | O176: 6.93e-05 | P176: 2.5e-08 | Q176: 8e-09
A178: Ia | B178: INDUSTRIA QUÍMICA | C178: Subsector | D178: Actividad | E178: Producto | F178: Cantidad producida | G178: Unidades producción | O178: FE_CO2 (ton/MJ) | P178: FE_CH4 (kg/MJ) | Q178: FE_N20 (ton/MJ) | W178: Emisiones CO2 | X178: Emisiones CH4 | Y178: Emisiones N2O | AF178: Emisiones CO2e
A179: Ia01 | B179: Industrial | C179: Subsector industria química | D179: Productos químicos básicos | E179: Amoníaco | F179: =INDEX(Calculadora!$C$11:$H$60,MATCH('Ecuaciones y FE'!A179,Calculadora!$B$11:$B$60,0),MATCH(Calculadora!$H$11,Calculadora!$C$11:$H$11,0)) ->  | G179: ton | O179: 3.273 | W179: =F179*O179 ->  | X179: 0 | Y179: 0 | AF179: =$W$179 -> 
A180: Ia02 | B180: Industrial | C180: Subsector industria química | D180: Productos químicos básicos | E180: Ácido Nítrico | F180: =INDEX(Calculadora!$C$11:$H$60,MATCH('Ecuaciones y FE'!A180,Calculadora!$B$11:$B$60,0),MATCH(Calculadora!$H$11,Calculadora!$C$11:$H$11,0)) ->  | G180: ton | Q180: =6/1000 -> 0.006 | W180: 0 | X180: 0 | Y180: =F180*Q180 ->  | AF180: =Y180*$AI$4 -> 
A181: Ia03 | B181: Industrial | C181: Subsector industria química | D181: Productos químicos básicos | E181: Ácido Adípico | F181: =INDEX(Calculadora!$C$11:$H$60,MATCH('Ecuaciones y FE'!A181,Calculadora!$B$11:$B$60,0),MATCH(Calculadora!$H$11,Calculadora!$C$11:$H$11,0)) ->  | G181: ton | Q181: =300/1000 -> 0.3 | W181: 0 | X181: 0 | Y181: =F181*Q181 ->  | AF181: =Y181*$AI$4 -> 
F182: Producción carburos | G182: Unidades Producción | O182: FE (ton C2O/ton carburo | P182: FE (ton CH4/ton carburo | W182: Emisiones C2O | X182: Emisiones CH4 | AF182: Emisiones CO2e
A183: Ia04 | B183: Industrial | C183: Subsector industria química | D183: Productos químicos básicos | E183: Carburo de Silicio | F183: =INDEX(Calculadora!$C$11:$H$60,MATCH('Ecuaciones y FE'!A183,Calculadora!$B$11:$B$60,0),MATCH(Calculadora!$H$11,Calculadora!$C$11:$H$11,0)) ->  | G183: ton | O183: 2.62 | P183: =11.6/1000 -> 0.0116 | W183: =F183*O183 ->  | X183: =F183*P183 ->  | Y183: 0 | AF183: =(W183+(X183*AI3)) -> 
A184: Ia05 | B184: Industrial | C184: Subsector industria química | D184: Productos químicos básicos | E184: Carburo de Calcio | F184: =INDEX(Calculadora!$C$11:$H$60,MATCH('Ecuaciones y FE'!A184,Calculadora!$B$11:$B$60,0),MATCH(Calculadora!$H$11,Calculadora!$C$11:$H$11,0)) ->  | G184: ton | O184: 1.09 | P184: NA | W184: =F184*O184 ->  | X184: NA | Y184: 0 | AF184: =W184 -> 
A185: Ia06 | B185: Industrial | C185: Subsector industria química | D185: Fabricación de resinas y hules sintéticos y de fibras químicas | E185: Únicamente reporta consumo energético - Sector Todos | F185: =INDEX(Calculadora!$C$11:$H$60,MATCH('Ecuaciones y FE'!A185,Calculadora!$B$11:$B$60,0),MATCH(Calculadora!$H$11,Calculadora!$C$11:$H$11,0)) ->  | G185: NA | AF185: 0
A186: Ia07 | B186: Industrial | C186: Subsector industria química | D186: Fabricación de fertilizantes, pesticidas y otros agroquímicos | E186: Únicamente reporta consumo energético - Sector Todos | F186: =INDEX(Calculadora!$C$11:$H$60,MATCH('Ecuaciones y FE'!A186,Calculadora!$B$11:$B$60,0),MATCH(Calculadora!$H$11,Calculadora!$C$11:$H$11,0)) ->  | G186: NA | AF186: 0
A187: Ia08 | B187: Industrial | C187: Subsector industria química | D187: Fabricación de productos farmacéuticos | E187: Únicamente reporta consumo energético - Sector Todos | F187: =INDEX(Calculadora!$C$11:$H$60,MATCH('Ecuaciones y FE'!A187,Calculadora!$B$11:$B$60,0),MATCH(Calculadora!$H$11,Calculadora!$C$11:$H$11,0)) ->  | G187: NA | AF187: 0
A188: Ia09 | B188: Industrial | C188: Subsector industria química | D188: Fabricación de pinturas, recubrimientos y adhesivos | E188: Únicamente reporta consumo energético - Sector Todos | F188: =INDEX(Calculadora!$C$11:$H$60,MATCH('Ecuaciones y FE'!A188,Calculadora!$B$11:$B$60,0),MATCH(Calculadora!$H$11,Calculadora!$C$11:$H$11,0)) ->  | G188: NA | AF188: 0
A189: Ia10 | B189: Industrial | C189: Subsector industria química | D189: Fabricación de jabones, limpiadores y preparaciones de tocador | E189: Únicamente reporta consumo energético - Sector Todos | F189: =INDEX(Calculadora!$C$11:$H$60,MATCH('Ecuaciones y FE'!A189,Calculadora!$B$11:$B$60,0),MATCH(Calculadora!$H$11,Calculadora!$C$11:$H$11,0)) ->  | G189: NA | AF189: 0
A190: Ia11 | B190: Industrial | C190: Subsector industria química | D190: Fabricación de productos de plástico | E190: Únicamente reporta consumo energético - Sector Todos | F190: =INDEX(Calculadora!$C$11:$H$60,MATCH('Ecuaciones y FE'!A190,Calculadora!$B$11:$B$60,0),MATCH(Calculadora!$H$11,Calculadora!$C$11:$H$11,0)) ->  | G190: NA | AF190: 0
A191: Ia12 | B191: Industrial | C191: Subsector industria química | D191: Fabricación de productos de hule | E191: Únicamente reporta consumo energético - Sector Todos | F191: =INDEX(Calculadora!$C$11:$H$60,MATCH('Ecuaciones y FE'!A191,Calculadora!$B$11:$B$60,0),MATCH(Calculadora!$H$11,Calculadora!$C$11:$H$11,0)) ->  | G191: NA | AF191: 0
A192: Ib | B192: INDUSTRIA SIDERÚRGICA | C192: Subsector industria siderúrgica | D192: Actividad | E192: Insumo | F192: Producción | G192: Unidades Producción | O192: FE (ton CO2/unidad) | P192: FE (ton CH4/unidad) | W192: Emisiones C2O | X192: Emisiones CH4 | AF192: Emisiones CO2e
A193: lb01 | B193: Industrial | C193: Subsector industria siderúrgica | D193: Industria básica del hierro y el acero | E193: Carbón coquizable | F193: =INDEX(Calculadora!$C$11:$H$60,MATCH('Ecuaciones y FE'!A193,Calculadora!$B$11:$B$60,0),MATCH(Calculadora!$H$11,Calculadora!$C$11:$H$11,0)) ->  | G193: tseca | O193: 3.059 | P193: 0 | W193: =F193*O193 ->  | X193: =F193*P193 ->  | AF193: =W193+(X193*$AI$3) -> 
A194: lb02 | B194: Industrial | C194: Subsector industria siderúrgica | D194: Industria básica del hierro y el acero | E194: Carbón de inyección al Alto Horno | F194: =INDEX(Calculadora!$C$11:$H$60,MATCH('Ecuaciones y FE'!A194,Calculadora!$B$11:$B$60,0),MATCH(Calculadora!$H$11,Calculadora!$C$11:$H$11,0)) ->  | G194: tseca | O194: 2.955 | P194: 0 | W194: =F194*O194 ->  | X194: =F194*P194 ->  | AF194: =W194+(X194*$AI$3) -> 
A195: lb03 | B195: Industrial | C195: Subsector industria siderúrgica | D195: Industria básica del hierro y el acero | E195: Carbón a la Sintetizadora o al Horno Básico de oxígeno | F195: =INDEX(Calculadora!$C$11:$H$60,MATCH('Ecuaciones y FE'!A195,Calculadora!$B$11:$B$60,0),MATCH(Calculadora!$H$11,Calculadora!$C$11:$H$11,0)) ->  | G195: tseca | O195: 2.784 | P195: 0
A196: lb04 | B196: Industrial | C196: Subsector industria siderúrgica | D196: Industria básica del hierro y el acero | E196: Carbón para vapor | F196: =INDEX(Calculadora!$C$11:$H$60,MATCH('Ecuaciones y FE'!A196,Calculadora!$B$11:$B$60,0),MATCH(Calculadora!$H$11,Calculadora!$C$11:$H$11,0)) ->  | G196: tseca | O196: 2.461 | P196: 0
A197: lb05 | B197: Industrial | C197: Subsector industria siderúrgica | D197: Industria básica del hierro y el acero | E197: Carbón para el Horno de Arco Eléctrico | F197: =INDEX(Calculadora!$C$11:$H$60,MATCH('Ecuaciones y FE'!A197,Calculadora!$B$11:$B$60,0),MATCH(Calculadora!$H$11,Calculadora!$C$11:$H$11,0)) ->  | G197: tseca | O197: 3.257 | P197: 0
A198: lb06 | B198: Industrial | C198: Subsector industria siderúrgica | D198: Industria básica del hierro y el acero | E198: Carbón para el Horno de Reducción Directa | F198: =INDEX(Calculadora!$C$11:$H$60,MATCH('Ecuaciones y FE'!A198,Calculadora!$B$11:$B$60,0),MATCH(Calculadora!$H$11,Calculadora!$C$11:$H$11,0)) ->  | G198: tseca | O198: 2.955 | P198: 0
A199: lb07 | B199: Industrial | C199: Subsector industria siderúrgica | D199: Industria básica del hierro y el acero | E199: Coque_Siderurgia | F199: =INDEX(Calculadora!$C$11:$H$60,MATCH('Ecuaciones y FE'!A199,Calculadora!$B$11:$B$60,0),MATCH(Calculadora!$H$11,Calculadora!$C$11:$H$11,0)) ->  | G199: tseca | O199: 3.257 | P199: 0
A200: lb08 | B200: Industrial | C200: Subsector industria siderúrgica | D200: Industria básica del hierro y el acero | E200: Caliza | F200: =INDEX(Calculadora!$C$11:$H$60,MATCH('Ecuaciones y FE'!A200,Calculadora!$B$11:$B$60,0),MATCH(Calculadora!$H$11,Calculadora!$C$11:$H$11,0)) ->  | G200: tseca | O200: 0.44 | P200: 0
A201: lb09 | B201: Industrial | C201: Subsector industria siderúrgica | D201: Industria básica del hierro y el acero | E201: Dolomita cruda | F201: =INDEX(Calculadora!$C$11:$H$60,MATCH('Ecuaciones y FE'!A201,Calculadora!$B$11:$B$60,0),MATCH(Calculadora!$H$11,Calculadora!$C$11:$H$11,0)) ->  | G201: tseca | O201: 0.471 | P201: 0
A202: lb10 | B202: Industrial | C202: Subsector industria siderúrgica | D202: Industria básica del hierro y el acero | E202: Electrodos del Horno de Arco Eléctrico o del Horno Básico de Oxígeno | F202: =INDEX(Calculadora!$C$11:$H$60,MATCH('Ecuaciones y FE'!A202,Calculadora!$B$11:$B$60,0),MATCH(Calculadora!$H$11,Calculadora!$C$11:$H$11,0)) ->  | G202: t | O202: 3.663 | P202: 0
A203: lb11 | B203: Industrial | C203: Subsector industria siderúrgica | D203: Industria básica del hierro y el acero | E203: Arrabio | F203: =INDEX(Calculadora!$C$11:$H$60,MATCH('Ecuaciones y FE'!A203,Calculadora!$B$11:$B$60,0),MATCH(Calculadora!$H$11,Calculadora!$C$11:$H$11,0)) ->  | G203: t | O203: 0.172 | P203: 0
A204: lb12 | B204: Industrial | C204: Subsector industria siderúrgica | D204: Industria básica del hierro y el acero | E204: Arrabio frío (Cold iron) | F204: =INDEX(Calculadora!$C$11:$H$60,MATCH('Ecuaciones y FE'!A204,Calculadora!$B$11:$B$60,0),MATCH(Calculadora!$H$11,Calculadora!$C$11:$H$11,0)) ->  | G204: t | O204: 0.172 | P204: 0
A205: lb13 | B205: Industrial | C205: Subsector industria siderúrgica | D205: Industria básica del hierro y el acero | E205: Fierro Esponja o Hierro de Reducción Directa Base Gas Natural | F205: =INDEX(Calculadora!$C$11:$H$60,MATCH('Ecuaciones y FE'!A205,Calculadora!$B$11:$B$60,0),MATCH(Calculadora!$H$11,Calculadora!$C$11:$H$11,0)) ->  | G205: t | O205: 0.073 | P205: 0
... 466 more rows

Sheet Emisiones (hidden)
A2: ID | B2: SECTOR | C2: SUBSECTOR | D2: ACTIVIDAD | E2: CATEGORÍA | F2: DESCRIPCIÓN | G2: UNIDAD | H2: Emisiones CO2e | I2: Emisiones CO2 | J2: Emisiones CH4 | K2: Emisiones N2O
A3: Aa1 | B3: Agropecuario | C3: Subsector_Agricultura | D3: Oleaginosas_gramíneas_leguminosas_o_cereales_en_grano_y_forrajeras | E3: Aa1. Únicamente reporta consumo energético - Energía y Transporte | F3: No ingrese información, remítase a la actividad de "Maquinaria Agrícola" y al sector "Energía" y "Transporte" | G3: NA | H3: ='Ecuaciones y FE'!AF406 -> 0
A4: Aa2 | B4: Agropecuario | C4: Subsector_Agricultura | D4: Cultivo_de_hortalizas | E4: Aa2. Únicamente reporta consumo energético - Energía y Transporte | F4: No ingrese información, remítase a la actividad de "Maquinaria Agrícola" y al sector "Energía" y "Transporte" | G4: NA | H4: ='Ecuaciones y FE'!AF407 -> 0
A5: Aa3 | B5: Agropecuario | C5: Subsector_Agricultura | D5: Cultivo_de_frutales_y_nueces | E5: Aa3. Únicamente reporta consumo energético - Energía y Transporte | F5: No ingrese información, remítase a la actividad de "Maquinaria Agrícola" y al sector "Energía" y "Transporte" | G5: NA | H5: ='Ecuaciones y FE'!AF408 -> 0
A6: Aa4 | B6: Agropecuario | C6: Subsector_Agricultura | D6: Cultivo_en_invernaderos_y_viveros_y_floricultura | E6: Aa4. Únicamente reporta consumo energético - Energía y Transporte | F6: No ingrese información, remítase a la actividad de "Maquinaria Agrícola" y al sector "Energía" y "Transporte" | G6: NA | H6: ='Ecuaciones y FE'!AF409 -> 0
A7: Aa5 | B7: Agropecuario | C7: Subsector_Agricultura | D7: Maquinaria_agrícola | E7: Aa5. Diesel | F7: Ingrese el consumo mensual de diesel en litros | G7: l | H7: ='Ecuaciones y FE'!AF410 ->  | I7: ='Ecuaciones y FE'!W410 ->  | J7: ='Ecuaciones y FE'!X410 ->  | K7: ='Ecuaciones y FE'!Y410 -> 
A8: Aa6 | B8: Agropecuario | C8: Subsector_Agricultura | D8: Maquinaria_agrícola | E8: Aa6. Gasolinas y naftas | F8: Ingrese el consumo mensual de gasolina en litros | G8: l | H8: ='Ecuaciones y FE'!AF411 ->  | I8: ='Ecuaciones y FE'!W411 ->  | J8: ='Ecuaciones y FE'!X411 ->  | K8: ='Ecuaciones y FE'!Y411 -> 
A9: Ab001 | B9: Agropecuario | C9: Subsector ganadería | D9: Bovinos para la producción conjunta de leche y carne | E9: Sin gestión de estiércol excretado en pasturas, prados o praderas (BCyL) | F9: Multiplique el número de cabezas por la fracción de excretas manejadas, e ingrese el resultado | G9: cabezas | H9: ='Ecuaciones y FE'!AF414 ->  | I9: ='Ecuaciones y FE'!W414 -> 0 | J9: ='Ecuaciones y FE'!X414 ->  | K9: ='Ecuaciones y FE'!Y414 -> 
A10: Ab002 | B10: Agropecuario | C10: Subsector ganadería | D10: Bovinos para la producción conjunta de leche y carne | E10: Aplicación de estiércol en tierras de cultivo o pasturas dentro de las 24 horas de su excreción (BCyL) | F10: Multiplique el número de cabezas por la fracción de excretas manejadas, e ingrese el resultado | G10: cabezas | H10: ='Ecuaciones y FE'!AF415 ->  | I10: ='Ecuaciones y FE'!W415 -> 0 | J10: ='Ecuaciones y FE'!X415 ->  | K10: ='Ecuaciones y FE'!Y415 -> 
A11: Ab003 | B11: Agropecuario | C11: Subsector ganadería | D11: Bovinos para la producción conjunta de leche y carne | E11: Almacenamiento de estiércol en pilas o montones no confinados (BCyL) | F11: Multiplique el número de cabezas por la fracción de excretas manejadas, e ingrese el resultado | G11: cabezas | H11: ='Ecuaciones y FE'!AF416 ->  | I11: ='Ecuaciones y FE'!W416 -> 0 | J11: ='Ecuaciones y FE'!X416 ->  | K11: ='Ecuaciones y FE'!Y416 -> 
A12: Ab004 | B12: Agropecuario | C12: Subsector ganadería | D12: Bovinos para la producción conjunta de leche y carne | E12: Confinamiento de estiércol, con o sin retiro periódico (BCyL) | F12: Multiplique el número de cabezas por la fracción de excretas manejadas, e ingrese el resultado | G12: cabezas | H12: ='Ecuaciones y FE'!AF417 ->  | I12: ='Ecuaciones y FE'!W417 -> 0 | J12: ='Ecuaciones y FE'!X417 ->  | K12: ='Ecuaciones y FE'!Y417 -> 
A13: Ab005 | B13: Agropecuario | C13: Subsector ganadería | D13: Bovinos para la producción conjunta de leche y carne | E13: Almacenamiento de estiércol (como se excreta o con un mínimo de agua) en tanques o estanques de tierra (BCyL) | F13: Multiplique el número de cabezas por la fracción de excretas manejadas, e ingrese el resultado | G13: cabezas | H13: ='Ecuaciones y FE'!AF418 ->  | I13: ='Ecuaciones y FE'!W418 -> 0 | J13: ='Ecuaciones y FE'!X418 ->  | K13: ='Ecuaciones y FE'!Y418 -> 
A14: Ab006 | B14: Agropecuario | C14: Subsector ganadería | D14: Bovinos para la producción conjunta de leche y carne | E14: Almacenamiento de estiércol líquido (BCyL) | F14: Multiplique el número de cabezas por la fracción de excretas manejadas, e ingrese el resultado | G14: cabezas | H14: ='Ecuaciones y FE'!AF419 ->  | I14: ='Ecuaciones y FE'!W419 -> 0 | J14: ='Ecuaciones y FE'!X419 ->  | K14: ='Ecuaciones y FE'!Y419 -> 
A15: Ab007 | B15: Agropecuario | C15: Subsector ganadería | D15: Bovinos para la producción conjunta de leche y carne | E15: Almacenamiento del estiércol (con poco o ningún agregado de agua) debajo de un suelo emparrillado (BCyL) | F15: Multiplique el número de cabezas por la fracción de excretas manejadas, e ingrese el resultado | G15: cabezas | H15: ='Ecuaciones y FE'!AF420 ->  | I15: ='Ecuaciones y FE'!W420 -> 0 | J15: ='Ecuaciones y FE'!X420 ->  | K15: ='Ecuaciones y FE'!Y420 -> 
A16: Ab008 | B16: Agropecuario | C16: Subsector ganadería | D16: Bovinos para la producción conjunta de leche y carne | E16: Almacenamiento de estiércol (con o sin paja) en un tanque contenedor o en una laguna cubierta en condiciones anaerobias (BCyL) | F16: Multiplique el número de cabezas por la fracción de excretas manejadas, e ingrese el resultado | G16: cabezas | H16: ='Ecuaciones y FE'!AF421 ->  | I16: ='Ecuaciones y FE'!W421 -> 0 | J16: ='Ecuaciones y FE'!X421 ->  | K16: ='Ecuaciones y FE'!Y421 -> 
A17: Ab009 | B17: Agropecuario | C17: Subsector ganadería | D17: Bovinos para la producción conjunta de leche y carne | E17: Quema o uso como combustible de estiércol seco (BCyL) | F17: Multiplique el número de cabezas por la fracción de excretas manejadas, e ingrese el resultado | G17: cabezas | H17: ='Ecuaciones y FE'!AF422 ->  | I17: ='Ecuaciones y FE'!W422 -> 0 | J17: ='Ecuaciones y FE'!X422 ->  | K17: ='Ecuaciones y FE'!Y422 -> 
A18: Ab010 | B18: Agropecuario | C18: Subsector ganadería | D18: Bovinos para la producción conjunta de leche y carne | E18: Almacenamiento de estiércol con cama de agregados para el control de humedad (BCyL) | F18: Multiplique el número de cabezas por la fracción de excretas manejadas, e ingrese el resultado | G18: cabezas | H18: ='Ecuaciones y FE'!AF423 ->  | I18: ='Ecuaciones y FE'!W423 -> 0 | J18: ='Ecuaciones y FE'!X423 ->  | K18: ='Ecuaciones y FE'!Y423 -> 
A19: Ab011 | B19: Agropecuario | C19: Subsector ganadería | D19: Bovinos para la producción conjunta de leche y carne | E19: Composteo en canal cerrado, con aireación forzada y mezclado permanente (BCyL) | F19: Multiplique el número de cabezas por la fracción de excretas manejadas, e ingrese el resultado | G19: cabezas | H19: ='Ecuaciones y FE'!AF424 ->  | I19: ='Ecuaciones y FE'!W424 -> 0 | J19: ='Ecuaciones y FE'!X424 ->  | K19: ='Ecuaciones y FE'!Y424 -> 
A20: Ab012 | B20: Agropecuario | C20: Subsector ganadería | D20: Bovinos para la producción conjunta de leche y carne | E20: Composteo en pilas con aireación forzada pero sin mezclado (BCyL) | F20: Multiplique el número de cabezas por la fracción de excretas manejadas, e ingrese el resultado | G20: cabezas | H20: ='Ecuaciones y FE'!AF425 ->  | I20: ='Ecuaciones y FE'!W425 -> 0 | J20: ='Ecuaciones y FE'!X425 ->  | K20: ='Ecuaciones y FE'!Y425 -> 
A21: Ab013 | B21: Agropecuario | C21: Subsector ganadería | D21: Bovinos para la producción conjunta de leche y carne | E21: Composteo en pilas rectangulares con mezclado de medias vueltas regulares (diario) para mezclado y aireación (BCyL) | F21: Multiplique el número de cabezas por la fracción de excretas manejadas, e ingrese el resultado | G21: cabezas | H21: ='Ecuaciones y FE'!AF426 ->  | I21: ='Ecuaciones y FE'!W426 -> 0 | J21: ='Ecuaciones y FE'!X426 ->  | K21: ='Ecuaciones y FE'!Y426 -> 
A22: Ab014 | B22: Agropecuario | C22: Subsector ganadería | D22: Bovinos para la producción conjunta de leche y carne | E22: Composteo en pilas rectangulares con mezclado de medias vueltas frecuentes para mezclado y aireación (BCyL) | F22: Multiplique el número de cabezas por la fracción de excretas manejadas, e ingrese el resultado | G22: cabezas | H22: ='Ecuaciones y FE'!AF427 ->  | I22: ='Ecuaciones y FE'!W427 -> 0 | J22: ='Ecuaciones y FE'!X427 ->  | K22: ='Ecuaciones y FE'!Y427 -> 
A23: Ab015 | B23: Agropecuario | C23: Subsector ganadería | D23: Bovinos para la producción conjunta de leche y carne | E23: Mezclado de estiércol de aves de corral con hojarasca en camas profundas (no combinadas con engorde en corral o pastura) (BCyL) | F23: Multiplique el número de cabezas por la fracción de excretas manejadas, e ingrese el resultado | G23: cabezas | H23: ='Ecuaciones y FE'!AF428 ->  | I23: ='Ecuaciones y FE'!W428 -> 0 | J23: ='Ecuaciones y FE'!X428 ->  | K23: ='Ecuaciones y FE'!Y428 -> 
A24: Ab016 | B24: Agropecuario | C24: Subsector ganadería | D24: Bovinos para la producción conjunta de leche y carne | E24: Manejo de estiércol de aves de corral sin hojarasca en pozos abiertos en instalaciones cerradas (BCyL) | F24: Multiplique el número de cabezas por la fracción de excretas manejadas, e ingrese el resultado | G24: cabezas | H24: ='Ecuaciones y FE'!AF429 ->  | I24: ='Ecuaciones y FE'!W429 -> 0 | J24: ='Ecuaciones y FE'!X429 ->  | K24: ='Ecuaciones y FE'!Y429 -> 
A25: Ab017 | B25: Agropecuario | C25: Subsector ganadería | D25: Bovinos para la producción conjunta de leche y carne | E25: Oxidación biológica aeróbica del estiércol con aireación (BCyL) | F25: Multiplique el número de cabezas por la fracción de excretas manejadas, e ingrese el resultado | G25: cabezas | H25: ='Ecuaciones y FE'!AF430 ->  | I25: ='Ecuaciones y FE'!W430 -> 0 | J25: ='Ecuaciones y FE'!X430 ->  | K25: ='Ecuaciones y FE'!Y430 -> 
A26: Ab018 | B26: Agropecuario | C26: Subsector ganadería | D26: Bovinos para la producción conjunta de leche y carne | E26: Oxidación biológica aeróbica del estiércol con aireación forzada (BCyL) | F26: Multiplique el número de cabezas por la fracción de excretas manejadas, e ingrese el resultado | G26: cabezas | H26: ='Ecuaciones y FE'!AF431 ->  | I26: ='Ecuaciones y FE'!W431 -> 0 | J26: ='Ecuaciones y FE'!X431 ->  | K26: ='Ecuaciones y FE'!Y431 -> 
A27: Ab019 | B27: Agropecuario | C27: Subsector ganadería | D27: Bovinos para la producción de carne | E27: Sin gestión de estiércol excretado en pasturas, prados o praderas (BC) | F27: Multiplique el número de cabezas por la fracción de excretas manejadas, e ingrese el resultado | G27: cabezas | H27: ='Ecuaciones y FE'!AF433 ->  | I27: ='Ecuaciones y FE'!W433 -> 0 | J27: ='Ecuaciones y FE'!X433 ->  | K27: ='Ecuaciones y FE'!Y433 -> 
A28: Ab020 | B28: Agropecuario | C28: Subsector ganadería | D28: Bovinos para la producción de carne | E28: Aplicación de estiércol en tierras de cultivo o pasturas dentro de las 24 horas de su excreción (BC) | F28: Multiplique el número de cabezas por la fracción de excretas manejadas, e ingrese el resultado | G28: cabezas | H28: ='Ecuaciones y FE'!AF434 ->  | I28: ='Ecuaciones y FE'!W434 -> 0 | J28: ='Ecuaciones y FE'!X434 ->  | K28: ='Ecuaciones y FE'!Y434 -> 
A29: Ab021 | B29: Agropecuario | C29: Subsector ganadería | D29: Bovinos para la producción de carne | E29: Almacenamiento de estiércol en pilas o montones no confinados (BC) | F29: Multiplique el número de cabezas por la fracción de excretas manejadas, e ingrese el resultado | G29: cabezas | H29: ='Ecuaciones y FE'!AF435 ->  | I29: ='Ecuaciones y FE'!W435 -> 0 | J29: ='Ecuaciones y FE'!X435 ->  | K29: ='Ecuaciones y FE'!Y435 -> 
A30: Ab022 | B30: Agropecuario | C30: Subsector ganadería | D30: Bovinos para la producción de carne | E30: Confinamiento de estiércol, con o sin retiro periódico (BC) | F30: Multiplique el número de cabezas por la fracción de excretas manejadas, e ingrese el resultado | G30: cabezas | H30: ='Ecuaciones y FE'!AF436 ->  | I30: ='Ecuaciones y FE'!W436 -> 0 | J30: ='Ecuaciones y FE'!X436 ->  | K30: ='Ecuaciones y FE'!Y436 -> 
A31: Ab023 | B31: Agropecuario | C31: Subsector ganadería | D31: Bovinos para la producción de carne | E31: Almacenamiento de estiércol (como se excreta o con un mínimo de agua) en tanques o estanques de tierra (BC) | F31: Multiplique el número de cabezas por la fracción de excretas manejadas, e ingrese el resultado | G31: cabezas | H31: ='Ecuaciones y FE'!AF437 ->  | I31: ='Ecuaciones y FE'!W437 -> 0 | J31: ='Ecuaciones y FE'!X437 ->  | K31: ='Ecuaciones y FE'!Y437 -> 
A32: Ab024 | B32: Agropecuario | C32: Subsector ganadería | D32: Bovinos para la producción de carne | E32: Almacenamiento de estiércol líquido (BC) | F32: Multiplique el número de cabezas por la fracción de excretas manejadas, e ingrese el resultado | G32: cabezas | H32: ='Ecuaciones y FE'!AF438 ->  | I32: ='Ecuaciones y FE'!W438 -> 0 | J32: ='Ecuaciones y FE'!X438 ->  | K32: ='Ecuaciones y FE'!Y438 -> 
A33: Ab025 | B33: Agropecuario | C33: Subsector ganadería | D33: Bovinos para la producción de carne | E33: Almacenamiento del estiércol (con poco o ningún agregado de agua) debajo de un suelo emparrillado (BC) | F33: Multiplique el número de cabezas por la fracción de excretas manejadas, e ingrese el resultado | G33: cabezas | H33: ='Ecuaciones y FE'!AF439 ->  | I33: ='Ecuaciones y FE'!W439 -> 0 | J33: ='Ecuaciones y FE'!X439 ->  | K33: ='Ecuaciones y FE'!Y439 -> 
A34: Ab026 | B34: Agropecuario | C34: Subsector ganadería | D34: Bovinos para la producción de carne | E34: Almacenamiento de estiércol (con o sin paja) en un tanque contenedor o en una laguna cubierta en condiciones anaerobias (BC) | F34: Multiplique el número de cabezas por la fracción de excretas manejadas, e ingrese el resultado | G34: cabezas | H34: ='Ecuaciones y FE'!AF440 ->  | I34: ='Ecuaciones y FE'!W440 -> 0 | J34: ='Ecuaciones y FE'!X440 ->  | K34: ='Ecuaciones y FE'!Y440 -> 
A35: Ab027 | B35: Agropecuario | C35: Subsector ganadería | D35: Bovinos para la producción de carne | E35: Quema o uso como combustible de estiércol seco (BC) | F35: Multiplique el número de cabezas por la fracción de excretas manejadas, e ingrese el resultado | G35: cabezas | H35: ='Ecuaciones y FE'!AF441 ->  | I35: ='Ecuaciones y FE'!W441 -> 0 | J35: ='Ecuaciones y FE'!X441 ->  | K35: ='Ecuaciones y FE'!Y441 -> 
A36: Ab028 | B36: Agropecuario | C36: Subsector ganadería | D36: Bovinos para la producción de carne | E36: Almacenamiento de estiércol con cama de agregados para el control de humedad (BC) | F36: Multiplique el número de cabezas por la fracción de excretas manejadas, e ingrese el resultado | G36: cabezas | H36: ='Ecuaciones y FE'!AF442 ->  | I36: ='Ecuaciones y FE'!W442 -> 0 | J36: ='Ecuaciones y FE'!X442 ->  | K36: ='Ecuaciones y FE'!Y442 -> 
A37: Ab029 | B37: Agropecuario | C37: Subsector ganadería | D37: Bovinos para la producción de carne | E37: Composteo en canal cerrado, con aireación forzada y mezclado permanente (BC) | F37: Multiplique el número de cabezas por la fracción de excretas manejadas, e ingrese el resultado | G37: cabezas | H37: ='Ecuaciones y FE'!AF443 ->  | I37: ='Ecuaciones y FE'!W443 -> 0 | J37: ='Ecuaciones y FE'!X443 ->  | K37: ='Ecuaciones y FE'!Y443 -> 
A38: Ab030 | B38: Agropecuario | C38: Subsector ganadería | D38: Bovinos para la producción de carne | E38: Composteo en pilas con aireación forzada pero sin mezclado (BC) | F38: Multiplique el número de cabezas por la fracción de excretas manejadas, e ingrese el resultado | G38: cabezas | H38: ='Ecuaciones y FE'!AF444 ->  | I38: ='Ecuaciones y FE'!W444 -> 0 | J38: ='Ecuaciones y FE'!X444 ->  | K38: ='Ecuaciones y FE'!Y444 -> 
A39: Ab031 | B39: Agropecuario | C39: Subsector ganadería | D39: Bovinos para la producción de carne | E39: Composteo en pilas rectangulares con mezclado de medias vueltas regulares (diario) para mezclado y aireación (BC) | F39: Multiplique el número de cabezas por la fracción de excretas manejadas, e ingrese el resultado | G39: cabezas | H39: ='Ecuaciones y FE'!AF445 ->  | I39: ='Ecuaciones y FE'!W445 -> 0 | J39: ='Ecuaciones y FE'!X445 ->  | K39: ='Ecuaciones y FE'!Y445 -> 
A40: Ab032 | B40: Agropecuario | C40: Subsector ganadería | D40: Bovinos para la producción de carne | E40: Composteo en pilas rectangulares con mezclado de medias vueltas frecuentes para mezclado y aireación (BC) | F40: Multiplique el número de cabezas por la fracción de excretas manejadas, e ingrese el resultado | G40: cabezas | H40: ='Ecuaciones y FE'!AF446 ->  | I40: ='Ecuaciones y FE'!W446 -> 0 | J40: ='Ecuaciones y FE'!X446 ->  | K40: ='Ecuaciones y FE'!Y446 -> 
A41: Ab033 | B41: Agropecuario | C41: Subsector ganadería | D41: Bovinos para la producción de carne | E41: Mezclado de estiércol de aves de corral con hojarasca en camas profundas (no combinadas con engorde en corral o pastura) (BC) | F41: Multiplique el número de cabezas por la fracción de excretas manejadas, e ingrese el resultado | G41: cabezas | H41: ='Ecuaciones y FE'!AF447 ->  | I41: ='Ecuaciones y FE'!W447 -> 0 | J41: ='Ecuaciones y FE'!X447 ->  | K41: ='Ecuaciones y FE'!Y447 -> 
A42: Ab034 | B42: Agropecuario | C42: Subsector ganadería | D42: Bovinos para la producción de carne | E42: Manejo de estiércol de aves de corral sin hojarasca en pozos abiertos en instalaciones cerradas (BC) | F42: Multiplique el número de cabezas por la fracción de excretas manejadas, e ingrese el resultado | G42: cabezas | H42: ='Ecuaciones y FE'!AF448 ->  | I42: ='Ecuaciones y FE'!W448 -> 0 | J42: ='Ecuaciones y FE'!X448 ->  | K42: ='Ecuaciones y FE'!Y448 -> 
A43: Ab035 | B43: Agropecuario | C43: Subsector ganadería | D43: Bovinos para la producción de carne | E43: Oxidación biológica aeróbica del estiércol con aireación (BC) | F43: Multiplique el número de cabezas por la fracción de excretas manejadas, e ingrese el resultado | G43: cabezas | H43: ='Ecuaciones y FE'!AF449 ->  | I43: ='Ecuaciones y FE'!W449 -> 0 | J43: ='Ecuaciones y FE'!X449 ->  | K43: ='Ecuaciones y FE'!Y449 -> 
A44: Ab036 | B44: Agropecuario | C44: Subsector ganadería | D44: Bovinos para la producción de carne | E44: Oxidación biológica aeróbica del estiércol con aireación forzada (BC) | F44: Multiplique el número de cabezas por la fracción de excretas manejadas, e ingrese el resultado | G44: cabezas | H44: ='Ecuaciones y FE'!AF450 ->  | I44: ='Ecuaciones y FE'!W450 -> 0 | J44: ='Ecuaciones y FE'!X450 ->  | K44: ='Ecuaciones y FE'!Y450 -> 
A45: Ab037 | B45: Agropecuario | C45: Subsector ganadería | D45: Bovinos para la producción de leche | E45: Sin gestión de estiércol excretado en pasturas, prados o praderas (BL) | F45: Multiplique el número de cabezas por la fracción de excretas manejadas, e ingrese el resultado | G45: cabezas | H45: ='Ecuaciones y FE'!AF452 ->  | I45: ='Ecuaciones y FE'!W452 -> 0 | J45: ='Ecuaciones y FE'!X452 ->  | K45: ='Ecuaciones y FE'!Y452 -> 
A46: Ab038 | B46: Agropecuario | C46: Subsector ganadería | D46: Bovinos para la producción de leche | E46: Aplicación de estiércol en tierras de cultivo o pasturas dentro de las 24 horas de su excreción (BL) | F46: Multiplique el número de cabezas por la fracción de excretas manejadas, e ingrese el resultado | G46: cabezas | H46: ='Ecuaciones y FE'!AF453 ->  | I46: ='Ecuaciones y FE'!W453 -> 0 | J46: ='Ecuaciones y FE'!X453 ->  | K46: ='Ecuaciones y FE'!Y453 -> 
A47: Ab039 | B47: Agropecuario | C47: Subsector ganadería | D47: Bovinos para la producción de leche | E47: Almacenamiento de estiércol en pilas o montones no confinados (BL) | F47: Multiplique el número de cabezas por la fracción de excretas manejadas, e ingrese el resultado | G47: cabezas | H47: ='Ecuaciones y FE'!AF454 ->  | I47: ='Ecuaciones y FE'!W454 -> 0 | J47: ='Ecuaciones y FE'!X454 ->  | K47: ='Ecuaciones y FE'!Y454 -> 
A48: Ab040 | B48: Agropecuario | C48: Subsector ganadería | D48: Bovinos para la producción de leche | E48: Confinamiento de estiércol, con o sin retiro periódico (BL) | F48: Multiplique el número de cabezas por la fracción de excretas manejadas, e ingrese el resultado | G48: cabezas | H48: ='Ecuaciones y FE'!AF455 ->  | I48: ='Ecuaciones y FE'!W455 -> 0 | J48: ='Ecuaciones y FE'!X455 ->  | K48: ='Ecuaciones y FE'!Y455 -> 
A49: Ab041 | B49: Agropecuario | C49: Subsector ganadería | D49: Bovinos para la producción de leche | E49: Almacenamiento de estiércol (como se excreta o con un mínimo de agua) en tanques o estanques de tierra (BL) | F49: Multiplique el número de cabezas por la fracción de excretas manejadas, e ingrese el resultado | G49: cabezas | H49: ='Ecuaciones y FE'!AF456 ->  | I49: ='Ecuaciones y FE'!W456 -> 0 | J49: ='Ecuaciones y FE'!X456 ->  | K49: ='Ecuaciones y FE'!Y456 -> 
A50: Ab042 | B50: Agropecuario | C50: Subsector ganadería | D50: Bovinos para la producción de leche | E50: Almacenamiento de estiércol líquido (BL) | F50: Multiplique el número de cabezas por la fracción de excretas manejadas, e ingrese el resultado | G50: cabezas | H50: ='Ecuaciones y FE'!AF457 ->  | I50: ='Ecuaciones y FE'!W457 -> 0 | J50: ='Ecuaciones y FE'!X457 ->  | K50: ='Ecuaciones y FE'!Y457 -> 
A51: Ab043 | B51: Agropecuario | C51: Subsector ganadería | D51: Bovinos para la producción de leche | E51: Almacenamiento del estiércol (con poco o ningún agregado de agua) debajo de un suelo emparrillado (BL) | F51: Multiplique el número de cabezas por la fracción de excretas manejadas, e ingrese el resultado | G51: cabezas | H51: ='Ecuaciones y FE'!AF458 ->  | I51: ='Ecuaciones y FE'!W458 -> 0 | J51: ='Ecuaciones y FE'!X458 ->  | K51: ='Ecuaciones y FE'!Y458 -> 
A52: Ab044 | B52: Agropecuario | C52: Subsector ganadería | D52: Bovinos para la producción de leche | E52: Almacenamiento de estiércol (con o sin paja) en un tanque contenedor o en una laguna cubierta en condiciones anaerobias (BL) | F52: Multiplique el número de cabezas por la fracción de excretas manejadas, e ingrese el resultado | G52: cabezas | H52: ='Ecuaciones y FE'!AF459 ->  | I52: ='Ecuaciones y FE'!W459 -> 0 | J52: ='Ecuaciones y FE'!X459 ->  | K52: ='Ecuaciones y FE'!Y459 -> 
A53: Ab045 | B53: Agropecuario | C53: Subsector ganadería | D53: Bovinos para la producción de leche | E53: Quema o uso como combustible de estiércol seco (BL) | F53: Multiplique el número de cabezas por la fracción de excretas manejadas, e ingrese el resultado | G53: cabezas | H53: ='Ecuaciones y FE'!AF460 ->  | I53: ='Ecuaciones y FE'!W460 -> 0 | J53: ='Ecuaciones y FE'!X460 ->  | K53: ='Ecuaciones y FE'!Y460 -> 
A54: Ab046 | B54: Agropecuario | C54: Subsector ganadería | D54: Bovinos para la producción de leche | E54: Almacenamiento de estiércol con cama de agregados para el control de humedad (BL) | F54: Multiplique el número de cabezas por la fracción de excretas manejadas, e ingrese el resultado | G54: cabezas | H54: ='Ecuaciones y FE'!AF461 ->  | I54: ='Ecuaciones y FE'!W461 -> 0 | J54: ='Ecuaciones y FE'!X461 ->  | K54: ='Ecuaciones y FE'!Y461 -> 
A55: Ab047 | B55: Agropecuario | C55: Subsector ganadería | D55: Bovinos para la producción de leche | E55: Composteo en canal cerrado, con aireación forzada y mezclado permanente (BL) | F55: Multiplique el número de cabezas por la fracción de excretas manejadas, e ingrese el resultado | G55: cabezas | H55: ='Ecuaciones y FE'!AF462 ->  | I55: ='Ecuaciones y FE'!W462 -> 0 | J55: ='Ecuaciones y FE'!X462 ->  | K55: ='Ecuaciones y FE'!Y462 -> 
A56: Ab048 | B56: Agropecuario | C56: Subsector ganadería | D56: Bovinos para la producción de leche | E56: Composteo en pilas con aireación forzada pero sin mezclado (BL) | F56: Multiplique el número de cabezas por la fracción de excretas manejadas, e ingrese el resultado | G56: cabezas | H56: ='Ecuaciones y FE'!AF463 ->  | I56: ='Ecuaciones y FE'!W463 -> 0 | J56: ='Ecuaciones y FE'!X463 ->  | K56: ='Ecuaciones y FE'!Y463 -> 
A57: Ab049 | B57: Agropecuario | C57: Subsector ganadería | D57: Bovinos para la producción de leche | E57: Composteo en pilas rectangulares con mezclado de medias vueltas regulares (diario) para mezclado y aireación (BL) | F57: Multiplique el número de cabezas por la fracción de excretas manejadas, e ingrese el resultado | G57: cabezas | H57: ='Ecuaciones y FE'!AF464 ->  | I57: ='Ecuaciones y FE'!W464 -> 0 | J57: ='Ecuaciones y FE'!X464 ->  | K57: ='Ecuaciones y FE'!Y464 -> 
A58: Ab050 | B58: Agropecuario | C58: Subsector ganadería | D58: Bovinos para la producción de leche | E58: Composteo en pilas rectangulares con mezclado de medias vueltas frecuentes para mezclado y aireación (BL) | F58: Multiplique el número de cabezas por la fracción de excretas manejadas, e ingrese el resultado | G58: cabezas | H58: ='Ecuaciones y FE'!AF465 ->  | I58: ='Ecuaciones y FE'!W465 -> 0 | J58: ='Ecuaciones y FE'!X465 ->  | K58: ='Ecuaciones y FE'!Y465 -> 
A59: Ab051 | B59: Agropecuario | C59: Subsector ganadería | D59: Bovinos para la producción de leche | E59: Mezclado de estiércol de aves de corral con hojarasca en camas profundas (no combinadas con engorde en corral o pastura) (BL) | F59: Multiplique el número de cabezas por la fracción de excretas manejadas, e ingrese el resultado | G59: cabezas | H59: ='Ecuaciones y FE'!AF466 ->  | I59: ='Ecuaciones y FE'!W466 -> 0 | J59: ='Ecuaciones y FE'!X466 ->  | K59: ='Ecuaciones y FE'!Y466 -> 
A60: Ab052 | B60: Agropecuario | C60: Subsector ganadería | D60: Bovinos para la producción de leche | E60: Manejo de estiércol de aves de corral sin hojarasca en pozos abiertos en instalaciones cerradas (BL) | F60: Multiplique el número de cabezas por la fracción de excretas manejadas, e ingrese el resultado | G60: cabezas | H60: ='Ecuaciones y FE'!AF467 ->  | I60: ='Ecuaciones y FE'!W467 -> 0 | J60: ='Ecuaciones y FE'!X467 ->  | K60: ='Ecuaciones y FE'!Y467 -> 
A61: Ab053 | B61: Agropecuario | C61: Subsector ganadería | D61: Bovinos para la producción de leche | E61: Oxidación biológica aeróbica del estiércol con aireación (BL) | F61: Multiplique el número de cabezas por la fracción de excretas manejadas, e ingrese el resultado | G61: cabezas | H61: ='Ecuaciones y FE'!AF468 ->  | I61: ='Ecuaciones y FE'!W468 -> 0 | J61: ='Ecuaciones y FE'!X468 ->  | K61: ='Ecuaciones y FE'!Y468 -> 
A62: Ab054 | B62: Agropecuario | C62: Subsector ganadería | D62: Bovinos para la producción de leche | E62: Oxidación biológica aeróbica del estiércol con aireación forzada (BL) | F62: Multiplique el número de cabezas por la fracción de excretas manejadas, e ingrese el resultado | G62: cabezas | H62: ='Ecuaciones y FE'!AF469 ->  | I62: ='Ecuaciones y FE'!W469 -> 0 | J62: ='Ecuaciones y FE'!X469 ->  | K62: ='Ecuaciones y FE'!Y469 -> 
A63: Ab055 | B63: Agropecuario | C63: Subsector ganadería | D63: Bovinos para otros propósitos | E63: Sin gestión de estiércol excretado en pasturas, prados o praderas (BO) | F63: Multiplique el número de cabezas por la fracción de excretas manejadas, e ingrese el resultado | G63: cabezas | H63: ='Ecuaciones y FE'!AF471 ->  | I63: ='Ecuaciones y FE'!W471 -> 0 | J63: ='Ecuaciones y FE'!X471 ->  | K63: ='Ecuaciones y FE'!Y471 -> 
A64: Ab056 | B64: Agropecuario | C64: Subsector ganadería | D64: Bovinos para otros propósitos | E64: Aplicación de estiércol en tierras de cultivo o pasturas dentro de las 24 horas de su excreción (BO) | F64: Multiplique el número de cabezas por la fracción de excretas manejadas, e ingrese el resultado | G64: cabezas | H64: ='Ecuaciones y FE'!AF472 ->  | I64: ='Ecuaciones y FE'!W472 -> 0 | J64: ='Ecuaciones y FE'!X472 ->  | K64: ='Ecuaciones y FE'!Y472 -> 
A65: Ab057 | B65: Agropecuario | C65: Subsector ganadería | D65: Bovinos para otros propósitos | E65: Almacenamiento de estiércol en pilas o montones no confinados (BO) | F65: Multiplique el número de cabezas por la fracción de excretas manejadas, e ingrese el resultado | G65: cabezas | H65: ='Ecuaciones y FE'!AF473 ->  | I65: ='Ecuaciones y FE'!W473 -> 0 | J65: ='Ecuaciones y FE'!X473 ->  | K65: ='Ecuaciones y FE'!Y473 -> 
A66: Ab058 | B66: Agropecuario | C66: Subsector ganadería | D66: Bovinos para otros propósitos | E66: Confinamiento de estiércol, con o sin retiro periódico (BO) | F66: Multiplique el número de cabezas por la fracción de excretas manejadas, e ingrese el resultado | G66: cabezas | H66: ='Ecuaciones y FE'!AF474 ->  | I66: ='Ecuaciones y FE'!W474 -> 0 | J66: ='Ecuaciones y FE'!X474 ->  | K66: ='Ecuaciones y FE'!Y474 -> 
A67: Ab059 | B67: Agropecuario | C67: Subsector ganadería | D67: Bovinos para otros propósitos | E67: Almacenamiento de estiércol (como se excreta o con un mínimo de agua) en tanques o estanques de tierra (BO) | F67: Multiplique el número de cabezas por la fracción de excretas manejadas, e ingrese el resultado | G67: cabezas | H67: ='Ecuaciones y FE'!AF475 ->  | I67: ='Ecuaciones y FE'!W475 -> 0 | J67: ='Ecuaciones y FE'!X475 ->  | K67: ='Ecuaciones y FE'!Y475 -> 
A68: Ab060 | B68: Agropecuario | C68: Subsector ganadería | D68: Bovinos para otros propósitos | E68: Almacenamiento de estiércol líquido (BO) | F68: Multiplique el número de cabezas por la fracción de excretas manejadas, e ingrese el resultado | G68: cabezas | H68: ='Ecuaciones y FE'!AF476 ->  | I68: ='Ecuaciones y FE'!W476 -> 0 | J68: ='Ecuaciones y FE'!X476 ->  | K68: ='Ecuaciones y FE'!Y476 -> 
A69: Ab061 | B69: Agropecuario | C69: Subsector ganadería | D69: Bovinos para otros propósitos | E69: Almacenamiento del estiércol (con poco o ningún agregado de agua) debajo de un suelo emparrillado (BO) | F69: Multiplique el número de cabezas por la fracción de excretas manejadas, e ingrese el resultado | G69: cabezas | H69: ='Ecuaciones y FE'!AF477 ->  | I69: ='Ecuaciones y FE'!W477 -> 0 | J69: ='Ecuaciones y FE'!X477 ->  | K69: ='Ecuaciones y FE'!Y477 -> 
A70: Ab062 | B70: Agropecuario | C70: Subsector ganadería | D70: Bovinos para otros propósitos | E70: Almacenamiento de estiércol (con o sin paja) en un tanque contenedor o en una laguna cubierta en condiciones anaerobias (BO) | F70: Multiplique el número de cabezas por la fracción de excretas manejadas, e ingrese el resultado | G70: cabezas | H70: ='Ecuaciones y FE'!AF478 ->  | I70: ='Ecuaciones y FE'!W478 -> 0 | J70: ='Ecuaciones y FE'!X478 ->  | K70: ='Ecuaciones y FE'!Y478 -> 
A71: Ab063 | B71: Agropecuario | C71: Subsector ganadería | D71: Bovinos para otros propósitos | E71: Quema o uso como combustible de estiércol seco (BO) | F71: Multiplique el número de cabezas por la fracción de excretas manejadas, e ingrese el resultado | G71: cabezas | H71: ='Ecuaciones y FE'!AF479 ->  | I71: ='Ecuaciones y FE'!W479 -> 0 | J71: ='Ecuaciones y FE'!X479 ->  | K71: ='Ecuaciones y FE'!Y479 -> 
A72: Ab064 | B72: Agropecuario | C72: Subsector ganadería | D72: Bovinos para otros propósitos | E72: Almacenamiento de estiércol con cama de agregados para el control de humedad (BO) | F72: Multiplique el número de cabezas por la fracción de excretas manejadas, e ingrese el resultado | G72: cabezas | H72: ='Ecuaciones y FE'!AF480 ->  | I72: ='Ecuaciones y FE'!W480 -> 0 | J72: ='Ecuaciones y FE'!X480 ->  | K72: ='Ecuaciones y FE'!Y480 -> 
A73: Ab065 | B73: Agropecuario | C73: Subsector ganadería | D73: Bovinos para otros propósitos | E73: Composteo en canal cerrado, con aireación forzada y mezclado permanente (BO) | F73: Multiplique el número de cabezas por la fracción de excretas manejadas, e ingrese el resultado | G73: cabezas | H73: ='Ecuaciones y FE'!AF481 ->  | I73: ='Ecuaciones y FE'!W481 -> 0 | J73: ='Ecuaciones y FE'!X481 ->  | K73: ='Ecuaciones y FE'!Y481 -> 
A74: Ab066 | B74: Agropecuario | C74: Subsector ganadería | D74: Bovinos para otros propósitos | E74: Composteo en pilas con aireación forzada pero sin mezclado (BO) | F74: Multiplique el número de cabezas por la fracción de excretas manejadas, e ingrese el resultado | G74: cabezas | H74: ='Ecuaciones y FE'!AF482 ->  | I74: ='Ecuaciones y FE'!W482 -> 0 | J74: ='Ecuaciones y FE'!X482 ->  | K74: ='Ecuaciones y FE'!Y482 -> 
A75: Ab067 | B75: Agropecuario | C75: Subsector ganadería | D75: Bovinos para otros propósitos | E75: Composteo en pilas rectangulares con mezclado de medias vueltas regulares (diario) para mezclado y aireación (BO) | F75: Multiplique el número de cabezas por la fracción de excretas manejadas, e ingrese el resultado | G75: cabezas | H75: ='Ecuaciones y FE'!AF483 ->  | I75: ='Ecuaciones y FE'!W483 -> 0 | J75: ='Ecuaciones y FE'!X483 ->  | K75: ='Ecuaciones y FE'!Y483 -> 
A76: Ab068 | B76: Agropecuario | C76: Subsector ganadería | D76: Bovinos para otros propósitos | E76: Composteo en pilas rectangulares con mezclado de medias vueltas frecuentes para mezclado y aireación (BO) | F76: Multiplique el número de cabezas por la fracción de excretas manejadas, e ingrese el resultado | G76: cabezas | H76: ='Ecuaciones y FE'!AF484 ->  | I76: ='Ecuaciones y FE'!W484 -> 0 | J76: ='Ecuaciones y FE'!X484 ->  | K76: ='Ecuaciones y FE'!Y484 -> 
A77: Ab069 | B77: Agropecuario | C77: Subsector ganadería | D77: Bovinos para otros propósitos | E77: Mezclado de estiércol de aves de corral con hojarasca en camas profundas (no combinadas con engorde en corral o pastura) (BO) | F77: Multiplique el número de cabezas por la fracción de excretas manejadas, e ingrese el resultado | G77: cabezas | H77: ='Ecuaciones y FE'!AF485 ->  | I77: ='Ecuaciones y FE'!W485 -> 0 | J77: ='Ecuaciones y FE'!X485 ->  | K77: ='Ecuaciones y FE'!Y485 -> 
A78: Ab070 | B78: Agropecuario | C78: Subsector ganadería | D78: Bovinos para otros propósitos | E78: Manejo de estiércol de aves de corral sin hojarasca en pozos abiertos en instalaciones cerradas (BO) | F78: Multiplique el número de cabezas por la fracción de excretas manejadas, e ingrese el resultado | G78: cabezas | H78: ='Ecuaciones y FE'!AF486 ->  | I78: ='Ecuaciones y FE'!W486 -> 0 | J78: ='Ecuaciones y FE'!X486 ->  | K78: ='Ecuaciones y FE'!Y486 -> 
A79: Ab071 | B79: Agropecuario | C79: Subsector ganadería | D79: Bovinos para otros propósitos | E79: Oxidación biológica aeróbica del estiércol con aireación (BO) | F79: Multiplique el número de cabezas por la fracción de excretas manejadas, e ingrese el resultado | G79: cabezas | H79: ='Ecuaciones y FE'!AF487 ->  | I79: ='Ecuaciones y FE'!W487 -> 0 | J79: ='Ecuaciones y FE'!X487 ->  | K79: ='Ecuaciones y FE'!Y487 -> 
A80: Ab072 | B80: Agropecuario | C80: Subsector ganadería | D80: Bovinos para otros propósitos | E80: Oxidación biológica aeróbica del estiércol con aireación forzada (BO) | F80: Multiplique el número de cabezas por la fracción de excretas manejadas, e ingrese el resultado | G80: cabezas | H80: ='Ecuaciones y FE'!AF488 ->  | I80: ='Ecuaciones y FE'!W488 -> 0 | J80: ='Ecuaciones y FE'!X488 ->  | K80: ='Ecuaciones y FE'!Y488 -> 
A81: Ab073 | B81: Agropecuario | C81: Subsector ganadería | D81: Porcinos para la producción de carne | E81: Sin gestión de estiércol excretado en pasturas, prados o praderas (P) | F81: Multiplique el número de cabezas por la fracción de excretas manejadas, e ingrese el resultado | G81: cabezas | H81: ='Ecuaciones y FE'!AF490 ->  | I81: ='Ecuaciones y FE'!W490 -> 0 | J81: ='Ecuaciones y FE'!X490 ->  | K81: ='Ecuaciones y FE'!Y490 -> 
A82: Ab074 | B82: Agropecuario | C82: Subsector ganadería | D82: Porcinos para la producción de carne | E82: Aplicación de estiércol en tierras de cultivo o pasturas dentro de las 24 horas de su excreción (P) | F82: Multiplique el número de cabezas por la fracción de excretas manejadas, e ingrese el resultado | G82: cabezas | H82: ='Ecuaciones y FE'!AF491 ->  | I82: ='Ecuaciones y FE'!W491 -> 0 | J82: ='Ecuaciones y FE'!X491 ->  | K82: ='Ecuaciones y FE'!Y491 -> 
A83: Ab075 | B83: Agropecuario | C83: Subsector ganadería | D83: Porcinos para la producción de carne | E83: Almacenamiento de estiércol en pilas o montones no confinados (P) | F83: Multiplique el número de cabezas por la fracción de excretas manejadas, e ingrese el resultado | G83: cabezas | H83: ='Ecuaciones y FE'!AF492 ->  | I83: ='Ecuaciones y FE'!W492 -> 0 | J83: ='Ecuaciones y FE'!X492 ->  | K83: ='Ecuaciones y FE'!Y492 -> 
A84: Ab076 | B84: Agropecuario | C84: Subsector ganadería | D84: Porcinos para la producción de carne | E84: Confinamiento de estiércol, con o sin retiro periódico (P) | F84: Multiplique el número de cabezas por la fracción de excretas manejadas, e ingrese el resultado | G84: cabezas | H84: ='Ecuaciones y FE'!AF493 ->  | I84: ='Ecuaciones y FE'!W493 -> 0 | J84: ='Ecuaciones y FE'!X493 ->  | K84: ='Ecuaciones y FE'!Y493 -> 
A85: Ab077 | B85: Agropecuario | C85: Subsector ganadería | D85: Porcinos para la producción de carne | E85: Almacenamiento de estiércol (como se excreta o con un mínimo de agua) en tanques o estanques de tierra (P) | F85: Multiplique el número de cabezas por la fracción de excretas manejadas, e ingrese el resultado | G85: cabezas | H85: ='Ecuaciones y FE'!AF494 ->  | I85: ='Ecuaciones y FE'!W494 -> 0 | J85: ='Ecuaciones y FE'!X494 ->  | K85: ='Ecuaciones y FE'!Y494 -> 
A86: Ab078 | B86: Agropecuario | C86: Subsector ganadería | D86: Porcinos para la producción de carne | E86: Almacenamiento de estiércol líquido (P) | F86: Multiplique el número de cabezas por la fracción de excretas manejadas, e ingrese el resultado | G86: cabezas | H86: ='Ecuaciones y FE'!AF495 ->  | I86: ='Ecuaciones y FE'!W495 -> 0 | J86: ='Ecuaciones y FE'!X495 ->  | K86: ='Ecuaciones y FE'!Y495 -> 
A87: Ab079 | B87: Agropecuario | C87: Subsector ganadería | D87: Porcinos para la producción de carne | E87: Almacenamiento del estiércol (con poco o ningún agregado de agua) debajo de un suelo emparrillado (P) | F87: Multiplique el número de cabezas por la fracción de excretas manejadas, e ingrese el resultado | G87: cabezas | H87: ='Ecuaciones y FE'!AF496 ->  | I87: ='Ecuaciones y FE'!W496 -> 0 | J87: ='Ecuaciones y FE'!X496 ->  | K87: ='Ecuaciones y FE'!Y496 -> 
A88: Ab080 | B88: Agropecuario | C88: Subsector ganadería | D88: Porcinos para la producción de carne | E88: Almacenamiento de estiércol (con o sin paja) en un tanque contenedor o en una laguna cubierta en condiciones anaerobias (P) | F88: Multiplique el número de cabezas por la fracción de excretas manejadas, e ingrese el resultado | G88: cabezas | H88: ='Ecuaciones y FE'!AF497 ->  | I88: ='Ecuaciones y FE'!W497 -> 0 | J88: ='Ecuaciones y FE'!X497 ->  | K88: ='Ecuaciones y FE'!Y497 -> 
A89: Ab081 | B89: Agropecuario | C89: Subsector ganadería | D89: Porcinos para la producción de carne | E89: Quema o uso como combustible de estiércol seco (P) | F89: Multiplique el número de cabezas por la fracción de excretas manejadas, e ingrese el resultado | G89: cabezas | H89: ='Ecuaciones y FE'!AF498 ->  | I89: ='Ecuaciones y FE'!W498 -> 0 | J89: ='Ecuaciones y FE'!X498 ->  | K89: ='Ecuaciones y FE'!Y498 -> 
A90: Ab082 | B90: Agropecuario | C90: Subsector ganadería | D90: Porcinos para la producción de carne | E90: Almacenamiento de estiércol con cama de agregados para el control de humedad (P) | F90: Multiplique el número de cabezas por la fracción de excretas manejadas, e ingrese el resultado | G90: cabezas | H90: ='Ecuaciones y FE'!AF499 ->  | I90: ='Ecuaciones y FE'!W499 -> 0 | J90: ='Ecuaciones y FE'!X499 ->  | K90: ='Ecuaciones y FE'!Y499 -> 
A91: Ab083 | B91: Agropecuario | C91: Subsector ganadería | D91: Porcinos para la producción de carne | E91: Composteo en canal cerrado, con aireación forzada y mezclado permanente (P) | F91: Multiplique el número de cabezas por la fracción de excretas manejadas, e ingrese el resultado | G91: cabezas | H91: ='Ecuaciones y FE'!AF500 ->  | I91: ='Ecuaciones y FE'!W500 -> 0 | J91: ='Ecuaciones y FE'!X500 ->  | K91: ='Ecuaciones y FE'!Y500 -> 
A92: Ab084 | B92: Agropecuario | C92: Subsector ganadería | D92: Porcinos para la producción de carne | E92: Composteo en pilas con aireación forzada pero sin mezclado (P) | F92: Multiplique el número de cabezas por la fracción de excretas manejadas, e ingrese el resultado | G92: cabezas | H92: ='Ecuaciones y FE'!AF501 ->  | I92: ='Ecuaciones y FE'!W501 -> 0 | J92: ='Ecuaciones y FE'!X501 ->  | K92: ='Ecuaciones y FE'!Y501 -> 
A93: Ab085 | B93: Agropecuario | C93: Subsector ganadería | D93: Porcinos para la producción de carne | E93: Composteo en pilas rectangulares con mezclado de medias vueltas regulares (diario) para mezclado y aireación (P) | F93: Multiplique el número de cabezas por la fracción de excretas manejadas, e ingrese el resultado | G93: cabezas | H93: ='Ecuaciones y FE'!AF502 ->  | I93: ='Ecuaciones y FE'!W502 -> 0 | J93: ='Ecuaciones y FE'!X502 ->  | K93: ='Ecuaciones y FE'!Y502 -> 
A94: Ab086 | B94: Agropecuario | C94: Subsector ganadería | D94: Porcinos para la producción de carne | E94: Composteo en pilas rectangulares con mezclado de medias vueltas frecuentes para mezclado y aireación (P) | F94: Multiplique el número de cabezas por la fracción de excretas manejadas, e ingrese el resultado | G94: cabezas | H94: ='Ecuaciones y FE'!AF503 ->  | I94: ='Ecuaciones y FE'!W503 -> 0 | J94: ='Ecuaciones y FE'!X503 ->  | K94: ='Ecuaciones y FE'!Y503 -> 
A95: Ab087 | B95: Agropecuario | C95: Subsector ganadería | D95: Porcinos para la producción de carne | E95: Mezclado de estiércol de aves de corral con hojarasca en camas profundas (no combinadas con engorde en corral o pastura) (P) | F95: Multiplique el número de cabezas por la fracción de excretas manejadas, e ingrese el resultado | G95: cabezas | H95: ='Ecuaciones y FE'!AF504 ->  | I95: ='Ecuaciones y FE'!W504 -> 0 | J95: ='Ecuaciones y FE'!X504 ->  | K95: ='Ecuaciones y FE'!Y504 -> 
A96: Ab088 | B96: Agropecuario | C96: Subsector ganadería | D96: Porcinos para la producción de carne | E96: Manejo de estiércol de aves de corral sin hojarasca en pozos abiertos en instalaciones cerradas (P) | F96: Multiplique el número de cabezas por la fracción de excretas manejadas, e ingrese el resultado | G96: cabezas | H96: ='Ecuaciones y FE'!AF505 ->  | I96: ='Ecuaciones y FE'!W505 -> 0 | J96: ='Ecuaciones y FE'!X505 ->  | K96: ='Ecuaciones y FE'!Y505 -> 
A97: Ab089 | B97: Agropecuario | C97: Subsector ganadería | D97: Porcinos para la producción de carne | E97: Oxidación biológica aeróbica del estiércol con aireación (P) | F97: Multiplique el número de cabezas por la fracción de excretas manejadas, e ingrese el resultado | G97: cabezas | H97: ='Ecuaciones y FE'!AF506 ->  | I97: ='Ecuaciones y FE'!W506 -> 0 | J97: ='Ecuaciones y FE'!X506 ->  | K97: ='Ecuaciones y FE'!Y506 -> 
A98: Ab090 | B98: Agropecuario | C98: Subsector ganadería | D98: Porcinos para la producción de carne | E98: Oxidación biológica aeróbica del estiércol con aireación forzada (P) | F98: Multiplique el número de cabezas por la fracción de excretas manejadas, e ingrese el resultado | G98: cabezas | H98: ='Ecuaciones y FE'!AF507 ->  | I98: ='Ecuaciones y FE'!W507 -> 0 | J98: ='Ecuaciones y FE'!X507 ->  | K98: ='Ecuaciones y FE'!Y507 -> 
A99: Ab091 | B99: Agropecuario | C99: Subsector ganadería | D99: Avícola para la producción de huevo | E99: Sin gestión de estiércol excretado en pasturas, prados o praderas (AH) | F99: Multiplique el número de cabezas por la fracción de excretas manejadas, e ingrese el resultado | G99: cabezas | H99: ='Ecuaciones y FE'!AF509 ->  | I99: ='Ecuaciones y FE'!W509 -> 0 | J99: ='Ecuaciones y FE'!X509 ->  | K99: ='Ecuaciones y FE'!Y509 -> 
A100: Ab092 | B100: Agropecuario | C100: Subsector ganadería | D100: Avícola para la producción de huevo | E100: Aplicación de estiércol en tierras de cultivo o pasturas dentro de las 24 horas de su excreción (AH) | F100: Multiplique el número de cabezas por la fracción de excretas manejadas, e ingrese el resultado | G100: cabezas | H100: ='Ecuaciones y FE'!AF510 ->  | I100: ='Ecuaciones y FE'!W510 -> 0 | J100: ='Ecuaciones y FE'!X510 ->  | K100: ='Ecuaciones y FE'!Y510 -> 
A101: Ab093 | B101: Agropecuario | C101: Subsector ganadería | D101: Avícola para la producción de huevo | E101: Almacenamiento de estiércol en pilas o montones no confinados (AH) | F101: Multiplique el número de cabezas por la fracción de excretas manejadas, e ingrese el resultado | G101: cabezas | H101: ='Ecuaciones y FE'!AF511 ->  | I101: ='Ecuaciones y FE'!W511 -> 0 | J101: ='Ecuaciones y FE'!X511 ->  | K101: ='Ecuaciones y FE'!Y511 -> 
A102: Ab094 | B102: Agropecuario | C102: Subsector ganadería | D102: Avícola para la producción de huevo | E102: Confinamiento de estiércol, con o sin retiro periódico (AH) | F102: Multiplique el número de cabezas por la fracción de excretas manejadas, e ingrese el resultado | G102: cabezas | H102: ='Ecuaciones y FE'!AF512 ->  | I102: ='Ecuaciones y FE'!W512 -> 0 | J102: ='Ecuaciones y FE'!X512 ->  | K102: ='Ecuaciones y FE'!Y512 -> 
A103: Ab095 | B103: Agropecuario | C103: Subsector ganadería | D103: Avícola para la producción de huevo | E103: Almacenamiento de estiércol (como se excreta o con un mínimo de agua) en tanques o estanques de tierra (AH) | F103: Multiplique el número de cabezas por la fracción de excretas manejadas, e ingrese el resultado | G103: cabezas | H103: ='Ecuaciones y FE'!AF513 ->  | I103: ='Ecuaciones y FE'!W513 -> 0 | J103: ='Ecuaciones y FE'!X513 ->  | K103: ='Ecuaciones y FE'!Y513 -> 
A104: Ab096 | B104: Agropecuario | C104: Subsector ganadería | D104: Avícola para la producción de huevo | E104: Almacenamiento de estiércol líquido (AH) | F104: Multiplique el número de cabezas por la fracción de excretas manejadas, e ingrese el resultado | G104: cabezas | H104: ='Ecuaciones y FE'!AF514 ->  | I104: ='Ecuaciones y FE'!W514 -> 0 | J104: ='Ecuaciones y FE'!X514 ->  | K104: ='Ecuaciones y FE'!Y514 -> 
A105: Ab097 | B105: Agropecuario | C105: Subsector ganadería | D105: Avícola para la producción de huevo | E105: Almacenamiento del estiércol (con poco o ningún agregado de agua) debajo de un suelo emparrillado (AH) | F105: Multiplique el número de cabezas por la fracción de excretas manejadas, e ingrese el resultado | G105: cabezas | H105: ='Ecuaciones y FE'!AF515 ->  | I105: ='Ecuaciones y FE'!W515 -> 0 | J105: ='Ecuaciones y FE'!X515 ->  | K105: ='Ecuaciones y FE'!Y515 -> 
A106: Ab098 | B106: Agropecuario | C106: Subsector ganadería | D106: Avícola para la producción de huevo | E106: Almacenamiento de estiércol (con o sin paja) en un tanque contenedor o en una laguna cubierta en condiciones anaerobias (AH) | F106: Multiplique el número de cabezas por la fracción de excretas manejadas, e ingrese el resultado | G106: cabezas | H106: ='Ecuaciones y FE'!AF516 ->  | I106: ='Ecuaciones y FE'!W516 -> 0 | J106: ='Ecuaciones y FE'!X516 ->  | K106: ='Ecuaciones y FE'!Y516 -> 
A107: Ab099 | B107: Agropecuario | C107: Subsector ganadería | D107: Avícola para la producción de huevo | E107: Quema o uso como combustible de estiércol seco (AH) | F107: Multiplique el número de cabezas por la fracción de excretas manejadas, e ingrese el resultado | G107: cabezas | H107: ='Ecuaciones y FE'!AF517 ->  | I107: ='Ecuaciones y FE'!W517 -> 0 | J107: ='Ecuaciones y FE'!X517 ->  | K107: ='Ecuaciones y FE'!Y517 -> 
A108: Ab100 | B108: Agropecuario | C108: Subsector ganadería | D108: Avícola para la producción de huevo | E108: Almacenamiento de estiércol con cama de agregados para el control de humedad (AH) | F108: Multiplique el número de cabezas por la fracción de excretas manejadas, e ingrese el resultado | G108: cabezas | H108: ='Ecuaciones y FE'!AF518 ->  | I108: ='Ecuaciones y FE'!W518 -> 0 | J108: ='Ecuaciones y FE'!X518 ->  | K108: ='Ecuaciones y FE'!Y518 -> 
A109: Ab101 | B109: Agropecuario | C109: Subsector ganadería | D109: Avícola para la producción de huevo | E109: Composteo en canal cerrado, con aireación forzada y mezclado permanente (AH) | F109: Multiplique el número de cabezas por la fracción de excretas manejadas, e ingrese el resultado | G109: cabezas | H109: ='Ecuaciones y FE'!AF519 ->  | I109: ='Ecuaciones y FE'!W519 -> 0 | J109: ='Ecuaciones y FE'!X519 ->  | K109: ='Ecuaciones y FE'!Y519 -> 
A110: Ab102 | B110: Agropecuario | C110: Subsector ganadería | D110: Avícola para la producción de huevo | E110: Composteo en pilas con aireación forzada pero sin mezclado (AH) | F110: Multiplique el número de cabezas por la fracción de excretas manejadas, e ingrese el resultado | G110: cabezas | H110: ='Ecuaciones y FE'!AF520 ->  | I110: ='Ecuaciones y FE'!W520 -> 0 | J110: ='Ecuaciones y FE'!X520 ->  | K110: ='Ecuaciones y FE'!Y520 -> 
A111: Ab103 | B111: Agropecuario | C111: Subsector ganadería | D111: Avícola para la producción de huevo | E111: Composteo en pilas rectangulares con mezclado de medias vueltas regulares (diario) para mezclado y aireación (AH) | F111: Multiplique el número de cabezas por la fracción de excretas manejadas, e ingrese el resultado | G111: cabezas | H111: ='Ecuaciones y FE'!AF521 ->  | I111: ='Ecuaciones y FE'!W521 -> 0 | J111: ='Ecuaciones y FE'!X521 ->  | K111: ='Ecuaciones y FE'!Y521 -> 
A112: Ab104 | B112: Agropecuario | C112: Subsector ganadería | D112: Avícola para la producción de huevo | E112: Composteo en pilas rectangulares con mezclado de medias vueltas frecuentes para mezclado y aireación (AH) | F112: Multiplique el número de cabezas por la fracción de excretas manejadas, e ingrese el resultado | G112: cabezas | H112: ='Ecuaciones y FE'!AF522 ->  | I112: ='Ecuaciones y FE'!W522 -> 0 | J112: ='Ecuaciones y FE'!X522 ->  | K112: ='Ecuaciones y FE'!Y522 -> 
A113: Ab105 | B113: Agropecuario | C113: Subsector ganadería | D113: Avícola para la producción de huevo | E113: Mezclado de estiércol de aves de corral con hojarasca en camas profundas (no combinadas con engorde en corral o pastura) (AH) | F113: Multiplique el número de cabezas por la fracción de excretas manejadas, e ingrese el resultado | G113: cabezas | H113: ='Ecuaciones y FE'!AF523 ->  | I113: ='Ecuaciones y FE'!W523 -> 0 | J113: ='Ecuaciones y FE'!X523 ->  | K113: ='Ecuaciones y FE'!Y523 -> 
A114: Ab106 | B114: Agropecuario | C114: Subsector ganadería | D114: Avícola para la producción de huevo | E114: Manejo de estiércol de aves de corral sin hojarasca en pozos abiertos en instalaciones cerradas (AH) | F114: Multiplique el número de cabezas por la fracción de excretas manejadas, e ingrese el resultado | G114: cabezas | H114: ='Ecuaciones y FE'!AF524 ->  | I114: ='Ecuaciones y FE'!W524 -> 0 | J114: ='Ecuaciones y FE'!X524 ->  | K114: ='Ecuaciones y FE'!Y524 -> 
A115: Ab107 | B115: Agropecuario | C115: Subsector ganadería | D115: Avícola para la producción de huevo | E115: Oxidación biológica aeróbica del estiércol con aireación (AH) | F115: Multiplique el número de cabezas por la fracción de excretas manejadas, e ingrese el resultado | G115: cabezas | H115: ='Ecuaciones y FE'!AF525 ->  | I115: ='Ecuaciones y FE'!W525 -> 0 | J115: ='Ecuaciones y FE'!X525 ->  | K115: ='Ecuaciones y FE'!Y525 -> 
A116: Ab108 | B116: Agropecuario | C116: Subsector ganadería | D116: Avícola para la producción de huevo | E116: Oxidación biológica aeróbica del estiércol con aireación forzada (AH) | F116: Multiplique el número de cabezas por la fracción de excretas manejadas, e ingrese el resultado | G116: cabezas | H116: ='Ecuaciones y FE'!AF526 ->  | I116: ='Ecuaciones y FE'!W526 -> 0 | J116: ='Ecuaciones y FE'!X526 ->  | K116: ='Ecuaciones y FE'!Y526 -> 
A117: Ab109 | B117: Agropecuario | C117: Subsector ganadería | D117: Avícola para la producción de carne | E117: Sin gestión de estiércol excretado en pasturas, prados o praderas (AC) | F117: Multiplique el número de cabezas por la fracción de excretas manejadas, e ingrese el resultado | G117: cabezas | H117: ='Ecuaciones y FE'!AF528 ->  | I117: ='Ecuaciones y FE'!W528 -> 0 | J117: ='Ecuaciones y FE'!X528 ->  | K117: ='Ecuaciones y FE'!Y528 -> 
A118: Ab110 | B118: Agropecuario | C118: Subsector ganadería | D118: Avícola para la producción de carne | E118: Aplicación de estiércol en tierras de cultivo o pasturas dentro de las 24 horas de su excreción (AC) | F118: Multiplique el número de cabezas por la fracción de excretas manejadas, e ingrese el resultado | G118: cabezas | H118: ='Ecuaciones y FE'!AF529 ->  | I118: ='Ecuaciones y FE'!W529 -> 0 | J118: ='Ecuaciones y FE'!X529 ->  | K118: ='Ecuaciones y FE'!Y529 -> 
A119: Ab111 | B119: Agropecuario | C119: Subsector ganadería | D119: Avícola para la producción de carne | E119: Almacenamiento de estiércol en pilas o montones no confinados (AC) | F119: Multiplique el número de cabezas por la fracción de excretas manejadas, e ingrese el resultado | G119: cabezas | H119: ='Ecuaciones y FE'!AF530 ->  | I119: ='Ecuaciones y FE'!W530 -> 0 | J119: ='Ecuaciones y FE'!X530 ->  | K119: ='Ecuaciones y FE'!Y530 -> 
A120: Ab112 | B120: Agropecuario | C120: Subsector ganadería | D120: Avícola para la producción de carne | E120: Confinamiento de estiércol, con o sin retiro periódico (AC) | F120: Multiplique el número de cabezas por la fracción de excretas manejadas, e ingrese el resultado | G120: cabezas | H120: ='Ecuaciones y FE'!AF531 ->  | I120: ='Ecuaciones y FE'!W531 -> 0 | J120: ='Ecuaciones y FE'!X531 ->  | K120: ='Ecuaciones y FE'!Y531 -> 
A121: Ab113 | B121: Agropecuario | C121: Subsector ganadería | D121: Avícola para la producción de carne | E121: Almacenamiento de estiércol (como se excreta o con un mínimo de agua) en tanques o estanques de tierra (AC) | F121: Multiplique el número de cabezas por la fracción de excretas manejadas, e ingrese el resultado | G121: cabezas | H121: ='Ecuaciones y FE'!AF532 ->  | I121: ='Ecuaciones y FE'!W532 -> 0 | J121: ='Ecuaciones y FE'!X532 ->  | K121: ='Ecuaciones y FE'!Y532 -> 
A122: Ab114 | B122: Agropecuario | C122: Subsector ganadería | D122: Avícola para la producción de carne | E122: Almacenamiento de estiércol líquido (AC) | F122: Multiplique el número de cabezas por la fracción de excretas manejadas, e ingrese el resultado | G122: cabezas | H122: ='Ecuaciones y FE'!AF533 ->  | I122: ='Ecuaciones y FE'!W533 -> 0 | J122: ='Ecuaciones y FE'!X533 ->  | K122: ='Ecuaciones y FE'!Y533 -> 
A123: Ab115 | B123: Agropecuario | C123: Subsector ganadería | D123: Avícola para la producción de carne | E123: Almacenamiento del estiércol (con poco o ningún agregado de agua) debajo de un suelo emparrillado (AC) | F123: Multiplique el número de cabezas por la fracción de excretas manejadas, e ingrese el resultado | G123: cabezas | H123: ='Ecuaciones y FE'!AF534 ->  | I123: ='Ecuaciones y FE'!W534 -> 0 | J123: ='Ecuaciones y FE'!X534 ->  | K123: ='Ecuaciones y FE'!Y534 -> 
A124: Ab116 | B124: Agropecuario | C124: Subsector ganadería | D124: Avícola para la producción de carne | E124: Almacenamiento de estiércol (con o sin paja) en un tanque contenedor o en una laguna cubierta en condiciones anaerobias (AC) | F124: Multiplique el número de cabezas por la fracción de excretas manejadas, e ingrese el resultado | G124: cabezas | H124: ='Ecuaciones y FE'!AF535 ->  | I124: ='Ecuaciones y FE'!W535 -> 0 | J124: ='Ecuaciones y FE'!X535 ->  | K124: ='Ecuaciones y FE'!Y535 -> 
A125: Ab117 | B125: Agropecuario | C125: Subsector ganadería | D125: Avícola para la producción de carne | E125: Quema o uso como combustible de estiércol seco (AC) | F125: Multiplique el número de cabezas por la fracción de excretas manejadas, e ingrese el resultado | G125: cabezas | H125: ='Ecuaciones y FE'!AF536 ->  | I125: ='Ecuaciones y FE'!W536 -> 0 | J125: ='Ecuaciones y FE'!X536 ->  | K125: ='Ecuaciones y FE'!Y536 -> 
A126: Ab118 | B126: Agropecuario | C126: Subsector ganadería | D126: Avícola para la producción de carne | E126: Almacenamiento de estiércol con cama de agregados para el control de humedad (AC) | F126: Multiplique el número de cabezas por la fracción de excretas manejadas, e ingrese el resultado | G126: cabezas | H126: ='Ecuaciones y FE'!AF537 ->  | I126: ='Ecuaciones y FE'!W537 -> 0 | J126: ='Ecuaciones y FE'!X537 ->  | K126: ='Ecuaciones y FE'!Y537 -> 
A127: Ab119 | B127: Agropecuario | C127: Subsector ganadería | D127: Avícola para la producción de carne | E127: Composteo en canal cerrado, con aireación forzada y mezclado permanente (AC) | F127: Multiplique el número de cabezas por la fracción de excretas manejadas, e ingrese el resultado | G127: cabezas | H127: ='Ecuaciones y FE'!AF538 ->  | I127: ='Ecuaciones y FE'!W538 -> 0 | J127: ='Ecuaciones y FE'!X538 ->  | K127: ='Ecuaciones y FE'!Y538 -> 
A128: Ab120 | B128: Agropecuario | C128: Subsector ganadería | D128: Avícola para la producción de carne | E128: Composteo en pilas con aireación forzada pero sin mezclado (AC) | F128: Multiplique el número de cabezas por la fracción de excretas manejadas, e ingrese el resultado | G128: cabezas | H128: ='Ecuaciones y FE'!AF539 ->  | I128: ='Ecuaciones y FE'!W539 -> 0 | J128: ='Ecuaciones y FE'!X539 ->  | K128: ='Ecuaciones y FE'!Y539 -> 
A129: Ab121 | B129: Agropecuario | C129: Subsector ganadería | D129: Avícola para la producción de carne | E129: Composteo en pilas rectangulares con mezclado de medias vueltas regulares (diario) para mezclado y aireación (AC) | F129: Multiplique el número de cabezas por la fracción de excretas manejadas, e ingrese el resultado | G129: cabezas | H129: ='Ecuaciones y FE'!AF540 ->  | I129: ='Ecuaciones y FE'!W540 -> 0 | J129: ='Ecuaciones y FE'!X540 ->  | K129: ='Ecuaciones y FE'!Y540 -> 
A130: Ab122 | B130: Agropecuario | C130: Subsector ganadería | D130: Avícola para la producción de carne | E130: Composteo en pilas rectangulares con mezclado de medias vueltas frecuentes para mezclado y aireación (AC) | F130: Multiplique el número de cabezas por la fracción de excretas manejadas, e ingrese el resultado | G130: cabezas | H130: ='Ecuaciones y FE'!AF541 ->  | I130: ='Ecuaciones y FE'!W541 -> 0 | J130: ='Ecuaciones y FE'!X541 ->  | K130: ='Ecuaciones y FE'!Y541 -> 
A131: Ab123 | B131: Agropecuario | C131: Subsector ganadería | D131: Avícola para la producción de carne | E131: Mezclado de estiércol de aves de corral con hojarasca en camas profundas (no combinadas con engorde en corral o pastura) (AC) | F131: Multiplique el número de cabezas por la fracción de excretas manejadas, e ingrese el resultado | G131: cabezas | H131: ='Ecuaciones y FE'!AF542 ->  | I131: ='Ecuaciones y FE'!W542 -> 0 | J131: ='Ecuaciones y FE'!X542 ->  | K131: ='Ecuaciones y FE'!Y542 -> 
A132: Ab124 | B132: Agropecuario | C132: Subsector ganadería | D132: Avícola para la producción de carne | E132: Manejo de estiércol de aves de corral sin hojarasca en pozos abiertos en instalaciones cerradas (AC) | F132: Multiplique el número de cabezas por la fracción de excretas manejadas, e ingrese el resultado | G132: cabezas | H132: ='Ecuaciones y FE'!AF543 ->  | I132: ='Ecuaciones y FE'!W543 -> 0 | J132: ='Ecuaciones y FE'!X543 ->  | K132: ='Ecuaciones y FE'!Y543 -> 
A133: Ab125 | B133: Agropecuario | C133: Subsector ganadería | D133: Avícola para la producción de carne | E133: Oxidación biológica aeróbica del estiércol con aireación (AC) | F133: Multiplique el número de cabezas por la fracción de excretas manejadas, e ingrese el resultado | G133: cabezas | H133: ='Ecuaciones y FE'!AF544 ->  | I133: ='Ecuaciones y FE'!W544 -> 0 | J133: ='Ecuaciones y FE'!X544 ->  | K133: ='Ecuaciones y FE'!Y544 -> 
A134: Ab126 | B134: Agropecuario | C134: Subsector ganadería | D134: Avícola para la producción de carne | E134: Oxidación biológica aeróbica del estiércol con aireación forzada (AC) | F134: Multiplique el número de cabezas por la fracción de excretas manejadas, e ingrese el resultado | G134: cabezas | H134: ='Ecuaciones y FE'!AF545 ->  | I134: ='Ecuaciones y FE'!W545 -> 0 | J134: ='Ecuaciones y FE'!X545 ->  | K134: ='Ecuaciones y FE'!Y545 -> 
A135: Ab127 | B135: Agropecuario | C135: Subsector ganadería | D135: Avícola para la producción de guajolotes o pavos | E135: Sin gestión de estiércol excretado en pasturas, prados o praderas (AGyP) | F135: Multiplique el número de cabezas por la fracción de excretas manejadas, e ingrese el resultado | G135: cabezas | H135: ='Ecuaciones y FE'!AF547 ->  | I135: ='Ecuaciones y FE'!W547 -> 0 | J135: ='Ecuaciones y FE'!X547 ->  | K135: ='Ecuaciones y FE'!Y547 -> 
A136: Ab128 | B136: Agropecuario | C136: Subsector ganadería | D136: Avícola para la producción de guajolotes o pavos | E136: Aplicación de estiércol en tierras de cultivo o pasturas dentro de las 24 horas de su excreción (AGyP) | F136: Multiplique el número de cabezas por la fracción de excretas manejadas, e ingrese el resultado | G136: cabezas | H136: ='Ecuaciones y FE'!AF548 ->  | I136: ='Ecuaciones y FE'!W548 -> 0 | J136: ='Ecuaciones y FE'!X548 ->  | K136: ='Ecuaciones y FE'!Y548 -> 
A137: Ab129 | B137: Agropecuario | C137: Subsector ganadería | D137: Avícola para la producción de guajolotes o pavos | E137: Almacenamiento de estiércol en pilas o montones no confinados (AGyP) | F137: Multiplique el número de cabezas por la fracción de excretas manejadas, e ingrese el resultado | G137: cabezas | H137: ='Ecuaciones y FE'!AF549 ->  | I137: ='Ecuaciones y FE'!W549 -> 0 | J137: ='Ecuaciones y FE'!X549 ->  | K137: ='Ecuaciones y FE'!Y549 -> 
A138: Ab130 | B138: Agropecuario | C138: Subsector ganadería | D138: Avícola para la producción de guajolotes o pavos | E138: Confinamiento de estiércol, con o sin retiro periódico (AGyP) | F138: Multiplique el número de cabezas por la fracción de excretas manejadas, e ingrese el resultado | G138: cabezas | H138: ='Ecuaciones y FE'!AF550 ->  | I138: ='Ecuaciones y FE'!W550 -> 0 | J138: ='Ecuaciones y FE'!X550 ->  | K138: ='Ecuaciones y FE'!Y550 -> 
A139: Ab131 | B139: Agropecuario | C139: Subsector ganadería | D139: Avícola para la producción de guajolotes o pavos | E139: Almacenamiento de estiércol (como se excreta o con un mínimo de agua) en tanques o estanques de tierra (AGyP) | F139: Multiplique el número de cabezas por la fracción de excretas manejadas, e ingrese el resultado | G139: cabezas | H139: ='Ecuaciones y FE'!AF551 ->  | I139: ='Ecuaciones y FE'!W551 -> 0 | J139: ='Ecuaciones y FE'!X551 ->  | K139: ='Ecuaciones y FE'!Y551 -> 
A140: Ab132 | B140: Agropecuario | C140: Subsector ganadería | D140: Avícola para la producción de guajolotes o pavos | E140: Almacenamiento de estiércol líquido (AGyP) | F140: Multiplique el número de cabezas por la fracción de excretas manejadas, e ingrese el resultado | G140: cabezas | H140: ='Ecuaciones y FE'!AF552 ->  | I140: ='Ecuaciones y FE'!W552 -> 0 | J140: ='Ecuaciones y FE'!X552 ->  | K140: ='Ecuaciones y FE'!Y552 -> 
A141: Ab133 | B141: Agropecuario | C141: Subsector ganadería | D141: Avícola para la producción de guajolotes o pavos | E141: Almacenamiento del estiércol (con poco o ningún agregado de agua) debajo de un suelo emparrillado (AGyP) | F141: Multiplique el número de cabezas por la fracción de excretas manejadas, e ingrese el resultado | G141: cabezas | H141: ='Ecuaciones y FE'!AF553 ->  | I141: ='Ecuaciones y FE'!W553 -> 0 | J141: ='Ecuaciones y FE'!X553 ->  | K141: ='Ecuaciones y FE'!Y553 -> 
A142: Ab134 | B142: Agropecuario | C142: Subsector ganadería | D142: Avícola para la producción de guajolotes o pavos | E142: Almacenamiento de estiércol (con o sin paja) en un tanque contenedor o en una laguna cubierta en condiciones anaerobias (AGyP) | F142: Multiplique el número de cabezas por la fracción de excretas manejadas, e ingrese el resultado | G142: cabezas | H142: ='Ecuaciones y FE'!AF554 ->  | I142: ='Ecuaciones y FE'!W554 -> 0 | J142: ='Ecuaciones y FE'!X554 ->  | K142: ='Ecuaciones y FE'!Y554 -> 
A143: Ab135 | B143: Agropecuario | C143: Subsector ganadería | D143: Avícola para la producción de guajolotes o pavos | E143: Quema o uso como combustible de estiércol seco (AGyP) | F143: Multiplique el número de cabezas por la fracción de excretas manejadas, e ingrese el resultado | G143: cabezas | H143: ='Ecuaciones y FE'!AF555 ->  | I143: ='Ecuaciones y FE'!W555 -> 0 | J143: ='Ecuaciones y FE'!X555 ->  | K143: ='Ecuaciones y FE'!Y555 -> 
A144: Ab136 | B144: Agropecuario | C144: Subsector ganadería | D144: Avícola para la producción de guajolotes o pavos | E144: Almacenamiento de estiércol con cama de agregados para el control de humedad (AGyP) | F144: Multiplique el número de cabezas por la fracción de excretas manejadas, e ingrese el resultado | G144: cabezas | H144: ='Ecuaciones y FE'!AF556 ->  | I144: ='Ecuaciones y FE'!W556 -> 0 | J144: ='Ecuaciones y FE'!X556 ->  | K144: ='Ecuaciones y FE'!Y556 -> 
A145: Ab137 | B145: Agropecuario | C145: Subsector ganadería | D145: Avícola para la producción de guajolotes o pavos | E145: Composteo en canal cerrado, con aireación forzada y mezclado permanente (AGyP) | F145: Multiplique el número de cabezas por la fracción de excretas manejadas, e ingrese el resultado | G145: cabezas | H145: ='Ecuaciones y FE'!AF557 ->  | I145: ='Ecuaciones y FE'!W557 -> 0 | J145: ='Ecuaciones y FE'!X557 ->  | K145: ='Ecuaciones y FE'!Y557 -> 
A146: Ab138 | B146: Agropecuario | C146: Subsector ganadería | D146: Avícola para la producción de guajolotes o pavos | E146: Composteo en pilas con aireación forzada pero sin mezclado (AGyP) | F146: Multiplique el número de cabezas por la fracción de excretas manejadas, e ingrese el resultado | G146: cabezas | H146: ='Ecuaciones y FE'!AF558 ->  | I146: ='Ecuaciones y FE'!W558 -> 0 | J146: ='Ecuaciones y FE'!X558 ->  | K146: ='Ecuaciones y FE'!Y558 -> 
A147: Ab139 | B147: Agropecuario | C147: Subsector ganadería | D147: Avícola para la producción de guajolotes o pavos | E147: Composteo en pilas rectangulares con mezclado de medias vueltas regulares (diario) para mezclado y aireación (AGyP) | F147: Multiplique el número de cabezas por la fracción de excretas manejadas, e ingrese el resultado | G147: cabezas | H147: ='Ecuaciones y FE'!AF559 ->  | I147: ='Ecuaciones y FE'!W559 -> 0 | J147: ='Ecuaciones y FE'!X559 ->  | K147: ='Ecuaciones y FE'!Y559 -> 
A148: Ab140 | B148: Agropecuario | C148: Subsector ganadería | D148: Avícola para la producción de guajolotes o pavos | E148: Composteo en pilas rectangulares con mezclado de medias vueltas frecuentes para mezclado y aireación (AGyP) | F148: Multiplique el número de cabezas por la fracción de excretas manejadas, e ingrese el resultado | G148: cabezas | H148: ='Ecuaciones y FE'!AF560 ->  | I148: ='Ecuaciones y FE'!W560 -> 0 | J148: ='Ecuaciones y FE'!X560 ->  | K148: ='Ecuaciones y FE'!Y560 -> 
A149: Ab141 | B149: Agropecuario | C149: Subsector ganadería | D149: Avícola para la producción de guajolotes o pavos | E149: Mezclado de estiércol de aves de corral con hojarasca en camas profundas (no combinadas con engorde en corral o pastura) (AGyP) | F149: Multiplique el número de cabezas por la fracción de excretas manejadas, e ingrese el resultado | G149: cabezas | H149: ='Ecuaciones y FE'!AF561 ->  | I149: ='Ecuaciones y FE'!W561 -> 0 | J149: ='Ecuaciones y FE'!X561 ->  | K149: ='Ecuaciones y FE'!Y561 -> 
A150: Ab142 | B150: Agropecuario | C150: Subsector ganadería | D150: Avícola para la producción de guajolotes o pavos | E150: Manejo de estiércol de aves de corral sin hojarasca en pozos abiertos en instalaciones cerradas (AGyP) | F150: Multiplique el número de cabezas por la fracción de excretas manejadas, e ingrese el resultado | G150: cabezas | H150: ='Ecuaciones y FE'!AF562 ->  | I150: ='Ecuaciones y FE'!W562 -> 0 | J150: ='Ecuaciones y FE'!X562 ->  | K150: ='Ecuaciones y FE'!Y562 -> 
A151: Ab143 | B151: Agropecuario | C151: Subsector ganadería | D151: Avícola para la producción de guajolotes o pavos | E151: Oxidación biológica aeróbica del estiércol con aireación (AGyP) | F151: Multiplique el número de cabezas por la fracción de excretas manejadas, e ingrese el resultado | G151: cabezas | H151: ='Ecuaciones y FE'!AF563 ->  | I151: ='Ecuaciones y FE'!W563 -> 0 | J151: ='Ecuaciones y FE'!X563 ->  | K151: ='Ecuaciones y FE'!Y563 -> 
A152: Ab144 | B152: Agropecuario | C152: Subsector ganadería | D152: Avícola para la producción de guajolotes o pavos | E152: Oxidación biológica aeróbica del estiércol con aireación forzada (AGyP) | F152: Multiplique el número de cabezas por la fracción de excretas manejadas, e ingrese el resultado | G152: cabezas | H152: ='Ecuaciones y FE'!AF564 ->  | I152: ='Ecuaciones y FE'!W564 -> 0 | J152: ='Ecuaciones y FE'!X564 ->  | K152: ='Ecuaciones y FE'!Y564 -> 
A153: Ab145 | B153: Agropecuario | C153: Subsector ganadería | D153: Ovinos para cualquier actividad | E153: Sin gestión de estiércol excretado en pasturas, prados o praderas (O) | F153: Multiplique el número de cabezas por la fracción de excretas manejadas, e ingrese el resultado | G153: cabezas | H153: ='Ecuaciones y FE'!AF566 ->  | I153: ='Ecuaciones y FE'!W566 -> 0 | J153: ='Ecuaciones y FE'!X566 ->  | K153: ='Ecuaciones y FE'!Y566 -> 
A154: Ab146 | B154: Agropecuario | C154: Subsector ganadería | D154: Ovinos para cualquier actividad | E154: Aplicación de estiércol en tierras de cultivo o pasturas dentro de las 24 horas de su excreción (O) | F154: Multiplique el número de cabezas por la fracción de excretas manejadas, e ingrese el resultado | G154: cabezas | H154: ='Ecuaciones y FE'!AF567 ->  | I154: ='Ecuaciones y FE'!W567 -> 0 | J154: ='Ecuaciones y FE'!X567 ->  | K154: ='Ecuaciones y FE'!Y567 -> 
A155: Ab147 | B155: Agropecuario | C155: Subsector ganadería | D155: Ovinos para cualquier actividad | E155: Almacenamiento de estiércol en pilas o montones no confinados (O) | F155: Multiplique el número de cabezas por la fracción de excretas manejadas, e ingrese el resultado | G155: cabezas | H155: ='Ecuaciones y FE'!AF568 ->  | I155: ='Ecuaciones y FE'!W568 -> 0 | J155: ='Ecuaciones y FE'!X568 ->  | K155: ='Ecuaciones y FE'!Y568 -> 
A156: Ab148 | B156: Agropecuario | C156: Subsector ganadería | D156: Ovinos para cualquier actividad | E156: Confinamiento de estiércol, con o sin retiro periódico (O) | F156: Multiplique el número de cabezas por la fracción de excretas manejadas, e ingrese el resultado | G156: cabezas | H156: ='Ecuaciones y FE'!AF569 ->  | I156: ='Ecuaciones y FE'!W569 -> 0 | J156: ='Ecuaciones y FE'!X569 ->  | K156: ='Ecuaciones y FE'!Y569 -> 
A157: Ab149 | B157: Agropecuario | C157: Subsector ganadería | D157: Ovinos para cualquier actividad | E157: Almacenamiento de estiércol (como se excreta o con un mínimo de agua) en tanques o estanques de tierra (O) | F157: Multiplique el número de cabezas por la fracción de excretas manejadas, e ingrese el resultado | G157: cabezas | H157: ='Ecuaciones y FE'!AF570 ->  | I157: ='Ecuaciones y FE'!W570 -> 0 | J157: ='Ecuaciones y FE'!X570 ->  | K157: ='Ecuaciones y FE'!Y570 -> 
A158: Ab150 | B158: Agropecuario | C158: Subsector ganadería | D158: Ovinos para cualquier actividad | E158: Almacenamiento de estiércol líquido (O) | F158: Multiplique el número de cabezas por la fracción de excretas manejadas, e ingrese el resultado | G158: cabezas | H158: ='Ecuaciones y FE'!AF571 ->  | I158: ='Ecuaciones y FE'!W571 -> 0 | J158: ='Ecuaciones y FE'!X571 ->  | K158: ='Ecuaciones y FE'!Y571 -> 
A159: Ab151 | B159: Agropecuario | C159: Subsector ganadería | D159: Ovinos para cualquier actividad | E159: Almacenamiento del estiércol (con poco o ningún agregado de agua) debajo de un suelo emparrillado (O) | F159: Multiplique el número de cabezas por la fracción de excretas manejadas, e ingrese el resultado | G159: cabezas | H159: ='Ecuaciones y FE'!AF572 ->  | I159: ='Ecuaciones y FE'!W572 -> 0 | J159: ='Ecuaciones y FE'!X572 ->  | K159: ='Ecuaciones y FE'!Y572 -> 
A160: Ab152 | B160: Agropecuario | C160: Subsector ganadería | D160: Ovinos para cualquier actividad | E160: Almacenamiento de estiércol (con o sin paja) en un tanque contenedor o en una laguna cubierta en condiciones anaerobias (O) | F160: Multiplique el número de cabezas por la fracción de excretas manejadas, e ingrese el resultado | G160: cabezas | H160: ='Ecuaciones y FE'!AF573 ->  | I160: ='Ecuaciones y FE'!W573 -> 0 | J160: ='Ecuaciones y FE'!X573 ->  | K160: ='Ecuaciones y FE'!Y573 -> 
A161: Ab153 | B161: Agropecuario | C161: Subsector ganadería | D161: Ovinos para cualquier actividad | E161: Quema o uso como combustible de estiércol seco (O) | F161: Multiplique el número de cabezas por la fracción de excretas manejadas, e ingrese el resultado | G161: cabezas | H161: ='Ecuaciones y FE'!AF574 ->  | I161: ='Ecuaciones y FE'!W574 -> 0 | J161: ='Ecuaciones y FE'!X574 ->  | K161: ='Ecuaciones y FE'!Y574 -> 
A162: Ab154 | B162: Agropecuario | C162: Subsector ganadería | D162: Ovinos para cualquier actividad | E162: Almacenamiento de estiércol con cama de agregados para el control de humedad (O) | F162: Multiplique el número de cabezas por la fracción de excretas manejadas, e ingrese el resultado | G162: cabezas | H162: ='Ecuaciones y FE'!AF575 ->  | I162: ='Ecuaciones y FE'!W575 -> 0 | J162: ='Ecuaciones y FE'!X575 ->  | K162: ='Ecuaciones y FE'!Y575 -> 
A163: Ab155 | B163: Agropecuario | C163: Subsector ganadería | D163: Ovinos para cualquier actividad | E163: Composteo en canal cerrado, con aireación forzada y mezclado permanente (O) | F163: Multiplique el número de cabezas por la fracción de excretas manejadas, e ingrese el resultado | G163: cabezas | H163: ='Ecuaciones y FE'!AF576 ->  | I163: ='Ecuaciones y FE'!W576 -> 0 | J163: ='Ecuaciones y FE'!X576 ->  | K163: ='Ecuaciones y FE'!Y576 -> 
A164: Ab156 | B164: Agropecuario | C164: Subsector ganadería | D164: Ovinos para cualquier actividad | E164: Composteo en pilas con aireación forzada pero sin mezclado (O) | F164: Multiplique el número de cabezas por la fracción de excretas manejadas, e ingrese el resultado | G164: cabezas | H164: ='Ecuaciones y FE'!AF577 ->  | I164: ='Ecuaciones y FE'!W577 -> 0 | J164: ='Ecuaciones y FE'!X577 ->  | K164: ='Ecuaciones y FE'!Y577 -> 
A165: Ab157 | B165: Agropecuario | C165: Subsector ganadería | D165: Ovinos para cualquier actividad | E165: Composteo en pilas rectangulares con mezclado de medias vueltas regulares (diario) para mezclado y aireación (O) | F165: Multiplique el número de cabezas por la fracción de excretas manejadas, e ingrese el resultado | G165: cabezas | H165: ='Ecuaciones y FE'!AF578 ->  | I165: ='Ecuaciones y FE'!W578 -> 0 | J165: ='Ecuaciones y FE'!X578 ->  | K165: ='Ecuaciones y FE'!Y578 -> 
A166: Ab158 | B166: Agropecuario | C166: Subsector ganadería | D166: Ovinos para cualquier actividad | E166: Composteo en pilas rectangulares con mezclado de medias vueltas frecuentes para mezclado y aireación (O) | F166: Multiplique el número de cabezas por la fracción de excretas manejadas, e ingrese el resultado | G166: cabezas | H166: ='Ecuaciones y FE'!AF579 ->  | I166: ='Ecuaciones y FE'!W579 -> 0 | J166: ='Ecuaciones y FE'!X579 ->  | K166: ='Ecuaciones y FE'!Y579 -> 
A167: Ab159 | B167: Agropecuario | C167: Subsector ganadería | D167: Ovinos para cualquier actividad | E167: Mezclado de estiércol de aves de corral con hojarasca en camas profundas (no combinadas con engorde en corral o pastura) (O) | F167: Multiplique el número de cabezas por la fracción de excretas manejadas, e ingrese el resultado | G167: cabezas | H167: ='Ecuaciones y FE'!AF580 ->  | I167: ='Ecuaciones y FE'!W580 -> 0 | J167: ='Ecuaciones y FE'!X580 ->  | K167: ='Ecuaciones y FE'!Y580 -> 
A168: Ab160 | B168: Agropecuario | C168: Subsector ganadería | D168: Ovinos para cualquier actividad | E168: Manejo de estiércol de aves de corral sin hojarasca en pozos abiertos en instalaciones cerradas (O) | F168: Multiplique el número de cabezas por la fracción de excretas manejadas, e ingrese el resultado | G168: cabezas | H168: ='Ecuaciones y FE'!AF581 ->  | I168: ='Ecuaciones y FE'!W581 -> 0 | J168: ='Ecuaciones y FE'!X581 ->  | K168: ='Ecuaciones y FE'!Y581 -> 
A169: Ab161 | B169: Agropecuario | C169: Subsector ganadería | D169: Ovinos para cualquier actividad | E169: Oxidación biológica aeróbica del estiércol con aireación (O) | F169: Multiplique el número de cabezas por la fracción de excretas manejadas, e ingrese el resultado | G169: cabezas | H169: ='Ecuaciones y FE'!AF582 ->  | I169: ='Ecuaciones y FE'!W582 -> 0 | J169: ='Ecuaciones y FE'!X582 ->  | K169: ='Ecuaciones y FE'!Y582 -> 
A170: Ab162 | B170: Agropecuario | C170: Subsector ganadería | D170: Ovinos para cualquier actividad | E170: Oxidación biológica aeróbica del estiércol con aireación forzada (O) | F170: Multiplique el número de cabezas por la fracción de excretas manejadas, e ingrese el resultado | G170: cabezas | H170: ='Ecuaciones y FE'!AF583 ->  | I170: ='Ecuaciones y FE'!W583 -> 0 | J170: ='Ecuaciones y FE'!X583 ->  | K170: ='Ecuaciones y FE'!Y583 -> 
A171: Ab163 | B171: Agropecuario | C171: Subsector ganadería | D171: Caprinos para cualquier actividad | E171: Sin gestión de estiércol excretado en pasturas, prados o praderas (CP) | F171: Multiplique el número de cabezas por la fracción de excretas manejadas, e ingrese el resultado | G171: cabezas | H171: ='Ecuaciones y FE'!AF585 ->  | I171: ='Ecuaciones y FE'!W585 -> 0 | J171: ='Ecuaciones y FE'!X585 ->  | K171: ='Ecuaciones y FE'!Y585 -> 
A172: Ab164 | B172: Agropecuario | C172: Subsector ganadería | D172: Caprinos para cualquier actividad | E172: Aplicación de estiércol en tierras de cultivo o pasturas dentro de las 24 horas de su excreción (CP) | F172: Multiplique el número de cabezas por la fracción de excretas manejadas, e ingrese el resultado | G172: cabezas | H172: ='Ecuaciones y FE'!AF586 ->  | I172: ='Ecuaciones y FE'!W586 -> 0 | J172: ='Ecuaciones y FE'!X586 ->  | K172: ='Ecuaciones y FE'!Y586 -> 
A173: Ab165 | B173: Agropecuario | C173: Subsector ganadería | D173: Caprinos para cualquier actividad | E173: Almacenamiento de estiércol en pilas o montones no confinados (CP) | F173: Multiplique el número de cabezas por la fracción de excretas manejadas, e ingrese el resultado | G173: cabezas | H173: ='Ecuaciones y FE'!AF587 ->  | I173: ='Ecuaciones y FE'!W587 -> 0 | J173: ='Ecuaciones y FE'!X587 ->  | K173: ='Ecuaciones y FE'!Y587 -> 
A174: Ab166 | B174: Agropecuario | C174: Subsector ganadería | D174: Caprinos para cualquier actividad | E174: Confinamiento de estiércol, con o sin retiro periódico (CP) | F174: Multiplique el número de cabezas por la fracción de excretas manejadas, e ingrese el resultado | G174: cabezas | H174: ='Ecuaciones y FE'!AF588 ->  | I174: ='Ecuaciones y FE'!W588 -> 0 | J174: ='Ecuaciones y FE'!X588 ->  | K174: ='Ecuaciones y FE'!Y588 -> 
A175: Ab167 | B175: Agropecuario | C175: Subsector ganadería | D175: Caprinos para cualquier actividad | E175: Almacenamiento de estiércol (como se excreta o con un mínimo de agua) en tanques o estanques de tierra (CP) | F175: Multiplique el número de cabezas por la fracción de excretas manejadas, e ingrese el resultado | G175: cabezas | H175: ='Ecuaciones y FE'!AF589 ->  | I175: ='Ecuaciones y FE'!W589 -> 0 | J175: ='Ecuaciones y FE'!X589 ->  | K175: ='Ecuaciones y FE'!Y589 -> 
A176: Ab168 | B176: Agropecuario | C176: Subsector ganadería | D176: Caprinos para cualquier actividad | E176: Almacenamiento de estiércol líquido (CP) | F176: Multiplique el número de cabezas por la fracción de excretas manejadas, e ingrese el resultado | G176: cabezas | H176: ='Ecuaciones y FE'!AF590 ->  | I176: ='Ecuaciones y FE'!W590 -> 0 | J176: ='Ecuaciones y FE'!X590 ->  | K176: ='Ecuaciones y FE'!Y590 -> 
A177: Ab169 | B177: Agropecuario | C177: Subsector ganadería | D177: Caprinos para cualquier actividad | E177: Almacenamiento del estiércol (con poco o ningún agregado de agua) debajo de un suelo emparrillado (CP) | F177: Multiplique el número de cabezas por la fracción de excretas manejadas, e ingrese el resultado | G177: cabezas | H177: ='Ecuaciones y FE'!AF591 ->  | I177: ='Ecuaciones y FE'!W591 -> 0 | J177: ='Ecuaciones y FE'!X591 ->  | K177: ='Ecuaciones y FE'!Y591 -> 
A178: Ab170 | B178: Agropecuario | C178: Subsector ganadería | D178: Caprinos para cualquier actividad | E178: Almacenamiento de estiércol (con o sin paja) en un tanque contenedor o en una laguna cubierta en condiciones anaerobias (CP) | F178: Multiplique el número de cabezas por la fracción de excretas manejadas, e ingrese el resultado | G178: cabezas | H178: ='Ecuaciones y FE'!AF592 ->  | I178: ='Ecuaciones y FE'!W592 -> 0 | J178: ='Ecuaciones y FE'!X592 ->  | K178: ='Ecuaciones y FE'!Y592 -> 
A179: Ab171 | B179: Agropecuario | C179: Subsector ganadería | D179: Caprinos para cualquier actividad | E179: Quema o uso como combustible de estiércol seco (CP) | F179: Multiplique el número de cabezas por la fracción de excretas manejadas, e ingrese el resultado | G179: cabezas | H179: ='Ecuaciones y FE'!AF593 ->  | I179: ='Ecuaciones y FE'!W593 -> 0 | J179: ='Ecuaciones y FE'!X593 ->  | K179: ='Ecuaciones y FE'!Y593 -> 
A180: Ab172 | B180: Agropecuario | C180: Subsector ganadería | D180: Caprinos para cualquier actividad | E180: Almacenamiento de estiércol con cama de agregados para el control de humedad (CP) | F180: Multiplique el número de cabezas por la fracción de excretas manejadas, e ingrese el resultado | G180: cabezas | H180: ='Ecuaciones y FE'!AF594 ->  | I180: ='Ecuaciones y FE'!W594 -> 0 | J180: ='Ecuaciones y FE'!X594 ->  | K180: ='Ecuaciones y FE'!Y594 -> 
A181: Ab173 | B181: Agropecuario | C181: Subsector ganadería | D181: Caprinos para cualquier actividad | E181: Composteo en canal cerrado, con aireación forzada y mezclado permanente (CP) | F181: Multiplique el número de cabezas por la fracción de excretas manejadas, e ingrese el resultado | G181: cabezas | H181: ='Ecuaciones y FE'!AF595 ->  | I181: ='Ecuaciones y FE'!W595 -> 0 | J181: ='Ecuaciones y FE'!X595 ->  | K181: ='Ecuaciones y FE'!Y595 -> 
A182: Ab174 | B182: Agropecuario | C182: Subsector ganadería | D182: Caprinos para cualquier actividad | E182: Composteo en pilas con aireación forzada pero sin mezclado (CP) | F182: Multiplique el número de cabezas por la fracción de excretas manejadas, e ingrese el resultado | G182: cabezas | H182: ='Ecuaciones y FE'!AF596 ->  | I182: ='Ecuaciones y FE'!W596 -> 0 | J182: ='Ecuaciones y FE'!X596 ->  | K182: ='Ecuaciones y FE'!Y596 -> 
A183: Ab175 | B183: Agropecuario | C183: Subsector ganadería | D183: Caprinos para cualquier actividad | E183: Composteo en pilas rectangulares con mezclado de medias vueltas regulares (diario) para mezclado y aireación (CP) | F183: Multiplique el número de cabezas por la fracción de excretas manejadas, e ingrese el resultado | G183: cabezas | H183: ='Ecuaciones y FE'!AF597 ->  | I183: ='Ecuaciones y FE'!W597 -> 0 | J183: ='Ecuaciones y FE'!X597 ->  | K183: ='Ecuaciones y FE'!Y597 -> 
A184: Ab176 | B184: Agropecuario | C184: Subsector ganadería | D184: Caprinos para cualquier actividad | E184: Composteo en pilas rectangulares con mezclado de medias vueltas frecuentes para mezclado y aireación (CP) | F184: Multiplique el número de cabezas por la fracción de excretas manejadas, e ingrese el resultado | G184: cabezas | H184: ='Ecuaciones y FE'!AF598 ->  | I184: ='Ecuaciones y FE'!W598 -> 0 | J184: ='Ecuaciones y FE'!X598 ->  | K184: ='Ecuaciones y FE'!Y598 -> 
A185: Ab177 | B185: Agropecuario | C185: Subsector ganadería | D185: Caprinos para cualquier actividad | E185: Mezclado de estiércol de aves de corral con hojarasca en camas profundas (no combinadas con engorde en corral o pastura) (CP) | F185: Multiplique el número de cabezas por la fracción de excretas manejadas, e ingrese el resultado | G185: cabezas | H185: ='Ecuaciones y FE'!AF599 ->  | I185: ='Ecuaciones y FE'!W599 -> 0 | J185: ='Ecuaciones y FE'!X599 ->  | K185: ='Ecuaciones y FE'!Y599 -> 
A186: Ab178 | B186: Agropecuario | C186: Subsector ganadería | D186: Caprinos para cualquier actividad | E186: Manejo de estiércol de aves de corral sin hojarasca en pozos abiertos en instalaciones cerradas (CP) | F186: Multiplique el número de cabezas por la fracción de excretas manejadas, e ingrese el resultado | G186: cabezas | H186: ='Ecuaciones y FE'!AF600 ->  | I186: ='Ecuaciones y FE'!W600 -> 0 | J186: ='Ecuaciones y FE'!X600 ->  | K186: ='Ecuaciones y FE'!Y600 -> 
A187: Ab179 | B187: Agropecuario | C187: Subsector ganadería | D187: Caprinos para cualquier actividad | E187: Oxidación biológica aeróbica del estiércol con aireación (CP) | F187: Multiplique el número de cabezas por la fracción de excretas manejadas, e ingrese el resultado | G187: cabezas | H187: ='Ecuaciones y FE'!AF601 ->  | I187: ='Ecuaciones y FE'!W601 -> 0 | J187: ='Ecuaciones y FE'!X601 ->  | K187: ='Ecuaciones y FE'!Y601 -> 
A188: Ab180 | B188: Agropecuario | C188: Subsector ganadería | D188: Caprinos para cualquier actividad | E188: Oxidación biológica aeróbica del estiércol con aireación forzada (CP) | F188: Multiplique el número de cabezas por la fracción de excretas manejadas, e ingrese el resultado | G188: cabezas | H188: ='Ecuaciones y FE'!AF602 ->  | I188: ='Ecuaciones y FE'!W602 -> 0 | J188: ='Ecuaciones y FE'!X602 ->  | K188: ='Ecuaciones y FE'!Y602 -> 
A189: Ab181 | B189: Agropecuario | C189: Subsector ganadería | D189: Producción de cualquier tipo de ave en incubadora | E189: Sin gestión de estiércol excretado en pasturas, prados o praderas (AI) | F189: Multiplique el número de cabezas por la fracción de excretas manejadas, e ingrese el resultado | G189: cabezas | H189: ='Ecuaciones y FE'!AF604 ->  | I189: ='Ecuaciones y FE'!W604 -> 0 | J189: ='Ecuaciones y FE'!X604 ->  | K189: ='Ecuaciones y FE'!Y604 -> 
A190: Ab182 | B190: Agropecuario | C190: Subsector ganadería | D190: Producción de cualquier tipo de ave en incubadora | E190: Aplicación de estiércol en tierras de cultivo o pasturas dentro de las 24 horas de su excreción (AI) | F190: Multiplique el número de cabezas por la fracción de excretas manejadas, e ingrese el resultado | G190: cabezas | H190: ='Ecuaciones y FE'!AF605 ->  | I190: ='Ecuaciones y FE'!W605 -> 0 | J190: ='Ecuaciones y FE'!X605 ->  | K190: ='Ecuaciones y FE'!Y605 -> 
A191: Ab183 | B191: Agropecuario | C191: Subsector ganadería | D191: Producción de cualquier tipo de ave en incubadora | E191: Almacenamiento de estiércol en pilas o montones no confinados (AI) | F191: Multiplique el número de cabezas por la fracción de excretas manejadas, e ingrese el resultado | G191: cabezas | H191: ='Ecuaciones y FE'!AF606 ->  | I191: ='Ecuaciones y FE'!W606 -> 0 | J191: ='Ecuaciones y FE'!X606 ->  | K191: ='Ecuaciones y FE'!Y606 -> 
A192: Ab184 | B192: Agropecuario | C192: Subsector ganadería | D192: Producción de cualquier tipo de ave en incubadora | E192: Confinamiento de estiércol, con o sin retiro periódico (AI) | F192: Multiplique el número de cabezas por la fracción de excretas manejadas, e ingrese el resultado | G192: cabezas | H192: ='Ecuaciones y FE'!AF607 ->  | I192: ='Ecuaciones y FE'!W607 -> 0 | J192: ='Ecuaciones y FE'!X607 ->  | K192: ='Ecuaciones y FE'!Y607 -> 
A193: Ab185 | B193: Agropecuario | C193: Subsector ganadería | D193: Producción de cualquier tipo de ave en incubadora | E193: Almacenamiento de estiércol (como se excreta o con un mínimo de agua) en tanques o estanques de tierra (AI) | F193: Multiplique el número de cabezas por la fracción de excretas manejadas, e ingrese el resultado | G193: cabezas | H193: ='Ecuaciones y FE'!AF608 ->  | I193: ='Ecuaciones y FE'!W608 -> 0 | J193: ='Ecuaciones y FE'!X608 ->  | K193: ='Ecuaciones y FE'!Y608 -> 
A194: Ab186 | B194: Agropecuario | C194: Subsector ganadería | D194: Producción de cualquier tipo de ave en incubadora | E194: Almacenamiento de estiércol líquido (AI) | F194: Multiplique el número de cabezas por la fracción de excretas manejadas, e ingrese el resultado | G194: cabezas | H194: ='Ecuaciones y FE'!AF609 ->  | I194: ='Ecuaciones y FE'!W609 -> 0 | J194: ='Ecuaciones y FE'!X609 ->  | K194: ='Ecuaciones y FE'!Y609 -> 
A195: Ab187 | B195: Agropecuario | C195: Subsector ganadería | D195: Producción de cualquier tipo de ave en incubadora | E195: Almacenamiento del estiércol (con poco o ningún agregado de agua) debajo de un suelo emparrillado (AI) | F195: Multiplique el número de cabezas por la fracción de excretas manejadas, e ingrese el resultado | G195: cabezas | H195: ='Ecuaciones y FE'!AF610 ->  | I195: ='Ecuaciones y FE'!W610 -> 0 | J195: ='Ecuaciones y FE'!X610 ->  | K195: ='Ecuaciones y FE'!Y610 -> 
A196: Ab188 | B196: Agropecuario | C196: Subsector ganadería | D196: Producción de cualquier tipo de ave en incubadora | E196: Almacenamiento de estiércol (con o sin paja) en un tanque contenedor o en una laguna cubierta en condiciones anaerobias (AI) | F196: Multiplique el número de cabezas por la fracción de excretas manejadas, e ingrese el resultado | G196: cabezas | H196: ='Ecuaciones y FE'!AF611 ->  | I196: ='Ecuaciones y FE'!W611 -> 0 | J196: ='Ecuaciones y FE'!X611 ->  | K196: ='Ecuaciones y FE'!Y611 -> 
A197: Ab189 | B197: Agropecuario | C197: Subsector ganadería | D197: Producción de cualquier tipo de ave en incubadora | E197: Quema o uso como combustible de estiércol seco (AI) | F197: Multiplique el número de cabezas por la fracción de excretas manejadas, e ingrese el resultado | G197: cabezas | H197: ='Ecuaciones y FE'!AF612 ->  | I197: ='Ecuaciones y FE'!W612 -> 0 | J197: ='Ecuaciones y FE'!X612 ->  | K197: ='Ecuaciones y FE'!Y612 -> 
A198: Ab190 | B198: Agropecuario | C198: Subsector ganadería | D198: Producción de cualquier tipo de ave en incubadora | E198: Almacenamiento de estiércol con cama de agregados para el control de humedad (AI) | F198: Multiplique el número de cabezas por la fracción de excretas manejadas, e ingrese el resultado | G198: cabezas | H198: ='Ecuaciones y FE'!AF613 ->  | I198: ='Ecuaciones y FE'!W613 -> 0 | J198: ='Ecuaciones y FE'!X613 ->  | K198: ='Ecuaciones y FE'!Y613 -> 
A199: Ab191 | B199: Agropecuario | C199: Subsector ganadería | D199: Producción de cualquier tipo de ave en incubadora | E199: Composteo en canal cerrado, con aireación forzada y mezclado permanente (AI) | F199: Multiplique el número de cabezas por la fracción de excretas manejadas, e ingrese el resultado | G199: cabezas | H199: ='Ecuaciones y FE'!AF614 ->  | I199: ='Ecuaciones y FE'!W614 -> 0 | J199: ='Ecuaciones y FE'!X614 ->  | K199: ='Ecuaciones y FE'!Y614 -> 
A200: Ab192 | B200: Agropecuario | C200: Subsector ganadería | D200: Producción de cualquier tipo de ave en incubadora | E200: Composteo en pilas con aireación forzada pero sin mezclado (AI) | F200: Multiplique el número de cabezas por la fracción de excretas manejadas, e ingrese el resultado | G200: cabezas | H200: ='Ecuaciones y FE'!AF615 ->  | I200: ='Ecuaciones y FE'!W615 -> 0 | J200: ='Ecuaciones y FE'!X615 ->  | K200: ='Ecuaciones y FE'!Y615 -> 
A201: Ab193 | B201: Agropecuario | C201: Subsector ganadería | D201: Producción de cualquier tipo de ave en incubadora | E201: Composteo en pilas rectangulares con mezclado de medias vueltas regulares (diario) para mezclado y aireación (AI) | F201: Multiplique el número de cabezas por la fracción de excretas manejadas, e ingrese el resultado | G201: cabezas | H201: ='Ecuaciones y FE'!AF616 ->  | I201: ='Ecuaciones y FE'!W616 -> 0 | J201: ='Ecuaciones y FE'!X616 ->  | K201: ='Ecuaciones y FE'!Y616 -> 
... 409 more rows

Sheet Lista desplegable (hidden)
B2: SECTOR | D2: Energía y Transporte | E2: Consumo | H2: Sector Energía | I2: Ia. Generación | J2: Combustible_Generación | K2: Combustible_térmico | L2: Hidrocarburos | M2: Extracción_Petróleo_Convencional_y_No_Convencional | N2: Extracción_Gas_Asociado_y_No_Asociado | O2: Perforación_pozos_petróleo_y_gas | P2: Pozos_en_producción_petróleo_y_gas | Q2: Procesamiento_Gas | R2: Transporte_Petróleo | S2: Transporte_Gas_almacenamiento | T2: Distribución_gas_natural_ductos | U2: Suministro_gas_natural_al_consumidor_final | W2: Transporte | X2: IIa. Aéreo | Y2: Combustible | Z2: IIb. Ferroviario | AA2: Combustible | AB2: IIc. Marítimo | AC2: Combustible | AD2: IId. Terrestre | AE2: Combustible | AG2: Procesos_Industriales | AH2: IIIa. Química | AI2: Sin ecuación | AJ2: IIIai. Químicos_Básicos | AK2: IIIb. Siderúrgica | AL2: IIIbi. Hierro | AM2: IIIbii. Acero | AN2: IIIbiii. Ferroaleaciones | AO2: IIIc. Metalúrgica | AP2: IIIci. Aluminio | AQ2: IIIcii. Plomo | AR2: IIIciii. Zinc | AS2: IIIciv. Magnesio | AT2: IIId. Metal mecánica | AV2: IIIe. Minera | AX2: IIIei. Minerales No Metálicos | AY2: IIIf. Automotriz | BA2: IIIg. Papel | BC2: IIIh. Artes_Gráf | BE2: IIIi. Petroquímica | BG2: Transporte_por_ductos_de_productos | BH2: Metanol | BI2: Etileno | BJ2: Dicloruro de etileno | BK2: Cloruro de vinilo | BL2: Acrilonitrilo | BM2: Óxido de etileno | BN2: Negro de humo | BO2: Dióxido de titanio | BP2: Caprolactama | BQ2: IIIj. Cementera | BR2: Cemento | BS2: Cal | BT2: IIIk. Vidrio | BV2: IIIl. Electrónica | BW2: Electrónica | BX2: IIIm. Eléctrica | BY2: Accesorios_de_iluminación | BZ2: Aire_acondicionado_calefacción_y_refrigeración_industrial_y_comercial | CA2: Aparatos_uso_doméstico | CB2: Equipo_generación_transmisión_y_distribución_energía_eléctrica | CC2: Otros_equipos_y_accesorios_eléctricos | CD2: IIIn. Alimentos | CE2: Alimentos | CF2: IIIo. Madera | CG2: Madera | CH2: IIIp. Textil | CI2: Textil | CK2: Agricultura | CL2: IV. Agricultura | CM2: Agricultura | CN2: IV. Ganadería | CO2: Bovinos_producción_carne | CP2: Bovinos_producción_leche | CQ2: Bovinos_producción_leche_carne | CR2: Bovinos_otros_propósitos | CS2: Porcinos_producción_carne | CT2: Avícola_producción_huevo | CU2: Avícola_producción_carne | CV2: Avícola_producción_guajolotes_pavos | CW2: Ovinos | CX2: Caprinos | CY2: Producción_ave_incubadora | CZ2: Mulas_y_asnos | DA2: Producción_aves_en_incubadora | DB2: Otras_aves_producción_carne_y_huevo | DD2: Residuos | DE2: V. Aguas Residuales | DF2: Aguas Residuales | DG2: V. Residuos | DH2: Residuos | DJ2: Servicios | DK2: Construcción | DM2: Comercio | DO2: Servicios_Educativos | DQ2: Actividades_Recreativas | DS2: Turismo | DU2: Servicios_Médicos | DW2: Gobierno | DY2: Servicios_Financieros | EB2: Combustible
A3: I | B3: Energía | D3: Consumo_Electricidad | E3: Electricidad_Consumida | F3: Consumo_energía_eléctrica | H3: Energía_eléctrica | I3: Generación_energía_eléctrica | J3: Algodón | K3: Algodón_PT | L3: Extracción_Petróleo_Convencional_y_No_Convencional | M3: Emisiones Fugitivas Petróleo (costeras) | N3: Emisiones Fugitivas Gas por Venteo | O3: Emisiones por Quema en Antorcha y Venteo_Perforación | P3: Emisiones por Quema en Antorcha y Venteo_Producción | Q3: Emisiones fugitivas_Procesamiento de Gas | R3: Transporte en tuberías | S3: Almacenamiento de Gas Natural | T3: Emisiones Fugitivas Distribución Gas Natural | U3: Emisiones fugitivas por suministro al consumidor final | W3: Transporte_Aéreo | X3: Regular_de_carga_y_pasajeros | Y3: Turbosina - reg | Z3: Ferrocarril_de_carga_y_pasajeros | AA3: Diesel Ferrocarril | AB3: Marítimo_de_carga_y_pasajeros | AC3: Diesel Marítimo | AD3: Automoviles_Motocicletas_Montacargas | AE3: Diesel_A | AG3: Industria_Química | AH3: Productos_químicos_básicos | AI3: Ia6. Únicamente reporta consumo energético - Energía y Transporte | AJ3: Amoníaco | AK3: Producción_Hierro_Acero | AL3: Carbón coquizable | AM3: Horno básico de oxígeno (BOF) | AN3: Metal-Si | AO3: Aluminio | AP3: Ánodos precocidos - CWPB | AQ3: Producción en hornos Imperial Smelt Furnace (ISF) | AR3: Waelz Kiln | AS3: Dolomita | AT3: Productos_forjados_y_troquelados | AU3: Id1. Únicamente reporta consumo energético - Energía y Transporte | AV3: Minerales_metálicos | AW3: Ie1. Únicamente reporta consumo energético - Energía y Transporte | AX3: Trona | AY3: Fabricación_automóviles_y_camiones | AZ3: If1. Únicamente reporta consumo energético - Energía y Transporte | BA3: Fabricación_pulpa_papel_y_cartón | BB3: Ig1. Únicamente reporta consumo energético - Energía y Transporte | BC3: Impresión_en_papel | BD3: Ih1. Únicamente reporta consumo energético - Energía y Transporte | BE3: Refinación_petróleo | BF3: Ii1. Únicamente reporta consumo energético - Energía y Transporte | BG3: Gasolina | BH3: Vapor convencional, sin unidad de reformado primaria | BI3: Etileno (Uso total del proceso y de la alimentación energética) | BJ3: Proceso de cloración directa DE | BK3: Proceso de cloración directa CV | BL3: Productos secundarios quemados para recuperación de energía y/o quemados en la antorcha (por defecto) | BM3: Proceso por aire (proceso por defecto) | BN3: Proceso del negro de horno (proceso por defecto) | BO3: Rutilo sintético | BP3: Caprolactama | BQ3: Cemento | BR3: Clínker | BS3: Cal de dolomita | BT3: Productos_a_base_arcillas_y_minerales_refractarios | BU3: Ik2. Únicamente reporta consumo energético - Energía y Transporte | BV3: Equipo_de_comunicación | BW3: Il1. Únicamente reporta consumo energético - Energía y Transporte | BX3: Accesorios_de_iluminación | BY3: Im1. Únicamente reporta consumo energético - Energía y Transporte | BZ3: Acondicionadores de aire autocontenidos CARGA | CA3: Acondicionadores de aire residenciales de ducto o tipo dividido CARGA | CB3: Im59. Únicamente reporta consumo energético - Energía y Transporte | CC3: Im60. Únicamente reporta consumo energético - Energía y Transporte | CD3: Alimentos_para_animales | CE3: In1. Únicamente reporta consumo energético - Energía y Transporte | CF3: Productos_de_madera | CG3: Io1. Únicamente reporta consumo energético - Energía y Transporte | CH3: Preparación_e_hilado_de_fibras_textiles_e_hilos | CI3: Ip1. Únicamente reporta consumo energético - Energía y Transporte | CK3: Subsector_Agricultura | CL3: Oleaginosas_gramíneas_leguminosas_o_cereales_en_grano_y_forrajeras | CM3: Aa1. Únicamente reporta consumo energético - Energía y Transporte | CN3: Bovinos_producción_carne | CO3: Sin gestión de estiércol excretado en pasturas, prados o praderas (BC) | CP3: Sin gestión de estiércol excretado en pasturas, prados o praderas (BL) | CQ3: Sin gestión de estiércol excretado en pasturas, prados o praderas (BCyL) | CR3: Sin gestión de estiércol excretado en pasturas, prados o praderas (BO) | CS3: Sin gestión de estiércol excretado en pasturas, prados o praderas (P) | CT3: Sin gestión de estiércol excretado en pasturas, prados o praderas (AH) | CU3: Sin gestión de estiércol excretado en pasturas, prados o praderas (AC) | CV3: Sin gestión de estiércol excretado en pasturas, prados o praderas (AGyP) | CW3: Sin gestión de estiércol excretado en pasturas, prados o praderas (O) | CX3: Sin gestión de estiércol excretado en pasturas, prados o praderas (CP) | CY3: Sin gestión de estiércol excretado en pasturas, prados o praderas (AI) | CZ3: Almacenaje de sólidos M | DA3: Almacenaje de sólidos AI | DB3: Almacenaje de sólidos OA | DD3: Aguas_Residuales | DE3: Tratamiento_aguas_residuales | DF3: Planta de tratamiento aeróbico bien operada | DG3: Reducción_en_la_fuente_separación_reutilización_reciclaje_coprocesamiento_tratamiento_acopio_almacenamiento_transporte_y_disposición_final_de_residuos | DH3: Ra6. Únicamente reporta consumo energético - Energía y Transporte | DJ3: Construcción | DK3: Edificación_residencial | DL3: Ca1. Únicamente reporta consumo energético - Energía y Transporte | DM3: Comercio_al_por_mayor_de_abarrotes_y_alimentos | DN3: Cb1. Únicamente reporta consumo energético - Energía y Transporte | DO3: Escuelas_de_educación_superior | DP3: Cc1. Únicamente reporta consumo energético - Energía y Transporte | DQ3: Parques_con_instalaciones_recreativas_y_casas_de_juegos_electrónicos | DR3: Cd1. Únicamente reporta consumo energético - Energía y Transporte | DS3: Hoteles_moteles_y_similares | DT3: Ce1. Únicamente reporta consumo energético - Energía y Transporte | DU3: Hospitales_y_laboratorios | DV3: Cf1. Únicamente reporta consumo energético - Energía y Transporte | DW3: Instalaciones_en_las_que_las_dependencias_y_entidades_de_la_administración_pública_federal_estatal_o_municipal_realizan_sus_funciones | DX3: Cg1. Únicamente reporta consumo energético - Energía y Transporte | DY3: Banca_múltiple | DZ3: Ch1. Únicamente reporta consumo energético - Energía y Transporte | EB3: Diesel
A4: II | B4: Transporte | D4: Consumo_combustibles | E4: Combustibles_consumidos | F4: Consumo Diesel | H4: Energía_térmica | I4: Consumo_energía_eléctrica | J4: Alquitrán | K4: Alquitrán_PT | L4: Extracción_Gas_Asociado_y_No_Asociado | M4: Emisiones Fugitivas Petróleo (alta mar) | N4: Emisiones Fugitivas Gas por Quema en Antorcha | Q4: Emisiones por Quema en Antorcha_Procesamiento de Gas | R4: Transporte en camiones y vagones cisterna | T4: Emisiones por Venteo Distribución Gas Natural | W4: Transporte_Ferroviario | X4: No_regular_de_carga_y_pasajeros | Y4: Turbosina - No reg | AC4: Gasolinas y Naftas Marítimo | AD4: Camionetas_CamionesLigeros | AE4: Gas Natural_A | AG4: Industria_Siderúrgica | AH4: Resinas_y_hules_sintéticos | AI4: Ia7. Únicamente reporta consumo energético - Energía y Transporte | AJ4: Ácido Nítrico | AK4: Producción_Ferroaleaciones | AL4: Carbón de inyección al Alto Horno | AM4: Horno de arco eléctrico (EAF)** | AN4: FeSi 90 | AO4: Plomo | AP4: Ánodos precocidos - SWPB | AQ4: Producción por fundición directa (DS) | AR4: Pirometalúrgico (Imperial Smelting Furnace) | AS4: Magnesita I.Metalúrgica | AT4: Calderas_tanques_y_envases_metálicos | AU4: Id2. Únicamente reporta consumo energético - Energía y Transporte | AV4: Minerales_No_metálicos | AW4: Ie11. Únicamente reporta consumo energético - Energía y Transporte | AX4: Ceniza de sosa | AY4: Fabricación_carrocerías_y_remolques | AZ4: If2. Únicamente reporta consumo energético - Energía y Transporte | BA4: Productos_de_cartón_y_papel | BB4: Ig2. Únicamente reporta consumo energético - Energía y Transporte | BC4: Encuadernación | BD4: Ih2. Únicamente reporta consumo energético - Energía y Transporte | BE4: Metanol | BG4: Diesel | BH4: Vapor convencional, con unidad de reformado primaria | BI4: Uso de la alimentación al proceso | BJ4: Proceso de oxicloración DE | BK4: Proceso de oxicloración CV | BL4: Acetonitrilo quemado para recuperación de energía y/o quemado en antorcha | BM4: Proceso por oxígeno | BN4: Proceso del negro térmico | BO4: Rutilo dióxido de titanio (vía del cloruro) | BP4: Glioxal | BQ4: Cal | BS4: Cal hidráulica | BT4: Vidrio_y_productos_de_vidrio | BU4: Vidrio | BV4: Equipo_de_audio_y_video | BW4: Pantallas planas a transistores de película delgada (TFT-FPD, del inglés, thin-film-transistor flat panel display) | BX4: Aire_acondicionado_calefacción_y_refrigeración_industrial_y_comercial | BZ4: Acondicionadores de aire autocontenidos RECARGA | CA4: Acondicionadores de aire residenciales de ducto o tipo dividido RECARGA | CD4: Molienda_de_granos_y_semillas_y_obtención_de_aceites_y_grasas | CE4: In2. Únicamente reporta consumo energético - Energía y Transporte | CH4: Telas_tejidas_y_no_tejidas | CI4: Ip2. Únicamente reporta consumo energético - Energía y Transporte | CK4: Subsector_Ganadería | CL4: Cultivo_de_hortalizas | CM4: Aa2. Únicamente reporta consumo energético - Energía y Transporte | CN4: Bovinos_producción_leche | CO4: Aplicación de estiércol en tierras de cultivo o pasturas dentro de las 24 horas de su excreción (BC) | CP4: Aplicación de estiércol en tierras de cultivo o pasturas dentro de las 24 horas de su excreción (BL) | CQ4: Aplicación de estiércol en tierras de cultivo o pasturas dentro de las 24 horas de su excreción (BCyL) | CR4: Aplicación de estiércol en tierras de cultivo o pasturas dentro de las 24 horas de su excreción (BO) | CS4: Aplicación de estiércol en tierras de cultivo o pasturas dentro de las 24 horas de su excreción (P) | CT4: Aplicación de estiércol en tierras de cultivo o pasturas dentro de las 24 horas de su excreción (AH) | CU4: Aplicación de estiércol en tierras de cultivo o pasturas dentro de las 24 horas de su excreción (AC) | CV4: Aplicación de estiércol en tierras de cultivo o pasturas dentro de las 24 horas de su excreción (AGyP) | CW4: Aplicación de estiércol en tierras de cultivo o pasturas dentro de las 24 horas de su excreción (O) | CX4: Aplicación de estiércol en tierras de cultivo o pasturas dentro de las 24 horas de su excreción (CP) | CY4: Aplicación de estiércol en tierras de cultivo o pasturas dentro de las 24 horas de su excreción (AI) | CZ4: Corral de engorde M | DA4: Corral de engorde AI | DB4: Corral de engorde OA | DD4: Residuos_Sólidos_Urbanos | DF4: Planta de tratamiento aeróbico mal operada o sobrecargada | DG4: Remediación_de_sitios_contaminados_con_residuos | DH4: Ra7. Únicamente reporta consumo energético - Energía y Transporte | DJ4: Comercio | DK4: Edificación_no_residencial | DL4: Ca2. Únicamente reporta consumo energético - Energía y Transporte | DM4: Comercio_al_por_mayor_de_bebidas_hielo_y_tabaco | DN4: Cb2. Únicamente reporta consumo energético - Energía y Transporte | DY4: Alquiler_sin_intermediación_de_bienes_raíces | DZ4: Ch2. Únicamente reporta consumo energético - Energía y Transporte | EB4: Gasolinas y Naftas
A5: III | B5: Industrial | F5: Consumo de Gasolinas y Naftas | H5: Hidrocarburos | I5: Procesos_térmicos | J5: Bagazo de caña | K5: Bagazo de caña_PT | L5: Perforación_pozos_petróleo_y_gas | M5: Emisiones Fugitivas Petróleo por Venteo | Q5: Emisiones por Venteo_Procesamiento de Gas | W5: Transporte_Marítimo | X5: Servicios_de_transporte_aéreo | Y5: Turbosina - servicios | AC5: Combustóleo marítimo | AD5: Autobuses | AE5: Gas_licuado_A | AG5: Industria_Metalúrgica | AH5: Fertilizantes_pesticidas_y_agroquímicos | AI5: Ia8. Únicamente reporta consumo energético - Energía y Transporte | AJ5: Ácido Adípico | AL5: Carbón a la Sintetizadora o al Horno Básico de oxígeno | AM5: Horno de solera (OHF) | AN5: FeSi 75 | AO5: Zinc | AP5: Søderberg - VSS | AQ5: Por tratamiento de materias primas secundarias | AS5: Todos los procesos de moldeo | AT5: Herrajes_y_cerraduras | AU5: Id3. Únicamente reporta consumo energético - Energía y Transporte | AV5: Carbón_mineral | AW5: Ie12. Únicamente reporta consumo energético - Energía y Transporte | AX5: Carbonato de calcio | AY5: Fabricación_partes_automotores | AZ5: If3. Únicamente reporta consumo energético - Energía y Transporte | BC5: Impresión_de_textiles | BD5: Ih3. Únicamente reporta consumo energético - Energía y Transporte | BE5: Etileno | BG5: Combustible para la aviación | BH5: Vapor convencional, proceso convencional de Lurgi | BI5: Uso de combustible complementario (alimentación energética) | BJ5: Proceso equilibrado [por defecto] DE | BK5: Proceso equilibrado [por defecto] CV | BL5: Acetonitrilo y cianuro de hidrógeno recuperado como producto | BN5: Proceso del negro de acetileno | BP5: Ácido glioxílico | BS5: Cal con fuerte proporción de calcio | BV5: Componentes_electrónicos | BW5: Semiconductores | BX5: Aparatos_uso_doméstico | BZ5: Acondicionadores de aire autocontenidos ELIMINACIÓN | CA5: Acondicionadores de aire residenciales de ducto o tipo dividido ELIMINACIÓN | CD5: Azúcares_chocolates_dulces_y_similares | CE5: In3. Únicamente reporta consumo energético - Energía y Transporte | CH5: Acabado_de_productos_textiles_y_fabricación_de_telas_recubiertas | CI5: Ip3. Únicamente reporta consumo energético - Energía y Transporte | CL5: Cultivo_de_frutales_y_nueces | CM5: Aa3. Únicamente reporta consumo energético - Energía y Transporte | CN5: Bovinos_producción_leche_carne | CO5: Almacenamiento de estiércol en pilas o montones no confinados (BC) | CP5: Almacenamiento de estiércol en pilas o montones no confinados (BL) | CQ5: Almacenamiento de estiércol en pilas o montones no confinados (BCyL) | CR5: Almacenamiento de estiércol en pilas o montones no confinados (BO) | CS5: Almacenamiento de estiércol en pilas o montones no confinados (P) | CT5: Almacenamiento de estiércol en pilas o montones no confinados (AH) | CU5: Almacenamiento de estiércol en pilas o montones no confinados (AC) | CV5: Almacenamiento de estiércol en pilas o montones no confinados (AGyP) | CW5: Almacenamiento de estiércol en pilas o montones no confinados (O) | CX5: Almacenamiento de estiércol en pilas o montones no confinados (CP) | CY5: Almacenamiento de estiércol en pilas o montones no confinados (AI) | CZ5: Líquido/Fango M | DA5: Líquido/Fango AI | DB5: Líquido/Fango OA | DF5: Digestor anaeróbico para lodos (no se considera la recuperación de metano) | DJ5: Servicios_Educativos | DK5: Construcción_de_obras_para_el_suministro_de_agua_petróleo_gas_energía_eléctrica_y_telecomunicaciones | DL5: Ca3. Únicamente reporta consumo energético - Energía y Transporte | DM5: Comercio_al_por_mayor_de_productos_textiles_y_calzado | DN5: Cb3. Únicamente reporta consumo energético - Energía y Transporte | DY5: Inmobiliarias_y_corredores_de_bienes_raíces | DZ5: Ch4. Únicamente reporta consumo energético - Energía y Transporte | EB5: Gas Natural
A6: IV | B6: Agropecuario | F6: Consumo de gas natural | J6: Bagazo de Malta | K6: Bagazo de Malta_PT | L6: Pozos_en_producción_petróleo_y_gas | M6: Emisiones Fugitivas Petróleo por Quema en Antorcha | W6: Transporte_Terrestre | AD6: Camiones_Tractocamiones | AE6: Gasolina_A | AG6: Industria_MetalMecánica | AH6: Productos_farmacéuticos | AI6: Ia9. Únicamente reporta consumo energético - Energía y Transporte | AJ6: Carburo de Silicio | AL6: Carbón para vapor | AN6: FeSi 65 | AO6: Magnesio | AP6: Søderberg - HSS | AS6: Ic15. Únicamente reporta consumo energético - Energía y Transporte | AT6: Maquinado_piezas_metálicas_y_fabricación_tornillos | AU6: Id4. Únicamente reporta consumo energético - Energía y Transporte | AV6: Servicios_relacionados_con_minería | AX6: Magnesita I.Minera | AY6: Fabricación_equipo_aeroespacial | AZ6: If4. Únicamente reporta consumo energético - Energía y Transporte | BC6: Elaboración_de_placas_clichés_y_grabados | BD6: Ih4. Únicamente reporta consumo energético - Energía y Transporte | BE6: Dicloruro_de_etileno | BG6: Queroseno para motor a reacción | BH6: Vapor convencional, proceso de baja presión de Lurgi | BW6: Células fotovoltaicas | BX6: Equipo_generación_transmisión_y_distribución_energía_eléctrica | BZ6: Acondicionadores de aire comerciales divididos CARGA | CA6: Acondicionadores de aire residenciales de tipo dividido CARGA | CD6: Conservación_de_frutas_verduras_y_otros | CE6: In4. Únicamente reporta consumo energético - Energía y Transporte | CH6: Fabricación_de_prendas_de_vestir_de_tejido_de_punto | CI6: Ip4. Únicamente reporta consumo energético - Energía y Transporte | CL6: Cultivo_en_invernaderos_y_viveros_y_floricultura | CM6: Aa4. Únicamente reporta consumo energético - Energía y Transporte | CN6: Bovinos_otros_propósitos | CO6: Confinamiento de estiércol, con o sin retiro periódico (BC) | CP6: Confinamiento de estiércol, con o sin retiro periódico (BL) | CQ6: Confinamiento de estiércol, con o sin retiro periódico (BCyL) | CR6: Confinamiento de estiércol, con o sin retiro periódico (BO) | CS6: Confinamiento de estiércol, con o sin retiro periódico (P) | CT6: Confinamiento de estiércol, con o sin retiro periódico (AH) | CU6: Confinamiento de estiércol, con o sin retiro periódico (AC) | CV6: Confinamiento de estiércol, con o sin retiro periódico (AGyP) | CW6: Confinamiento de estiércol, con o sin retiro periódico (O) | CX6: Confinamiento de estiércol, con o sin retiro periódico (CP) | CY6: Confinamiento de estiércol, con o sin retiro periódico (AI) | CZ6: Almacenamiento en pozos por debajo de lugares de confinamiento animal M | DA6: Laguna anaeróbica no cubierta AI | DB6: Almacenamiento en pozos por debajo de lugares de confinamiento animal OA | DF6: Laguna anaeróbica poco profunda (menor de 2 metros) | DJ6: Actividades_Recreativas | DK6: División_de_terrenos_y_construcción_de_obras_de_urbanización | DL6: Ca4. Únicamente reporta consumo energético - Energía y Transporte | DM6: Comercio_al_por_mayor_de_materias_primas_agropecuarias_y_forestales | DN6: Cb4. Únicamente reporta consumo energético - Energía y Transporte | EB6: Gas Licuado
A7: V | B7: Residuos | F7: Consumo de gas licuado | J7: Basura (residuos sólidos urbanos) | K7: Basura (residuos sólidos urbanos)_PT | L7: Procesamiento_Gas | AG7: Industria_Minera | AH7: Pinturas_recubrimientos_y_adhesivos | AI7: Ia10. Únicamente reporta consumo energético - Energía y Transporte | AJ7: Carburo de Calcio | AL7: Carbón para el Horno de Arco Eléctrico | AO7: Fundición_piezas_metálicas | AT7: Otros_productos_metálicos | AU7: Id5. Únicamente reporta consumo energético - Energía y Transporte | AX7: Dolomita | AY7: Fabricación_motores_turbinas_y_transmisiones | AZ7: If5. Únicamente reporta consumo energético - Energía y Transporte | BE7: Cloruro_de_vinilo | BH7: Vapor combinado, proceso combinado de Lurgi | BW7: Fluidos de transferencia térmica | BX7: Otros_equipos_y_accesorios_eléctricos | BZ7: Acondicionadores de aire comerciales divididos RECARGA | CA7: Acondicionadores de aire residenciales de tipo dividido RECARGA | CD7: Productos_lácteos | CE7: In5. Únicamente reporta consumo energético - Energía y Transporte | CH7: Confección_de_prendas_de_vestir | CI7: Ip5. Únicamente reporta consumo energético - Energía y Transporte | CL7: Maquinaria_agrícola | CM7: Aa5. Diesel | CN7: Porcinos_producción_carne | CO7: Almacenamiento de estiércol (como se excreta o con un mínimo de agua) en tanques o estanques de tierra (BC) | CP7: Almacenamiento de estiércol (como se excreta o con un mínimo de agua) en tanques o estanques de tierra (BL) | CQ7: Almacenamiento de estiércol (como se excreta o con un mínimo de agua) en tanques o estanques de tierra (BCyL) | CR7: Almacenamiento de estiércol (como se excreta o con un mínimo de agua) en tanques o estanques de tierra (BO) | CS7: Almacenamiento de estiércol (como se excreta o con un mínimo de agua) en tanques o estanques de tierra (P) | CT7: Almacenamiento de estiércol (como se excreta o con un mínimo de agua) en tanques o estanques de tierra (AH) | CU7: Almacenamiento de estiércol (como se excreta o con un mínimo de agua) en tanques o estanques de tierra (AC) | CV7: Almacenamiento de estiércol (como se excreta o con un mínimo de agua) en tanques o estanques de tierra (AGyP) | CW7: Almacenamiento de estiércol (como se excreta o con un mínimo de agua) en tanques o estanques de tierra (O) | CX7: Almacenamiento de estiércol (como se excreta o con un mínimo de agua) en tanques o estanques de tierra (CP) | CY7: Almacenamiento de estiércol (como se excreta o con un mínimo de agua) en tanques o estanques de tierra (AI) | CZ7: Camas profundas para vacunos y porcinos M | DA7: Almacenamiento en pozos por debajo de lugares de confinamiento animal AI | DB7: Camas profundas para vacunos y porcinos OA | DF7: Laguna anaeróbica profunda (mayor a dos metros) | DJ7: Turismo | DK7: Construcción_de_vías_de_comunicación | DL7: Ca5. Únicamente reporta consumo energético - Energía y Transporte | DM7: Comercio_al_por_mayor_de_materias_primas_para_la_industria | DN7: Cb5. Únicamente reporta consumo energético - Energía y Transporte
A8: VI | B8: Comercio_y_Servicios | J8: Biocombustible líquido | K8: Biocombustible líquido_PT | L8: Transporte_Petróleo | AE8: Diesel_B | AG8: Industria_Automotriz | AH8: Jabones_limpiadores_y_preparaciones_de_tocador | AI8: Ia11. Únicamente reporta consumo energético - Energía y Transporte | AL8: Carbón para el Horno de Reducción Directa | AT8: Maquinaria_y_equipo_para_comercio_y_servicios | AU8: Id6. Únicamente reporta consumo energético - Energía y Transporte | AX8: Siderita | BE8: Acrilonitrilo | BH8: Vapor convencional, proceso Mega Metanol de Lurgi | BZ8: Acondicionadores de aire comerciales divididos ELIMINACIÓN | CA8: Acondicionadores de aire residenciales de tipo dividido ELIMINACIÓN | CD8: Matanza_empacado_y_procesamiento_de_carne_y_animales_comestibles | CE8: In6. Únicamente reporta consumo energético - Energía y Transporte | CM8: Aa6. Gasolinas y naftas | CN8: Avícola_producción_huevo | CO8: Almacenamiento de estiércol líquido (BC) | CP8: Almacenamiento de estiércol líquido (BL) | CQ8: Almacenamiento de estiércol líquido (BCyL) | CR8: Almacenamiento de estiércol líquido (BO) | CS8: Almacenamiento de estiércol líquido (P) | CT8: Almacenamiento de estiércol líquido (AH) | CU8: Almacenamiento de estiércol líquido (AC) | CV8: Almacenamiento de estiércol líquido (AGyP) | CW8: Almacenamiento de estiércol líquido (O) | CX8: Almacenamiento de estiércol líquido (CP) | CY8: Almacenamiento de estiércol líquido (AI) | CZ8: Camas profundas para vacunos y porcinos M | DA8: Camas profundas para vacunos y porcinos AI | DB8: Camas profundas para vacunos y porcinos OA | DJ8: Servicios_Médicos | DK8: Otras_construcciones_de_ingeniería_civil | DL8: Ca6. Únicamente reporta consumo energético - Energía y Transporte | DM8: Comercio_al_por_mayor_de_maquinaria_y_equipo_agropecuario_forestal_y_para_la_pesca | DN8: Cb6. Únicamente reporta consumo energético - Energía y Transporte
A9: T | B9: Todos | J9: Biodiesel | K9: Biodiesel_PT | L9: Transporte_Gas_almacenamiento | AE9: Gas Natural_B | AG9: Industria_Celulosa_y_Papel | AH9: Productos_de_plástico | AI9: Ia12. Únicamente reporta consumo energético - Energía y Transporte | AL9: Coque_Siderurgia | AX9: Ankerita (o espato) | BE9: Óxido_de_etileno | BH9: Proceso de oxidación parcial | BZ9: Aire acondicionado automotriz CARGA | CA9: Refrigeración doméstica CARGA | CD9: Preparación_y_envasado_de_pescados_y_mariscos | CE9: In7. Únicamente reporta consumo energético - Energía y Transporte | CN9: Avícola_producción_carne | CO9: Almacenamiento del estiércol (con poco o ningún agregado de agua) debajo de un suelo emparrillado (BC) | CP9: Almacenamiento del estiércol (con poco o ningún agregado de agua) debajo de un suelo emparrillado (BL) | CQ9: Almacenamiento del estiércol (con poco o ningún agregado de agua) debajo de un suelo emparrillado (BCyL) | CR9: Almacenamiento del estiércol (con poco o ningún agregado de agua) debajo de un suelo emparrillado (BO) | CS9: Almacenamiento del estiércol (con poco o ningún agregado de agua) debajo de un suelo emparrillado (P) | CT9: Almacenamiento del estiércol (con poco o ningún agregado de agua) debajo de un suelo emparrillado (AH) | CU9: Almacenamiento del estiércol (con poco o ningún agregado de agua) debajo de un suelo emparrillado (AC) | CV9: Almacenamiento del estiércol (con poco o ningún agregado de agua) debajo de un suelo emparrillado (AGyP) | CW9: Almacenamiento del estiércol (con poco o ningún agregado de agua) debajo de un suelo emparrillado (O) | CX9: Almacenamiento del estiércol (con poco o ningún agregado de agua) debajo de un suelo emparrillado (CP) | CY9: Almacenamiento del estiércol (con poco o ningún agregado de agua) debajo de un suelo emparrillado (AI) | CZ9: Fabricación de abono orgánico (composta) – en tambor M | DA9: Camas profundas para vacunos y porcinos AI | DB9: Fabricación de abono orgánico (composta) – en tambor OA | DJ9: Gobierno | DK9: Cimentaciones_montaje_de_estructuras_prefabricadas_y_trabajos_en_exteriores | DL9: Ca7. Únicamente reporta consumo energético - Energía y Transporte | DM9: Mobiliario_y_equipo_de_cómputo_y_oficina_y_otra_maquinaria_y_equipo_de_uso_general | DN9: Cb7. Únicamente reporta consumo energético - Energía y Transporte
J10: Biogás (metano) | K10: Biogás (metano)_PT | L10: Distribución_gas_natural_ductos | AE10: Gas_licuado_B | AG10: Industria_Artes_Gráficas | AH10: Productos_de_hule | AL10: Caliza | AX10: Rhodochrosita | BE10: Negro_de_humo | BH10: Vapor convencional, producción integrada de amoníaco | BZ10: Aire acondicionado automotriz RECARGA | CA10: Refrigeración doméstica RECARGA | CD10: Productos_de_panadería_y_tortillas | CE10: In8. Únicamente reporta consumo energético - Energía y Transporte | CN10: Avícola_producción_guajolotes_pavos | CO10: Almacenamiento de estiércol (con o sin paja) en un tanque contenedor o en una laguna cubierta en condiciones anaerobias (BC) | CP10: Almacenamiento de estiércol (con o sin paja) en un tanque contenedor o en una laguna cubierta en condiciones anaerobias (BL) | CQ10: Almacenamiento de estiércol (con o sin paja) en un tanque contenedor o en una laguna cubierta en condiciones anaerobias (BCyL) | CR10: Almacenamiento de estiércol (con o sin paja) en un tanque contenedor o en una laguna cubierta en condiciones anaerobias (BO) | CS10: Almacenamiento de estiércol (con o sin paja) en un tanque contenedor o en una laguna cubierta en condiciones anaerobias (P) | CT10: Almacenamiento de estiércol (con o sin paja) en un tanque contenedor o en una laguna cubierta en condiciones anaerobias (AH) | CU10: Almacenamiento de estiércol (con o sin paja) en un tanque contenedor o en una laguna cubierta en condiciones anaerobias (AC) | CV10: Almacenamiento de estiércol (con o sin paja) en un tanque contenedor o en una laguna cubierta en condiciones anaerobias (AGyP) | CW10: Almacenamiento de estiércol (con o sin paja) en un tanque contenedor o en una laguna cubierta en condiciones anaerobias (O) | CX10: Almacenamiento de estiércol (con o sin paja) en un tanque contenedor o en una laguna cubierta en condiciones anaerobias (CP) | CY10: Almacenamiento de estiércol (con o sin paja) en un tanque contenedor o en una laguna cubierta en condiciones anaerobias (AI) | CZ10: Fabricación de abono orgánico (composta) – Pila estática M | DA10: Fabricación de abono orgánico (composta) – en tambor AI | DB10: Fabricación de abono orgánico (composta) – Pila estática OA | DJ10: Servicios_Financieros | DK10: Instalaciones_y_equipamiento_en_construcciones | DL10: Ca8. Únicamente reporta consumo energético - Energía y Transporte | DM10: Comercio_al_por_menor_de_abarrotes_y_alimentos | DN10: Cb8. Únicamente reporta consumo energético - Energía y Transporte
J11: Biogasolina | K11: Biogasolina_PT | L11: Suministro_gas_natural_al_consumidor_final | AE11: Gasolina_B | AG11: Industria_Petroquímica | AL11: Dolomita cruda | AX11: Carbonato de sodio o ceniza de sosa | BE11: Dióxido_de_titanio | BZ11: Aire acondicionado automotriz ELIMINACIÓN | CA11: Refrigeración doméstica ELIMINACIÓN | CD11: Industria_de_bebidas | CE11: In9. Únicamente reporta consumo energético - Energía y Transporte | CN11: Ovinos | CO11: Quema o uso como combustible de estiércol seco (BC) | CP11: Quema o uso como combustible de estiércol seco (BL) | CQ11: Quema o uso como combustible de estiércol seco (BCyL) | CR11: Quema o uso como combustible de estiércol seco (BO) | CS11: Quema o uso como combustible de estiércol seco (P) | CT11: Quema o uso como combustible de estiércol seco (AH) | CU11: Quema o uso como combustible de estiércol seco (AC) | CV11: Quema o uso como combustible de estiércol seco (AGyP) | CW11: Quema o uso como combustible de estiércol seco (O) | CX11: Quema o uso como combustible de estiércol seco (CP) | CY11: Quema o uso como combustible de estiércol seco (AI) | CZ11: Fabricación de abono orgánico (composta) – intensivo en filas M | DA11: Fabricación de abono orgánico (composta) – Pila estática AI | DB11: Fabricación de abono orgánico (composta) – intensivo en filas OA | DK11: Trabajos_de_acabados_en_edificaciones | DL11: Ca9. Únicamente reporta consumo energético - Energía y Transporte | DM11: Comercio_al_por_menor_en_tiendas_de_autoservicio | DN11: Cb9. Únicamente reporta consumo energético - Energía y Transporte
J12: Caña de maíz | K12: Caña de maíz_PT | AG12: Industria_Cemento_y_Cal | AL12: Electrodos del Horno de Arco Eléctrico o del Horno Básico de Oxígeno | BE12: Caprolactama | BZ12: Aire acondicionado automotriz en vehículos grandes CARGA | CN12: Caprinos | CO12: Almacenamiento de estiércol con cama de agregados para el control de humedad (BC) | CP12: Almacenamiento de estiércol con cama de agregados para el control de humedad (BL) | CQ12: Almacenamiento de estiércol con cama de agregados para el control de humedad (BCyL) | CR12: Almacenamiento de estiércol con cama de agregados para el control de humedad (BO) | CS12: Almacenamiento de estiércol con cama de agregados para el control de humedad (P) | CT12: Almacenamiento de estiércol con cama de agregados para el control de humedad (AH) | CU12: Almacenamiento de estiércol con cama de agregados para el control de humedad (AC) | CV12: Almacenamiento de estiércol con cama de agregados para el control de humedad (AGyP) | CW12: Almacenamiento de estiércol con cama de agregados para el control de humedad (O) | CX12: Almacenamiento de estiércol con cama de agregados para el control de humedad (CP) | CY12: Almacenamiento de estiércol con cama de agregados para el control de humedad (AI) | CZ12: Fabricación de abono orgánico (composta) – pasivo en filas M | DA12: Fabricación de abono orgánico (composta) – intensivo en filas AI | DB12: Fabricación de abono orgánico (composta) – pasivo en filas OA | DK12: Otros_trabajos_especializados_para_la_construcción | DL12: Ca10. Únicamente reporta consumo energético - Energía y Transporte | DM12: Comercio_al_por_menor_en_tiendas_departamentales | DN12: Cb10. Únicamente reporta consumo energético - Energía y Transporte
J13: Carbón antracita | K13: Carbón antracita_PT | AE13: Diesel_C | AG13: Industria_Vidrio | AL13: Arrabio | BZ13: Aire acondicionado automotriz en vehículos grandes RECARGA | CN13: Producción_ave_incubadora | CO13: Composteo en canal cerrado, con aireación forzada y mezclado permanente (BC) | CP13: Composteo en canal cerrado, con aireación forzada y mezclado permanente (BL) | CQ13: Composteo en canal cerrado, con aireación forzada y mezclado permanente (BCyL) | CR13: Composteo en canal cerrado, con aireación forzada y mezclado permanente (BO) | CS13: Composteo en canal cerrado, con aireación forzada y mezclado permanente (P) | CT13: Composteo en canal cerrado, con aireación forzada y mezclado permanente (AH) | CU13: Composteo en canal cerrado, con aireación forzada y mezclado permanente (AC) | CV13: Composteo en canal cerrado, con aireación forzada y mezclado permanente (AGyP) | CW13: Composteo en canal cerrado, con aireación forzada y mezclado permanente (O) | CX13: Composteo en canal cerrado, con aireación forzada y mezclado permanente (CP) | CY13: Composteo en canal cerrado, con aireación forzada y mezclado permanente (AI) | CZ13: Estiércol de aves de corral con hojarasca M | DA13: Fabricación de abono orgánico (composta) – pasivo en filas AI | DB13: Estiércol de aves de corral con hojarasca OA | DK13: Maquinaria_construcción | DL13: Gasolinas_maquinaria_construcción | DM13: Comercio_al_por_menor_de_ropa_bisutería_y_accesorios_de_vestir | DN13: Cb11. Únicamente reporta consumo energético - Energía y Transporte
J14: Carbón bituminoso | K14: Carbón bituminoso_PT | AE14: Gas Natural_C | AG14: Industria_Electrónica | AL14: Arrabio frío (Cold iron) | BZ14: Aire acondicionado automotriz en vehículos grandes ELIMINACIÓN | CO14: Composteo en pilas con aireación forzada pero sin mezclado (BC) | CP14: Composteo en pilas con aireación forzada pero sin mezclado (BL) | CQ14: Composteo en pilas con aireación forzada pero sin mezclado (BCyL) | CR14: Composteo en pilas con aireación forzada pero sin mezclado (BO) | CS14: Composteo en pilas con aireación forzada pero sin mezclado (P) | CT14: Composteo en pilas con aireación forzada pero sin mezclado (AH) | CU14: Composteo en pilas con aireación forzada pero sin mezclado (AC) | CV14: Composteo en pilas con aireación forzada pero sin mezclado (AGyP) | CW14: Composteo en pilas con aireación forzada pero sin mezclado (O) | CX14: Composteo en pilas con aireación forzada pero sin mezclado (CP) | CY14: Composteo en pilas con aireación forzada pero sin mezclado (AI) | CZ14: Estiércol de aves de corral sin hojarasca M | DA14: Estiércol de aves de corral con hojarasca AI | DB14: Estiércol de aves de corral sin hojarasca OA | DL14: Diesel_maquinaria_construcción | DM14: Comercio_al_por_menor_de_partes_y_refacciones_para_automóviles_camionetas_y_camiones | DN14: Cb12. Únicamente reporta consumo energético - Energía y Transporte
J15: Carbón mineral | K15: Carbón mineral_PT | AE15: Gas_licuado_C | AG15: Industria_Eléctrica | AL15: Fierro Esponja o Hierro de Reducción Directa Base Gas Natural | BZ15: Cajas frías para transporte CARGA | CO15: Composteo en pilas rectangulares con mezclado de medias vueltas regulares (diario) para mezclado y aireación (BC) | CP15: Composteo en pilas rectangulares con mezclado de medias vueltas regulares (diario) para mezclado y aireación (BL) | CQ15: Composteo en pilas rectangulares con mezclado de medias vueltas regulares (diario) para mezclado y aireación (BCyL) | CR15: Composteo en pilas rectangulares con mezclado de medias vueltas regulares (diario) para mezclado y aireación (BO) | CS15: Composteo en pilas rectangulares con mezclado de medias vueltas regulares (diario) para mezclado y aireación (P) | CT15: Composteo en pilas rectangulares con mezclado de medias vueltas regulares (diario) para mezclado y aireación (AH) | CU15: Composteo en pilas rectangulares con mezclado de medias vueltas regulares (diario) para mezclado y aireación (AC) | CV15: Composteo en pilas rectangulares con mezclado de medias vueltas regulares (diario) para mezclado y aireación (AGyP) | CW15: Composteo en pilas rectangulares con mezclado de medias vueltas regulares (diario) para mezclado y aireación (O) | CX15: Composteo en pilas rectangulares con mezclado de medias vueltas regulares (diario) para mezclado y aireación (CP) | CY15: Composteo en pilas rectangulares con mezclado de medias vueltas regulares (diario) para mezclado y aireación (AI) | CZ15: Tratamiento aeróbico M | DA15: Estiércol de aves de corral sin hojarasca AI | DB15: Tratamiento aeróbico OA
J16: Carbón siderúrgico de importación | K16: Carbón siderúrgico de importación_PT | AE16: Gasolina_C | AG16: Industria_Alimentos_y_Bebidas | AL16: Fierro Esponja o Hierro de Reducción Directa Base Carbón | BZ16: Cajas frías para transporte RECARGA | CO16: Composteo en pilas rectangulares con mezclado de medias vueltas frecuentes para mezclado y aireación (BC) | CP16: Composteo en pilas rectangulares con mezclado de medias vueltas frecuentes para mezclado y aireación (BL) | CQ16: Composteo en pilas rectangulares con mezclado de medias vueltas frecuentes para mezclado y aireación (BCyL) | CR16: Composteo en pilas rectangulares con mezclado de medias vueltas frecuentes para mezclado y aireación (BO) | CS16: Composteo en pilas rectangulares con mezclado de medias vueltas frecuentes para mezclado y aireación (P) | CT16: Composteo en pilas rectangulares con mezclado de medias vueltas frecuentes para mezclado y aireación (AH) | CU16: Composteo en pilas rectangulares con mezclado de medias vueltas frecuentes para mezclado y aireación (AC) | CV16: Composteo en pilas rectangulares con mezclado de medias vueltas frecuentes para mezclado y aireación (AGyP) | CW16: Composteo en pilas rectangulares con mezclado de medias vueltas frecuentes para mezclado y aireación (O) | CX16: Composteo en pilas rectangulares con mezclado de medias vueltas frecuentes para mezclado y aireación (CP) | CY16: Composteo en pilas rectangulares con mezclado de medias vueltas frecuentes para mezclado y aireación (AI) | CZ16: Tratamiento aeróbico M | DA16: Tratamiento aeróbico AI | DB16: Tratamiento aeróbico OA
J17: Carbón siderúrgico nacional | K17: Carbón siderúrgico nacional_PT | AG17: Industria_Madera | AL17: Ferroníquel | BZ17: Cajas frías para transporte ELIMINACIÓN | CO17: Mezclado de estiércol de aves de corral con hojarasca en camas profundas (no combinadas con engorde en corral o pastura) (BC) | CP17: Mezclado de estiércol de aves de corral con hojarasca en camas profundas (no combinadas con engorde en corral o pastura) (BL) | CQ17: Mezclado de estiércol de aves de corral con hojarasca en camas profundas (no combinadas con engorde en corral o pastura) (BCyL) | CR17: Mezclado de estiércol de aves de corral con hojarasca en camas profundas (no combinadas con engorde en corral o pastura) (BO) | CS17: Mezclado de estiércol de aves de corral con hojarasca en camas profundas (no combinadas con engorde en corral o pastura) (P) | CT17: Mezclado de estiércol de aves de corral con hojarasca en camas profundas (no combinadas con engorde en corral o pastura) (AH) | CU17: Mezclado de estiércol de aves de corral con hojarasca en camas profundas (no combinadas con engorde en corral o pastura) (AC) | CV17: Mezclado de estiércol de aves de corral con hojarasca en camas profundas (no combinadas con engorde en corral o pastura) (AGyP) | CW17: Mezclado de estiércol de aves de corral con hojarasca en camas profundas (no combinadas con engorde en corral o pastura) (O) | CX17: Mezclado de estiércol de aves de corral con hojarasca en camas profundas (no combinadas con engorde en corral o pastura) (CP) | CY17: Mezclado de estiércol de aves de corral con hojarasca en camas profundas (no combinadas con engorde en corral o pastura) (AI) | DA17: Tratamiento aeróbico AI
J18: Carbón térmico de importación | K18: Carbón térmico de importación_PT | AE18: Diesel_D | AG18: Industria_Textil | AL18: Ferrocromo | BZ18: Enfriadores con R-134a CARGA | CO18: Manejo de estiércol de aves de corral sin hojarasca en pozos abiertos en instalaciones cerradas (BC) | CP18: Manejo de estiércol de aves de corral sin hojarasca en pozos abiertos en instalaciones cerradas (BL) | CQ18: Manejo de estiércol de aves de corral sin hojarasca en pozos abiertos en instalaciones cerradas (BCyL) | CR18: Manejo de estiércol de aves de corral sin hojarasca en pozos abiertos en instalaciones cerradas (BO) | CS18: Manejo de estiércol de aves de corral sin hojarasca en pozos abiertos en instalaciones cerradas (P) | CT18: Manejo de estiércol de aves de corral sin hojarasca en pozos abiertos en instalaciones cerradas (AH) | CU18: Manejo de estiércol de aves de corral sin hojarasca en pozos abiertos en instalaciones cerradas (AC) | CV18: Manejo de estiércol de aves de corral sin hojarasca en pozos abiertos en instalaciones cerradas (AGyP) | CW18: Manejo de estiércol de aves de corral sin hojarasca en pozos abiertos en instalaciones cerradas (O) | CX18: Manejo de estiércol de aves de corral sin hojarasca en pozos abiertos en instalaciones cerradas (CP) | CY18: Manejo de estiércol de aves de corral sin hojarasca en pozos abiertos en instalaciones cerradas (AI)
J19: Carbón térmico nacional | K19: Carbón térmico nacional_PT | AE19: Gas Natural_D | AL19: Ferromolibdeno | BZ19: Enfriadores con R-134a RECARGA | CO19: Oxidación biológica aeróbica del estiércol con aireación (BC) | CP19: Oxidación biológica aeróbica del estiércol con aireación (BL) | CQ19: Oxidación biológica aeróbica del estiércol con aireación (BCyL) | CR19: Oxidación biológica aeróbica del estiércol con aireación (BO) | CS19: Oxidación biológica aeróbica del estiércol con aireación (P) | CT19: Oxidación biológica aeróbica del estiércol con aireación (AH) | CU19: Oxidación biológica aeróbica del estiércol con aireación (AC) | CV19: Oxidación biológica aeróbica del estiércol con aireación (AGyP) | CW19: Oxidación biológica aeróbica del estiércol con aireación (O) | CX19: Oxidación biológica aeróbica del estiércol con aireación (CP) | CY19: Oxidación biológica aeróbica del estiércol con aireación (AI)
J20: Carbón vegetal | K20: Carbón vegetal_PT | AE20: Gas_licuado_D | AL20: Gas de coquizadora_Siderurgia | BZ20: Enfriadores con R-134a ELIMINACIÓN | CO20: Oxidación biológica aeróbica del estiércol con aireación forzada (BC) | CP20: Oxidación biológica aeróbica del estiércol con aireación forzada (BL) | CQ20: Oxidación biológica aeróbica del estiércol con aireación forzada (BCyL) | CR20: Oxidación biológica aeróbica del estiércol con aireación forzada (BO) | CS20: Oxidación biológica aeróbica del estiércol con aireación forzada (P) | CT20: Oxidación biológica aeróbica del estiércol con aireación forzada (AH) | CU20: Oxidación biológica aeróbica del estiércol con aireación forzada (AC) | CV20: Oxidación biológica aeróbica del estiércol con aireación forzada (AGyP) | CW20: Oxidación biológica aeróbica del estiércol con aireación forzada (O) | CX20: Oxidación biológica aeróbica del estiércol con aireación forzada (CP) | CY20: Oxidación biológica aeróbica del estiércol con aireación forzada (AI)
J21: Cartón ordinario-empaques-envases | K21: Cartón ordinario-empaques-envases_PT | AE21: Gasolina_D | AL21: Gas de Alto Horno_Siderurgia | BZ21: Enfriadores con R-404a CARGA
J22: Combustóleo ligero | K22: Combustóleo ligero_PT | AL22: Gas de Horno Básico de Oxígeno_Siderurgia | BZ22: Enfriadores con R-404a RECARGA
J23: Combustóleo pesado | K23: Combustóleo pesado_PT | AL23: CO2 a uso externo | BZ23: Enfriadores con R-404a ELIMINACIÓN
J24: Coque de carbón | K24: Coque de carbón_PT | AL24: Alquitrán_Siderurgia | BZ24: Equipo autónomo CARGA
J25: Coque de petróleo | K25: Coque de petróleo_PT | AL25: Benzol | BZ25: Equipo autónomo RECARGA
J26: Diáfano | K26: Diáfano_PT | AL26: Combustóleo_Siderurgia | BZ26: Equipo autónomo ELIMINACIÓN
J27: Diésel | K27: Diésel_PT | AL27: Diésel_Siderurgia | BZ27: Integral CARGA
J28: Esquisto bituminoso y alquitrán | K28: Esquisto bituminoso y alquitrán_PT | AL28: Keroseno_Siderurgia | BZ28: Integral RECARGA
J29: Etano | K29: Etano_PT | AL29: GLP_Siderurgia | BZ29: Integral ELIMINACIÓN
J30: Gas de alto horno | K30: Gas de alto horno _PT | AL30: Gas Natural_Siderurgia | BZ30: Multi-splits CARGA
J31: Gas de coque | K31: Gas de coque _PT | BZ31: Multi-splits RECARGA
J32: Gas licuado | K32: Gas licuado_PT | BZ32: Multi-splits ELIMINACIÓN
J33: Gas natural (promedio asociado y no asociado) | K33: Gas natural (promedio asociado y no asociado)_PT | BZ33: Sistemas centralizados para industria CARGA
J34: Gas natural asociado | K34: Gas natural asociado_PT | BZ34: Sistemas centralizados para industria RECARGA
J35: Gas natural no asociado | K35: Gas natural no asociado _PT | BZ35: Sistemas centralizados para industria ELIMINACIÓN
J36: Gas seco | K36: Gas seco_PT | BZ36: Sistemas centralizados para supermercados CARGA
J37: Gas seco de exportación | K37: Gas seco de exportación_PT | BZ37: Sistemas centralizados para supermercados RECARGA
J38: Gas seco de importación | K38: Gas seco de importación_PT | BZ38: Sistemas centralizados para supermercados ELIMINACIÓN
J39: Gasóleo | K39: Gasóleo_PT | BZ39: Sistemas comerciales divididos con ductos CARGA
J40: Gasolinas naturales | K40: Gasolinas naturales_PT | BZ40: Sistemas comerciales divididos con ductos RECARGA
J41: Gasolinas y naftas | K41: Gasolinas y naftas_PT | BZ41: Sistemas comerciales divididos con ductos ELIMINACIÓN
J42: Hidrógeno | K42: Hidrógeno_PT | BZ42: Unidad de techo con ductos CARGA
J43: Lana y seda | K43: Lana y seda_PT | BZ43: Unidad de techo con ductos RECARGA
J44: Leña | K44: Leña_PT | BZ44: Unidad de techo con ductos ELIMINACIÓN
J45: Licor negro | K45: Licor negro_PT | BZ45: Unidades condensadas comerciales CARGA
J46: Lubricantes | K46: Lubricantes_PT | BZ46: Unidades condensadas comerciales RECARGA
J47: Madera (20% de humedad) | K47: Madera (20% de humedad)_PT | BZ47: Unidades condensadas comerciales ELIMINACIÓN
J48: Madera en astillas/pellets | K48: Madera en astillas/pellets_PT | BZ48: Unidades condensadas industriales CARGA
J49: Mezcla de parafinas | K49: Mezcla de parafinas_PT | BZ49: Unidades condensadas industriales RECARGA
J50: Paja de arroz | K50: Paja de arroz_PT | BZ50: Unidades condensadas industriales ELIMINACIÓN
J51: Paneles-fibras-partículas y pedacería de madera | K51: Paneles-fibras-partículas y pedacería de madera_PT
J52: Papel ordinario o kraft | K52: Papel ordinario o kraft_PT
J53: Petróleo crudo (promedio de la producción) | K53: Petróleo crudo (promedio de la producción)_PT
J54: Petróleo crudo ligero | K54: Petróleo crudo ligero_PT
J55: Petróleo crudo pesado | K55: Petróleo crudo pesado_PT
J56: Petróleo crudo superligero | K56: Petróleo crudo superligero_PT
J57: Querosenos | K57: Querosenos_PT
J58: Turba (35 % de humedad) | K58: Turba (35 % de humedad)_PT
J59: Turbosina | K59: Turbosina_PT

Sheet ID (hidden)
A2: FUENTE DE EMISIÓN | B2: ACTIVIDAD | C2: SUBSECTOR | D2: SECTOR | E2: ID
A3: Aa1. Únicamente reporta consumo energético - Energía y Transporte | B3: Oleaginosas_gramíneas_leguminosas_o_cereales_en_grano_y_forrajeras | C3: Subsector_Agricultura | D3: Agropecuario | E3: Aa1
A4: Aa2. Únicamente reporta consumo energético - Energía y Transporte | B4: Cultivo_de_hortalizas | C4: Subsector_Agricultura | D4: Agropecuario | E4: Aa2
A5: Aa3. Únicamente reporta consumo energético - Energía y Transporte | B5: Cultivo_de_frutales_y_nueces | C5: Subsector_Agricultura | D5: Agropecuario | E5: Aa3
A6: Aa4. Únicamente reporta consumo energético - Energía y Transporte | B6: Cultivo_en_invernaderos_y_viveros_y_floricultura | C6: Subsector_Agricultura | D6: Agropecuario | E6: Aa4
A7: Aa5. Diesel | B7: Maquinaria_agrícola | C7: Subsector_Agricultura | D7: Agropecuario | E7: Aa5
A8: Aa6. Gasolinas y naftas | B8: Maquinaria_agrícola | C8: Subsector_Agricultura | D8: Agropecuario | E8: Aa6
A9: Acetonitrilo quemado para recuperación de energía y/o quemado en antorcha | B9: Acrilonitrilo | C9: Industria_Petroquímica | D9: Industrial | E9: Ii24
A10: Acetonitrilo y cianuro de hidrógeno recuperado como producto | B10: Acrilonitrilo | C10: Industria_Petroquímica | D10: Industrial | E10: Ii25
A11: Ácido Adípico | B11: Productos_químicos_básicos | C11: Industria_Química | D11: Industrial | E11: Ia03
A12: Ácido glioxílico | B12: Caprolactama | C12: Industria_Petroquímica | D12: Industrial | E12: Ii35
A13: Ácido Nítrico | B13: Productos_químicos_básicos | C13: Industria_Química | D13: Industrial | E13: Ia02
A14: Acondicionadores de aire autocontenidos CARGA | B14: Fabricación de equipo de aire acondicionado, calefacción, y de refrigeración; industrial y comercial | C14: Subsector industria eléctrica | D14: Industrial | E14: Im2
A15: Acondicionadores de aire autocontenidos ELIMINACIÓN | B15: Fabricación de equipo de aire acondicionado, calefacción, y de refrigeración; industrial y comercial | C15: Subsector industria eléctrica | D15: Industrial | E15: Im4
A16: Acondicionadores de aire autocontenidos RECARGA | B16: Fabricación de equipo de aire acondicionado, calefacción, y de refrigeración; industrial y comercial | C16: Subsector industria eléctrica | D16: Industrial | E16: Im3
A17: Acondicionadores de aire comerciales divididos CARGA | B17: Fabricación de equipo de aire acondicionado, calefacción, y de refrigeración; industrial y comercial | C17: Subsector industria eléctrica | D17: Industrial | E17: Im5
A18: Acondicionadores de aire comerciales divididos ELIMINACIÓN | B18: Fabricación de equipo de aire acondicionado, calefacción, y de refrigeración; industrial y comercial | C18: Subsector industria eléctrica | D18: Industrial | E18: Im7
A19: Acondicionadores de aire comerciales divididos RECARGA | B19: Fabricación de equipo de aire acondicionado, calefacción, y de refrigeración; industrial y comercial | C19: Subsector industria eléctrica | D19: Industrial | E19: Im6
A20: Acondicionadores de aire residenciales de ducto o tipo dividido CARGA | B20: Fabricación de equipo de aire acondicionado, calefacción, y de refrigeración; industrial y comercial | C20: Subsector industria eléctrica | D20: Industrial | E20: Im50
A21: Acondicionadores de aire residenciales de ducto o tipo dividido ELIMINACIÓN | B21: Fabricación de equipo de aire acondicionado, calefacción, y de refrigeración; industrial y comercial | C21: Subsector industria eléctrica | D21: Industrial | E21: Im52
A22: Acondicionadores de aire residenciales de ducto o tipo dividido RECARGA | B22: Fabricación de equipo de aire acondicionado, calefacción, y de refrigeración; industrial y comercial | C22: Subsector industria eléctrica | D22: Industrial | E22: Im51
A23: Acondicionadores de aire residenciales de tipo dividido CARGA | B23: Fabricación de equipo de aire acondicionado, calefacción, y de refrigeración; industrial y comercial | C23: Subsector industria eléctrica | D23: Industrial | E23: Im53
A24: Acondicionadores de aire residenciales de tipo dividido ELIMINACIÓN | B24: Fabricación de equipo de aire acondicionado, calefacción, y de refrigeración; industrial y comercial | C24: Subsector industria eléctrica | D24: Industrial | E24: Im55
A25: Acondicionadores de aire residenciales de tipo dividido RECARGA | B25: Fabricación de equipo de aire acondicionado, calefacción, y de refrigeración; industrial y comercial | C25: Subsector industria eléctrica | D25: Industrial | E25: Im54
A26: Aire acondicionado automotriz CARGA | B26: Fabricación de equipo de aire acondicionado, calefacción, y de refrigeración; industrial y comercial | C26: Subsector industria eléctrica | D26: Industrial | E26: Im8
A27: Aire acondicionado automotriz ELIMINACIÓN | B27: Fabricación de equipo de aire acondicionado, calefacción, y de refrigeración; industrial y comercial | C27: Subsector industria eléctrica | D27: Industrial | E27: Im10
A28: Aire acondicionado automotriz en vehículos grandes CARGA | B28: Fabricación de equipo de aire acondicionado, calefacción, y de refrigeración; industrial y comercial | C28: Subsector industria eléctrica | D28: Industrial | E28: Im11
A29: Aire acondicionado automotriz en vehículos grandes ELIMINACIÓN | B29: Fabricación de equipo de aire acondicionado, calefacción, y de refrigeración; industrial y comercial | C29: Subsector industria eléctrica | D29: Industrial | E29: Im13
A30: Aire acondicionado automotriz en vehículos grandes RECARGA | B30: Fabricación de equipo de aire acondicionado, calefacción, y de refrigeración; industrial y comercial | C30: Subsector industria eléctrica | D30: Industrial | E30: Im12
A31: Aire acondicionado automotriz RECARGA | B31: Fabricación de equipo de aire acondicionado, calefacción, y de refrigeración; industrial y comercial | C31: Subsector industria eléctrica | D31: Industrial | E31: Im9
A32: Algodón | B32: Generación_energía_eléctrica | C32: Energía_eléctrica | D32: Energía | E32: Ea01
A33: Algodón_PT | B33: Procesos_térmicos | C33: Energía_térmica | D33: Energía | E33: Ec01
A34: Almacenamiento de estiércol (como se excreta o con un mínimo de agua) en tanques o estanques de tierra (AC) | B34: Avícola para la producción de carne | C34: Subsector ganadería | D34: Agropecuario | E34: Ab113
A35: Almacenamiento de estiércol (como se excreta o con un mínimo de agua) en tanques o estanques de tierra (AGyP) | B35: Avícola para la producción de guajolotes o pavos | C35: Subsector ganadería | D35: Agropecuario | E35: Ab131
A36: Almacenamiento de estiércol (como se excreta o con un mínimo de agua) en tanques o estanques de tierra (AH) | B36: Avícola para la producción de huevo | C36: Subsector ganadería | D36: Agropecuario | E36: Ab095
A37: Almacenamiento de estiércol (como se excreta o con un mínimo de agua) en tanques o estanques de tierra (AI) | B37: Producción de cualquier tipo de ave en incubadora | C37: Subsector ganadería | D37: Agropecuario | E37: Ab185
A38: Almacenamiento de estiércol (como se excreta o con un mínimo de agua) en tanques o estanques de tierra (BC) | B38: Bovinos para la producción de carne | C38: Subsector ganadería | D38: Agropecuario | E38: Ab023
A39: Almacenamiento de estiércol (como se excreta o con un mínimo de agua) en tanques o estanques de tierra (BCyL) | B39: Bovinos para la producción conjunta de leche y carne | C39: Subsector ganadería | D39: Agropecuario | E39: Ab005
A40: Almacenamiento de estiércol (como se excreta o con un mínimo de agua) en tanques o estanques de tierra (BL) | B40: Bovinos para la producción de leche | C40: Subsector ganadería | D40: Agropecuario | E40: Ab041
A41: Almacenamiento de estiércol (como se excreta o con un mínimo de agua) en tanques o estanques de tierra (BO) | B41: Bovinos para otros propósitos | C41: Subsector ganadería | D41: Agropecuario | E41: Ab059
A42: Almacenamiento de estiércol (como se excreta o con un mínimo de agua) en tanques o estanques de tierra (CP) | B42: Caprinos para cualquier actividad | C42: Subsector ganadería | D42: Agropecuario | E42: Ab167
A43: Almacenamiento de estiércol (como se excreta o con un mínimo de agua) en tanques o estanques de tierra (O) | B43: Ovinos para cualquier actividad | C43: Subsector ganadería | D43: Agropecuario | E43: Ab149
A44: Almacenamiento de estiércol (como se excreta o con un mínimo de agua) en tanques o estanques de tierra (P) | B44: Porcinos para la producción de carne | C44: Subsector ganadería | D44: Agropecuario | E44: Ab077
A45: Almacenamiento de estiércol (con o sin paja) en un tanque contenedor o en una laguna cubierta en condiciones anaerobias (AC) | B45: Avícola para la producción de carne | C45: Subsector ganadería | D45: Agropecuario | E45: Ab116
A46: Almacenamiento de estiércol (con o sin paja) en un tanque contenedor o en una laguna cubierta en condiciones anaerobias (AGyP) | B46: Avícola para la producción de guajolotes o pavos | C46: Subsector ganadería | D46: Agropecuario | E46: Ab134
A47: Almacenamiento de estiércol (con o sin paja) en un tanque contenedor o en una laguna cubierta en condiciones anaerobias (AH) | B47: Avícola para la producción de huevo | C47: Subsector ganadería | D47: Agropecuario | E47: Ab098
A48: Almacenamiento de estiércol (con o sin paja) en un tanque contenedor o en una laguna cubierta en condiciones anaerobias (AI) | B48: Producción de cualquier tipo de ave en incubadora | C48: Subsector ganadería | D48: Agropecuario | E48: Ab188
A49: Almacenamiento de estiércol (con o sin paja) en un tanque contenedor o en una laguna cubierta en condiciones anaerobias (BC) | B49: Bovinos para la producción de carne | C49: Subsector ganadería | D49: Agropecuario | E49: Ab026
A50: Almacenamiento de estiércol (con o sin paja) en un tanque contenedor o en una laguna cubierta en condiciones anaerobias (BCyL) | B50: Bovinos para la producción conjunta de leche y carne | C50: Subsector ganadería | D50: Agropecuario | E50: Ab008
A51: Almacenamiento de estiércol (con o sin paja) en un tanque contenedor o en una laguna cubierta en condiciones anaerobias (BL) | B51: Bovinos para la producción de leche | C51: Subsector ganadería | D51: Agropecuario | E51: Ab044
A52: Almacenamiento de estiércol (con o sin paja) en un tanque contenedor o en una laguna cubierta en condiciones anaerobias (BO) | B52: Bovinos para otros propósitos | C52: Subsector ganadería | D52: Agropecuario | E52: Ab062
A53: Almacenamiento de estiércol (con o sin paja) en un tanque contenedor o en una laguna cubierta en condiciones anaerobias (CP) | B53: Caprinos para cualquier actividad | C53: Subsector ganadería | D53: Agropecuario | E53: Ab170
A54: Almacenamiento de estiércol (con o sin paja) en un tanque contenedor o en una laguna cubierta en condiciones anaerobias (O) | B54: Ovinos para cualquier actividad | C54: Subsector ganadería | D54: Agropecuario | E54: Ab152
A55: Almacenamiento de estiércol (con o sin paja) en un tanque contenedor o en una laguna cubierta en condiciones anaerobias (P) | B55: Porcinos para la producción de carne | C55: Subsector ganadería | D55: Agropecuario | E55: Ab080
A56: Almacenamiento de estiércol con cama de agregados para el control de humedad (AC) | B56: Avícola para la producción de carne | C56: Subsector ganadería | D56: Agropecuario | E56: Ab118
A57: Almacenamiento de estiércol con cama de agregados para el control de humedad (AGyP) | B57: Avícola para la producción de guajolotes o pavos | C57: Subsector ganadería | D57: Agropecuario | E57: Ab136
A58: Almacenamiento de estiércol con cama de agregados para el control de humedad (AH) | B58: Avícola para la producción de huevo | C58: Subsector ganadería | D58: Agropecuario | E58: Ab100
A59: Almacenamiento de estiércol con cama de agregados para el control de humedad (AI) | B59: Producción de cualquier tipo de ave en incubadora | C59: Subsector ganadería | D59: Agropecuario | E59: Ab190
A60: Almacenamiento de estiércol con cama de agregados para el control de humedad (BC) | B60: Bovinos para la producción de carne | C60: Subsector ganadería | D60: Agropecuario | E60: Ab028
A61: Almacenamiento de estiércol con cama de agregados para el control de humedad (BCyL) | B61: Bovinos para la producción conjunta de leche y carne | C61: Subsector ganadería | D61: Agropecuario | E61: Ab010
A62: Almacenamiento de estiércol con cama de agregados para el control de humedad (BL) | B62: Bovinos para la producción de leche | C62: Subsector ganadería | D62: Agropecuario | E62: Ab046
A63: Almacenamiento de estiércol con cama de agregados para el control de humedad (BO) | B63: Bovinos para otros propósitos | C63: Subsector ganadería | D63: Agropecuario | E63: Ab064
A64: Almacenamiento de estiércol con cama de agregados para el control de humedad (CP) | B64: Caprinos para cualquier actividad | C64: Subsector ganadería | D64: Agropecuario | E64: Ab172
A65: Almacenamiento de estiércol con cama de agregados para el control de humedad (O) | B65: Ovinos para cualquier actividad | C65: Subsector ganadería | D65: Agropecuario | E65: Ab154
A66: Almacenamiento de estiércol con cama de agregados para el control de humedad (P) | B66: Porcinos para la producción de carne | C66: Subsector ganadería | D66: Agropecuario | E66: Ab082
A67: Almacenamiento de estiércol en pilas o montones no confinados (AC) | B67: Avícola para la producción de carne | C67: Subsector ganadería | D67: Agropecuario | E67: Ab111
A68: Almacenamiento de estiércol en pilas o montones no confinados (AGyP) | B68: Avícola para la producción de guajolotes o pavos | C68: Subsector ganadería | D68: Agropecuario | E68: Ab129
A69: Almacenamiento de estiércol en pilas o montones no confinados (AH) | B69: Avícola para la producción de huevo | C69: Subsector ganadería | D69: Agropecuario | E69: Ab093
A70: Almacenamiento de estiércol en pilas o montones no confinados (AI) | B70: Producción de cualquier tipo de ave en incubadora | C70: Subsector ganadería | D70: Agropecuario | E70: Ab183
A71: Almacenamiento de estiércol en pilas o montones no confinados (BC) | B71: Bovinos para la producción de carne | C71: Subsector ganadería | D71: Agropecuario | E71: Ab021
A72: Almacenamiento de estiércol en pilas o montones no confinados (BCyL) | B72: Bovinos para la producción conjunta de leche y carne | C72: Subsector ganadería | D72: Agropecuario | E72: Ab003
A73: Almacenamiento de estiércol en pilas o montones no confinados (BL) | B73: Bovinos para la producción de leche | C73: Subsector ganadería | D73: Agropecuario | E73: Ab039
A74: Almacenamiento de estiércol en pilas o montones no confinados (BO) | B74: Bovinos para otros propósitos | C74: Subsector ganadería | D74: Agropecuario | E74: Ab057
A75: Almacenamiento de estiércol en pilas o montones no confinados (CP) | B75: Caprinos para cualquier actividad | C75: Subsector ganadería | D75: Agropecuario | E75: Ab165
A76: Almacenamiento de estiércol en pilas o montones no confinados (O) | B76: Ovinos para cualquier actividad | C76: Subsector ganadería | D76: Agropecuario | E76: Ab147
A77: Almacenamiento de estiércol en pilas o montones no confinados (P) | B77: Porcinos para la producción de carne | C77: Subsector ganadería | D77: Agropecuario | E77: Ab075
A78: Almacenamiento de estiércol líquido (AC) | B78: Avícola para la producción de carne | C78: Subsector ganadería | D78: Agropecuario | E78: Ab114
A79: Almacenamiento de estiércol líquido (AGyP) | B79: Avícola para la producción de guajolotes o pavos | C79: Subsector ganadería | D79: Agropecuario | E79: Ab132
A80: Almacenamiento de estiércol líquido (AH) | B80: Avícola para la producción de huevo | C80: Subsector ganadería | D80: Agropecuario | E80: Ab096
A81: Almacenamiento de estiércol líquido (AI) | B81: Producción de cualquier tipo de ave en incubadora | C81: Subsector ganadería | D81: Agropecuario | E81: Ab186
A82: Almacenamiento de estiércol líquido (BC) | B82: Bovinos para la producción de carne | C82: Subsector ganadería | D82: Agropecuario | E82: Ab024
A83: Almacenamiento de estiércol líquido (BCyL) | B83: Bovinos para la producción conjunta de leche y carne | C83: Subsector ganadería | D83: Agropecuario | E83: Ab006
A84: Almacenamiento de estiércol líquido (BL) | B84: Bovinos para la producción de leche | C84: Subsector ganadería | D84: Agropecuario | E84: Ab042
A85: Almacenamiento de estiércol líquido (BO) | B85: Bovinos para otros propósitos | C85: Subsector ganadería | D85: Agropecuario | E85: Ab060
A86: Almacenamiento de estiércol líquido (CP) | B86: Caprinos para cualquier actividad | C86: Subsector ganadería | D86: Agropecuario | E86: Ab168
A87: Almacenamiento de estiércol líquido (O) | B87: Ovinos para cualquier actividad | C87: Subsector ganadería | D87: Agropecuario | E87: Ab150
A88: Almacenamiento de estiércol líquido (P) | B88: Porcinos para la producción de carne | C88: Subsector ganadería | D88: Agropecuario | E88: Ab078
A89: Almacenamiento de Gas Natural | B89: Transporte_Gas_almacenamiento | C89: Hidrocarburos | D89: Energía | E89: Eb14
A90: Almacenamiento del estiércol (con poco o ningún agregado de agua) debajo de un suelo emparrillado (AC) | B90: Avícola para la producción de carne | C90: Subsector ganadería | D90: Agropecuario | E90: Ab115
A91: Almacenamiento del estiércol (con poco o ningún agregado de agua) debajo de un suelo emparrillado (AGyP) | B91: Avícola para la producción de guajolotes o pavos | C91: Subsector ganadería | D91: Agropecuario | E91: Ab133
A92: Almacenamiento del estiércol (con poco o ningún agregado de agua) debajo de un suelo emparrillado (AH) | B92: Avícola para la producción de huevo | C92: Subsector ganadería | D92: Agropecuario | E92: Ab097
A93: Almacenamiento del estiércol (con poco o ningún agregado de agua) debajo de un suelo emparrillado (AI) | B93: Producción de cualquier tipo de ave en incubadora | C93: Subsector ganadería | D93: Agropecuario | E93: Ab187
A94: Almacenamiento del estiércol (con poco o ningún agregado de agua) debajo de un suelo emparrillado (BC) | B94: Bovinos para la producción de carne | C94: Subsector ganadería | D94: Agropecuario | E94: Ab025
A95: Almacenamiento del estiércol (con poco o ningún agregado de agua) debajo de un suelo emparrillado (BCyL) | B95: Bovinos para la producción conjunta de leche y carne | C95: Subsector ganadería | D95: Agropecuario | E95: Ab007
A96: Almacenamiento del estiércol (con poco o ningún agregado de agua) debajo de un suelo emparrillado (BL) | B96: Bovinos para la producción de leche | C96: Subsector ganadería | D96: Agropecuario | E96: Ab043
A97: Almacenamiento del estiércol (con poco o ningún agregado de agua) debajo de un suelo emparrillado (BO) | B97: Bovinos para otros propósitos | C97: Subsector ganadería | D97: Agropecuario | E97: Ab061
A98: Almacenamiento del estiércol (con poco o ningún agregado de agua) debajo de un suelo emparrillado (CP) | B98: Caprinos para cualquier actividad | C98: Subsector ganadería | D98: Agropecuario | E98: Ab169
A99: Almacenamiento del estiércol (con poco o ningún agregado de agua) debajo de un suelo emparrillado (O) | B99: Ovinos para cualquier actividad | C99: Subsector ganadería | D99: Agropecuario | E99: Ab151
A100: Almacenamiento del estiércol (con poco o ningún agregado de agua) debajo de un suelo emparrillado (P) | B100: Porcinos para la producción de carne | C100: Subsector ganadería | D100: Agropecuario | E100: Ab079
A101: Alquitrán | B101: Generación_energía_eléctrica | C101: Energía_eléctrica | D101: Energía | E101: Ea02
A102: Alquitrán_PT | B102: Procesos_térmicos | C102: Energía_térmica | D102: Energía | E102: Ec02
A103: Alquitrán_Siderurgia | B103: Producción_Hierro_Acero | C103: Industria_Siderúrgica | D103: Industrial | E103: lb22
A104: Amoníaco | B104: Productos_químicos_básicos | C104: Industria_Química | D104: Industrial | E104: Ia01
A105: Ankerita (o espato) | B105: Minerales_No_metálicos | C105: Industria_Minera | D105: Industrial | E105: Ie8
A106: Ánodos precocidos - CWPB | B106: Aluminio | C106: Industria_Metalúrgica | D106: Industrial | E106: Ic1
A107: Ánodos precocidos - SWPB | B107: Aluminio | C107: Industria_Metalúrgica | D107: Industrial | E107: Ic2
A108: Aplicación de estiércol en tierras de cultivo o pasturas dentro de las 24 horas de su excreción (AC) | B108: Avícola para la producción de carne | C108: Subsector ganadería | D108: Agropecuario | E108: Ab110
A109: Aplicación de estiércol en tierras de cultivo o pasturas dentro de las 24 horas de su excreción (AGyP) | B109: Avícola para la producción de guajolotes o pavos | C109: Subsector ganadería | D109: Agropecuario | E109: Ab128
A110: Aplicación de estiércol en tierras de cultivo o pasturas dentro de las 24 horas de su excreción (AH) | B110: Avícola para la producción de huevo | C110: Subsector ganadería | D110: Agropecuario | E110: Ab092
A111: Aplicación de estiércol en tierras de cultivo o pasturas dentro de las 24 horas de su excreción (AI) | B111: Producción de cualquier tipo de ave en incubadora | C111: Subsector ganadería | D111: Agropecuario | E111: Ab182
A112: Aplicación de estiércol en tierras de cultivo o pasturas dentro de las 24 horas de su excreción (BC) | B112: Bovinos para la producción de carne | C112: Subsector ganadería | D112: Agropecuario | E112: Ab020
A113: Aplicación de estiércol en tierras de cultivo o pasturas dentro de las 24 horas de su excreción (BCyL) | B113: Bovinos para la producción conjunta de leche y carne | C113: Subsector ganadería | D113: Agropecuario | E113: Ab002
A114: Aplicación de estiércol en tierras de cultivo o pasturas dentro de las 24 horas de su excreción (BL) | B114: Bovinos para la producción de leche | C114: Subsector ganadería | D114: Agropecuario | E114: Ab038
A115: Aplicación de estiércol en tierras de cultivo o pasturas dentro de las 24 horas de su excreción (BO) | B115: Bovinos para otros propósitos | C115: Subsector ganadería | D115: Agropecuario | E115: Ab056
A116: Aplicación de estiércol en tierras de cultivo o pasturas dentro de las 24 horas de su excreción (CP) | B116: Caprinos para cualquier actividad | C116: Subsector ganadería | D116: Agropecuario | E116: Ab164
A117: Aplicación de estiércol en tierras de cultivo o pasturas dentro de las 24 horas de su excreción (O) | B117: Ovinos para cualquier actividad | C117: Subsector ganadería | D117: Agropecuario | E117: Ab146
A118: Aplicación de estiércol en tierras de cultivo o pasturas dentro de las 24 horas de su excreción (P) | B118: Porcinos para la producción de carne | C118: Subsector ganadería | D118: Agropecuario | E118: Ab074
A119: Arrabio | B119: Producción_Hierro_Acero | C119: Industria_Siderúrgica | D119: Industrial | E119: lb11
A120: Arrabio frío (Cold iron) | B120: Producción_Hierro_Acero | C120: Industria_Siderúrgica | D120: Industrial | E120: lb12
A121: Bagazo de caña | B121: Generación_energía_eléctrica | C121: Energía_eléctrica | D121: Energía | E121: Ea03
A122: Bagazo de caña_PT | B122: Procesos_térmicos | C122: Energía_térmica | D122: Energía | E122: Ec03
A123: Bagazo de Malta | B123: Generación_energía_eléctrica | C123: Energía_eléctrica | D123: Energía | E123: Ea04
A124: Bagazo de Malta_PT | B124: Procesos_térmicos | C124: Energía_térmica | D124: Energía | E124: Ec04
A125: Basura (residuos sólidos urbanos) | B125: Generación_energía_eléctrica | C125: Energía_eléctrica | D125: Energía | E125: Ea05
A126: Basura (residuos sólidos urbanos)_PT | B126: Procesos_térmicos | C126: Energía_térmica | D126: Energía | E126: Ec05
A127: Benzol | B127: Producción_Hierro_Acero | C127: Industria_Siderúrgica | D127: Industrial | E127: lb23
A128: Biocombustible líquido | B128: Generación_energía_eléctrica | C128: Energía_eléctrica | D128: Energía | E128: Ea06
A129: Biocombustible líquido_PT | B129: Procesos_térmicos | C129: Energía_térmica | D129: Energía | E129: Ec06
A130: Biodiesel | B130: Generación_energía_eléctrica | C130: Energía_eléctrica | D130: Energía | E130: Ea07
A131: Biodiesel_PT | B131: Procesos_térmicos | C131: Energía_térmica | D131: Energía | E131: Ec07
A132: Biogás (metano) | B132: Generación_energía_eléctrica | C132: Energía_eléctrica | D132: Energía | E132: Ea08
A133: Biogás (metano)_PT | B133: Procesos_térmicos | C133: Energía_térmica | D133: Energía | E133: Ec08
A134: Biogasolina | B134: Generación_energía_eléctrica | C134: Energía_eléctrica | D134: Energía | E134: Ea09
A135: Biogasolina_PT | B135: Procesos_térmicos | C135: Energía_térmica | D135: Energía | E135: Ec09
A136: Ca1. Únicamente reporta consumo energético - Energía y Transporte | B136: Edificación_residencial | C136: Construcción | D136: Comercio_y_Servicios | E136: Ca01
A137: Ca10. Únicamente reporta consumo energético - Energía y Transporte | B137: Otros_trabajos_especializados_para_la_construcción | C137: Construcción | D137: Comercio_y_Servicios | E137: Ca10
A138: Ca2. Únicamente reporta consumo energético - Energía y Transporte | B138: Edificación_no_residencial | C138: Construcción | D138: Comercio_y_Servicios | E138: Ca02
A139: Ca3. Únicamente reporta consumo energético - Energía y Transporte | B139: Construcción_de_obras_para_el_suministro_de_agua_petróleo_gas_energía_eléctrica_y_telecomunicaciones | C139: Construcción | D139: Comercio_y_Servicios | E139: Ca03
A140: Ca4. Únicamente reporta consumo energético - Energía y Transporte | B140: División_de_terrenos_y_construcción_de_obras_de_urbanización | C140: Construcción | D140: Comercio_y_Servicios | E140: Ca04
A141: Ca5. Únicamente reporta consumo energético - Energía y Transporte | B141: Construcción_de_vías_de_comunicación | C141: Construcción | D141: Comercio_y_Servicios | E141: Ca05
A142: Ca6. Únicamente reporta consumo energético - Energía y Transporte | B142: Otras_construcciones_de_ingeniería_civil | C142: Construcción | D142: Comercio_y_Servicios | E142: Ca06
A143: Ca7. Únicamente reporta consumo energético - Energía y Transporte | B143: Cimentaciones_montaje_de_estructuras_prefabricadas_y_trabajos_en_exteriores | C143: Construcción | D143: Comercio_y_Servicios | E143: Ca07
A144: Ca8. Únicamente reporta consumo energético - Energía y Transporte | B144: Instalaciones_y_equipamiento_en_construcciones | C144: Construcción | D144: Comercio_y_Servicios | E144: Ca08
A145: Ca9. Únicamente reporta consumo energético - Energía y Transporte | B145: Trabajos_de_acabados_en_edificaciones | C145: Construcción | D145: Comercio_y_Servicios | E145: Ca09
A146: Cajas frías para transporte CARGA | B146: Fabricación de equipo de aire acondicionado, calefacción, y de refrigeración; industrial y comercial | C146: Subsector industria eléctrica | D146: Industrial | E146: Im14
A147: Cajas frías para transporte ELIMINACIÓN | B147: Fabricación de equipo de aire acondicionado, calefacción, y de refrigeración; industrial y comercial | C147: Subsector industria eléctrica | D147: Industrial | E147: Im16
A148: Cajas frías para transporte RECARGA | B148: Fabricación de equipo de aire acondicionado, calefacción, y de refrigeración; industrial y comercial | C148: Subsector industria eléctrica | D148: Industrial | E148: Im15
A149: Cal con fuerte proporción de calcio | B149: Cal | C149: Industria_Cemento_y_Cal | D149: Industrial | E149: Ij2
A150: Cal de dolomita | B150: Cal | C150: Industria_Cemento_y_Cal | D150: Industrial | E150: Ij3
A151: Cal hidráulica | B151: Cal | C151: Industria_Cemento_y_Cal | D151: Industrial | E151: Ij4
A152: Caliza | B152: Producción_Hierro_Acero | C152: Industria_Siderúrgica | D152: Industrial | E152: lb08
A153: Caña de maíz | B153: Generación_energía_eléctrica | C153: Energía_eléctrica | D153: Energía | E153: Ea10
A154: Caña de maíz_PT | B154: Procesos_térmicos | C154: Energía_térmica | D154: Energía | E154: Ec10
A155: Caprolactama | B155: Caprolactama | C155: Industria_Petroquímica | D155: Industrial | E155: Ii33
A156: Carbón a la Sintetizadora o al Horno Básico de oxígeno | B156: Producción_Hierro_Acero | C156: Industria_Siderúrgica | D156: Industrial | E156: lb03
A157: Carbón antracita | B157: Generación_energía_eléctrica | C157: Energía_eléctrica | D157: Energía | E157: Ea11
A158: Carbón antracita_PT | B158: Procesos_térmicos | C158: Energía_térmica | D158: Energía | E158: Ec11
A159: Carbón bituminoso | B159: Generación_energía_eléctrica | C159: Energía_eléctrica | D159: Energía | E159: Ea12
A160: Carbón bituminoso_PT | B160: Procesos_térmicos | C160: Energía_térmica | D160: Energía | E160: Ec12
A161: Carbón coquizable | B161: Producción_Hierro_Acero | C161: Industria_Siderúrgica | D161: Industrial | E161: lb01
A162: Carbón de inyección al Alto Horno | B162: Producción_Hierro_Acero | C162: Industria_Siderúrgica | D162: Industrial | E162: lb02
A163: Carbón mineral | B163: Generación_energía_eléctrica | C163: Energía_eléctrica | D163: Energía | E163: Ea13
A164: Carbón mineral_PT | B164: Procesos_térmicos | C164: Energía_térmica | D164: Energía | E164: Ec13
A165: Carbón para el Horno de Arco Eléctrico | B165: Producción_Hierro_Acero | C165: Industria_Siderúrgica | D165: Industrial | E165: lb05
A166: Carbón para el Horno de Reducción Directa | B166: Producción_Hierro_Acero | C166: Industria_Siderúrgica | D166: Industrial | E166: lb06
A167: Carbón para vapor | B167: Producción_Hierro_Acero | C167: Industria_Siderúrgica | D167: Industrial | E167: lb04
A168: Carbón siderúrgico de importación | B168: Generación_energía_eléctrica | C168: Energía_eléctrica | D168: Energía | E168: Ea14
A169: Carbón siderúrgico de importación_PT | B169: Procesos_térmicos | C169: Energía_térmica | D169: Energía | E169: Ec14
A170: Carbón siderúrgico nacional | B170: Generación_energía_eléctrica | C170: Energía_eléctrica | D170: Energía | E170: Ea15
A171: Carbón siderúrgico nacional_PT | B171: Procesos_térmicos | C171: Energía_térmica | D171: Energía | E171: Ec15
A172: Carbón térmico de importación | B172: Generación_energía_eléctrica | C172: Energía_eléctrica | D172: Energía | E172: Ea16
A173: Carbón térmico de importación_PT | B173: Procesos_térmicos | C173: Energía_térmica | D173: Energía | E173: Ec16
A174: Carbón térmico nacional | B174: Generación_energía_eléctrica | C174: Energía_eléctrica | D174: Energía | E174: Ea17
A175: Carbón térmico nacional_PT | B175: Procesos_térmicos | C175: Energía_térmica | D175: Energía | E175: Ec17
A176: Carbón vegetal | B176: Generación_energía_eléctrica | C176: Energía_eléctrica | D176: Energía | E176: Ea18
A177: Carbón vegetal_PT | B177: Procesos_térmicos | C177: Energía_térmica | D177: Energía | E177: Ec18
A178: Carbonato de calcio | B178: Minerales_No_metálicos | C178: Industria_Minera | D178: Industrial | E178: Ie4
A179: Carbonato de sodio o ceniza de sosa | B179: Minerales_No_metálicos | C179: Industria_Minera | D179: Industrial | E179: Ie10
A180: Carburo de Calcio | B180: Productos_químicos_básicos | C180: Industria_Química | D180: Industrial | E180: Ia05
A181: Carburo de Silicio | B181: Productos_químicos_básicos | C181: Industria_Química | D181: Industrial | E181: Ia04
A182: Cartón ordinario-empaques-envases | B182: Generación_energía_eléctrica | C182: Energía_eléctrica | D182: Energía | E182: Ea19
A183: Cartón ordinario-empaques-envases_PT | B183: Procesos_térmicos | C183: Energía_térmica | D183: Energía | E183: Ec19
A184: Cb1. Únicamente reporta consumo energético - Energía y Transporte | B184: Comercio_al_por_mayor_de_abarrotes_y_alimentos | C184: Comercio | D184: Comercio_y_Servicios | E184: Cb1
A185: Cb10. Únicamente reporta consumo energético - Energía y Transporte | B185: Comercio_al_por_menor_en_tiendas_departamentales | C185: Comercio | D185: Comercio_y_Servicios | E185: Cb10
A186: Cb11. Únicamente reporta consumo energético - Energía y Transporte | B186: Comercio_al_por_menor_de_ropa_bisutería_y_accesorios_de_vestir | C186: Comercio | D186: Comercio_y_Servicios | E186: Cb11
A187: Cb12. Únicamente reporta consumo energético - Energía y Transporte | B187: Comercio_al_por_menor_de_partes_y_refacciones_para_automóviles_camionetas_y_camiones | C187: Comercio | D187: Comercio_y_Servicios | E187: Cb12
A188: Cb2. Únicamente reporta consumo energético - Energía y Transporte | B188: Comercio_al_por_mayor_de_bebidas_hielo_y_tabaco | C188: Comercio | D188: Comercio_y_Servicios | E188: Cb2
A189: Cb3. Únicamente reporta consumo energético - Energía y Transporte | B189: Comercio_al_por_mayor_de_productos_textiles_y_calzado | C189: Comercio | D189: Comercio_y_Servicios | E189: Cb3
A190: Cb4. Únicamente reporta consumo energético - Energía y Transporte | B190: Comercio_al_por_mayor_de_materias_primas_agropecuarias_y_forestales | C190: Comercio | D190: Comercio_y_Servicios | E190: Cb4
A191: Cb5. Únicamente reporta consumo energético - Energía y Transporte | B191: Comercio_al_por_mayor_de_materias_primas_para_la_industria | C191: Comercio | D191: Comercio_y_Servicios | E191: Cb5
A192: Cb6. Únicamente reporta consumo energético - Energía y Transporte | B192: Comercio_al_por_mayor_de_maquinaria_y_equipo_agropecuario_forestal_y_para_la_pesca | C192: Comercio | D192: Comercio_y_Servicios | E192: Cb6
A193: Cb7. Únicamente reporta consumo energético - Energía y Transporte | B193: Mobiliario_y_equipo_de_cómputo_y_oficina_y_otra_maquinaria_y_equipo_de_uso_general | C193: Comercio | D193: Comercio_y_Servicios | E193: Cb7
A194: Cb8. Únicamente reporta consumo energético - Energía y Transporte | B194: Comercio_al_por_menor_de_abarrotes_y_alimentos | C194: Comercio | D194: Comercio_y_Servicios | E194: Cb8
A195: Cb9. Únicamente reporta consumo energético - Energía y Transporte | B195: Comercio_al_por_menor_en_tiendas_de_autoservicio | C195: Comercio | D195: Comercio_y_Servicios | E195: Cb9
A196: Cc1. Únicamente reporta consumo energético - Sector Todos | B196: Escuelas de educación superior | C196: Servicios_Educativos | D196: Comercio_y_Servicios | E196: Cc1
A197: Cd1. Únicamente reporta consumo energético - Sector Todos | B197: Parques con instalaciones recreativas y casas de juegos electrónicos | C197: Actividades_Recreativas | D197: Comercio_y_Servicios | E197: Cd1
A198: Ce1. Únicamente reporta consumo energético - Sector Todos | B198: Hoteles, moteles y similares | C198: Turismo | D198: Comercio_y_Servicios | E198: Ce1
A199: Células fotovoltaicas | B199: Componentes_electrónicos | C199: Industria_Electrónica | D199: Industrial | E199: Il4
A200: Ceniza de sosa | B200: Minerales_No_metálicos | C200: Industria_Minera | D200: Industrial | E200: Ie3
A201: Cf1. Únicamente reporta consumo energético - Sector Todos | B201: Hospitales y laboratorios | C201: Servicios_Médicos | D201: Comercio_y_Servicios | E201: Cf1
... 409 more rows
